Workbook

Sheet Hoja4 (hidden)
A1: CLASIFICACIÓN DE LA INFORMACIÓN | B1: Pública
B3: Datos
A4: DEPENDENCIA | B4: Cantidad contratos | C4: % del Total
A5: ESTRATEGIA | B5: 4 | C5: 0.02985074627
A6: FINANCIERA Y ADMON | B6: 25 | C6: 0.1865671642
A7: NEGOCIOS | B7: 4 | C7: 0.02985074627
A8: OPERACIONES | B8: 3 | C8: 0.0223880597
A9: OTI | B9: 50 | C9: 0.3731343284
A10: RIESGOS | B10: 1 | C10: 0.007462686567
A11: SECRETARIA GENERAL Y JURIDICA | B11: 43 | C11: 0.3208955224
A12: TÉCNICA | B12: 4 | C12: 0.02985074627
A13: Total general | B13: 134 | C13: 1
A16: DEPENDENCIA | B16: CANTIDAD CONTRATOS | C16: % DEL TOTAL
A17: OTI | B17: 50 | C17: 0.3731343284
A18: SECRETARIA GENERAL Y JURIDICA | B18: 43 | C18: 0.3208955224
A19: FINANCIERA Y ADMON | B19: 25 | C19: 0.1865671642
A20: ESTRATEGIA | B20: 4 | C20: 0.02985074627
A21: NEGOCIOS | B21: 4 | C21: 0.02985074627
A22: TÉCNICA | B22: 4 | C22: 0.02985074627
A23: OPERACIONES | B23: 3 | C23: 0.0223880597
A24: RIESGOS | B24: 1 | C24: 0.007462686567
A25: TOTAL GENERAL | B25: 134 | C25: 1

Sheet Hoja3 (hidden)
I1: DEPENDENCIA | J1: Planeado | K1: Contratado | L1: %
A2: DEPENDENCIA | B2: VALOR | C2: PRESUPUESTO CONTRATADO | D2: % | I2: ESTRATEGIA | J2: 1172306306 | K2: 1172306306 | L2: =K2/J2 -> 1
A3: OFICINA DE ESTRATEGIA Y DESARROLLO | B3: 694295625 | I3: FINANCIERA Y ADMON | J3: 8752267945 | K3: 5335356771 | L3: =K3/J3 -> 0.6095970558
A4: VICEPRESIDENCIA FINANCIERA Y ADMINISTRATIVA | B4: 8752267945 | C4: 3088070598 | D4: =C4/B4 -> 0.3528309025 | I4: NEGOCIOS | J4: 1.336003318e+10 | K4: 12691995310 | L4: =K4/J4 -> 0.9499972894
A5: VICEPRESIDENCIA DE NEGOCIOS | B5: 7381429080 | C5: 12227414358 | D5: =C5/B5 -> 1.656510443 | I5: OPERACIONES | J5: 38366883401 | K5: 31119191770 | L5: =K5/J5 -> 0.8110951167
A6: VICEPRESIDENCIA DE OPERACIONES | B6: 38366883401 | C6: 31119191770 | D6: 0.8110951167 | I6: OTI | J6: 1.63261224e+10 | K6: 9124308413 | L6: =K6/J6 -> 0.5588778639
A7: OFICINA DE TECNOLOGIAS DE LA INFORMACIÓN | B7: 1.63261224e+10 | C7: 201210990 | D7: 0.01232448129 | I7: PYP | J7: 120411187909 | K7: 99075259486 | L7: 0.8228077574
A8: VICEPRESIDENCIA DE PROMOCIÓN Y PREVENCIÓN | B8: 120411187909 | C8: 81402850713 | D8: 0.6760405916 | I8: RIESGOS | J8: 68348301 | K8: 68348301 | L8: 1
A9: OFICINA DE GESTIÓN INTEGRAL DE RIESGOS | B9: 68348301 | D9: 0 | I9: SECRETARIA GENERAL Y JURIDICA | J9: 5599124510 | K9: 4399646576 | L9: 0.7857740202
A10: SECRETARIA GENERAL Y JURIDICA | B10: 6077135191 | C10: 7043728834 | D10: 1.159054162 | I10: TÉCNICA | J10: 1132517831 | K10: 1125458561 | L10: 0.9937667471
A11: VICEPRESIDENCIA TÉCNICA | B11: 1132517831 | C11: 725588815 | D11: 0.6406864379 | I11: Total general | J11: =SUM(J2:J10) -> 2.051887918e+11 | K11: =SUM(K2:K10) -> 164111871494 | L11: 0.7998091419
A12: PRESUPUESTOS COMPARTIDOS
A13: VP NEGOCIOS Y VP FINANCIERA Y ADMON | B13: 269479593
A14: VP NEGOCIOS Y SECRETARIA GENERAL | B14: 110000000
A15: VP NEGOCIOS, SECRETARIA GENERAL y VP PYP | B15: 6589650515
A16: OFICINA DE ESTRATEGIA, G. TALENTO HUMANO y OFICINA DE RIESGOS | B16: 97086437
A17: TOTAL PLAN | B17: 2.062764042e+11 | C17: 135808056078

Sheet Hoja1 (hidden)
B3: Datos | E3: VICEPRESIDENCIA/SECTREATARÍA GENERAL | F3: CANTIDAD PREVISTA DE CONTRATOS | G3: VALOR PLANEADO A CONTRATAR | H3: % del valor estimado
A4: VICEPRESIDENCIA/SECTREATARÍA GENERAL | B4: CANTIDAD PREVISTA DE CONTRATOS | C4: VALOR PLANEADO A CONTRATAR | E4: Financiera y Administrativa | F4: 39 | G4: 9198008297 | H4: =G4/$G$10 -> 0.0461408428
A5: Financiera y Administrativa | B5: 39 | C5: 9198008297 | E5: Negocios | F5: 23 | G5: 8440161697 | H5: 0.04233918491
A6: Negocios | B6: 23 | C6: 8440161697 | E6: Operaciones | F6: 14 | G6: 30469448195 | H6: 0.1528467875
A7: Operaciones | B7: 14 | C7: 30469448195 | E7: Promoción y Prevención | F7: 270 | G7: 119824776984 | H7: 0.6010884118
A8: Promoción y Prevención | B8: 270 | C8: 119824776984 | E8: Secretaria General y Jurídica | F8: 128 | G8: 2.979845428e+10 | H8: 0.149480817
A9: Secretaria General y Jurídica | B9: 128 | C9: 2.979845428e+10 | E9: Técnica | F9: 438 | G9: 1615494000 | H9: 0.008103956019
A10: Técnica | B10: 438 | C10: 1615494000 | E10: Total general | F10: 912 | G10: 1.993463435e+11
A11: Total general | B11: 912 | C11: 1.993463435e+11
A16: CANTIDAD PREVISTA DE CONTRATOS
A17: MES | B17: Total
A18: ENERO | B18: 254
A19: FEBRERO | B19: 104
A20: MARZO | B20: 89
A21: ABRIL | B21: 83
A22: MAYO | B22: 62
A23: JUNIO | B23: 59
A24: JULIO | B24: 58
A25: AGOSTO | B25: 46
A26: SEPTIEMBRE | B26: 34
A27: OCTUBRE | B27: 41
A28: NOVIEMBRE | B28: 55
A29: DICIEMBRE | B29: 27
A30: Total general | B30: 912
A36: MES | B36: Total
A37: ENERO | B37: 254
A38: FEBRERO | B38: 104
A39: MARZO | B39: 89
A40: ABRIL | B40: 83
A41: MAYO | B41: 62
A42: JUNIO | B42: 59
A43: JULIO | B43: 58
A44: AGOSTO | B44: 46
A45: SEPTIEMBRE | B45: 34
A46: OCTUBRE | B46: 41
A47: NOVIEMBRE | B47: 55
A48: DICIEMBRE | B48: 27
A49: Total general | B49: 912

Sheet REPARTO (hidden)
A1: ¿YA SE CONTRATÓ? | B1: (Todas)
A2: Modalidad de selección | B2: (Todas)
G3: 250000 | I3: 120000
A4: Etiquetas de fila | G4: =G3/20 -> 12500
A5: NEGOCIOS
A6: Mercadeo y Comunicaciones Gcia. Talento Humano
A7: Mercadeo y Comunicaciones
A8: Canales
A9: Experiencia del cliente
A10: Vida
A11: Total general

Sheet DATOS (hidden)
A3: DEPENDENCIA | B3: VALOR PLANEADO | F3: DEPENDENCIA | G3: TOTAL PLANEADO | H3: TOTAL CONTRATADO | I3: % AVANCE
A4: Financiera y Administrativa | B4: 25803911516 | F4: Financiera y Administrativa | G4: 25803911516 | H4: 6099746825 | I4: =H4/G4 -> 0.2363884569
A5: NEGOCIOS | B5: 2.788901019e+10 | F5: NEGOCIOS | G5: 2.788901019e+10 | H5: 3356236991 | I5: =H5/G5 -> 0.1203426356
A6: OPERACIONES | B6: 76580484891 | F6: OPERACIONES | G6: 76580484891 | H6: 23847287967 | I6: 0.3114016319
A7: PYP | B7: 230167863022 | F7: PYP | G7: 230167863022 | H7: 165070664290 | I7: 0.7171751179
A8: SECRETARIA GENERAL Y JURIDICA | B8: 61521732941 | F8: SECRETARIA GENERAL Y JURIDICA | G8: 61521732941 | H8: 7121259031 | I8: 0.1157519252
A9: TÉCNICA | B9: 1704405478 | F9: TÉCNICA | G9: 1704405478 | H9: 2587824153 | I9: 1.518314853 | K9: Nota, pendiente actualización por parte de técnica, algunos contratos suscritos no han sido actualizados en el PAA
A10: Total general | B10: 4.23667408e+11 | F10: Total general | G10: 4.23667408e+11 | H10: 208083019257 | I10: 0.491147101
A44: MES | B44: VALOR PLANEADO | C44: MES | D44: VALOR CONTRATADO | F44: MES | G44: VALOR PLANEADO | H44: VALOR CONTRATADO | I44: ACUMULADO PLANEADO | J44: ACUMULADO CONTRADO
A45: 1 | B45: 32049154513 | C45: ENERO | D45: 7350645992 | F45: ENERO | G45: 32049154513 | H45: 7350645992 | I45: =G45 -> 32049154513 | J45: =H45 -> 7350645992 | M45: =I45/1000000 -> 32049.15451 | N45: 7350.645992
A46: 2 | B46: 56318240175 | C46: FEBRERO | D46: 42552561723 | F46: FEBRERO | G46: 56318240175 | H46: 42552561723 | I46: =G46+I45 -> 88367394688 | J46: =J45+H46 -> 49903207715 | M46: 88367.39469 | N46: 49903.20771
A47: 3 | B47: 141500525975 | C47: MARZO | D47: 69361856320 | F47: MARZO | G47: 141500525975 | H47: 69361856320 | I47: =G47+I46 -> 229867920663 | J47: =J46+H47 -> 119265064035 | M47: 229867.9207 | N47: 119265.064
A48: 4 | B48: 64710858241 | C48: ABRIL | D48: 73310692787 | F48: ABRIL | G48: 64710858241 | H48: 73310692787 | I48: 294578778904 | J48: 192575756822 | M48: 294578.7789 | N48: 192575.7568
A49: 5 | B49: 15438614641 | C49: MAYO | D49: 15507262435 | F49: MAYO | G49: 15438614641 | H49: 15507262435 | I49: 310017393545 | J49: 208083019257 | M49: 310017.3935 | N49: 208083.0193
A50: 6 | B50: 34202100235 | C50: Total general | D50: 208083019257 | F50: JUNIO | G50: 34202100235 | H50: 0 | I50: 344219493780 | J50: 208083019257 | M50: 344219.4938 | N50: 208083.0193
A51: 7 | B51: 11898842485 | F51: JULIO | G51: 11898842485 | H51: 0 | I51: 356118336265 | M51: =I51/1000000 -> 356118.3363
A52: 8 | B52: 29089301471 | F52: AGOSTO | G52: 29089301471 | H52: 0 | I52: 385207637736 | M52: 385207.6377
A53: 9 | B53: 4077348134 | F53: SEPTIEMBRE | G53: 4077348134 | H53: 0 | I53: 389284985870 | M53: 389284.9859
A54: 10 | B54: 2412330408 | F54: OCTUBRE | G54: 2412330408 | H54: 0 | I54: 391697316278 | M54: 391697.3163
A55: 11 | B55: 1.607868179e+10 | F55: NOVIEMBRE | G55: 1.607868179e+10 | H55: 0 | I55: 4.077759981e+11 | M55: 407775.9981
A56: 12 | B56: 15891409965 | F56: DICIEMBRE | G56: 15891409965 | H56: 0 | I56: 4.23667408e+11 | M56: 423667.408
A57: Total general | B57: 4.23667408e+11 | F57: Total general | G57: 4.23667408e+11 | H57: 208083019257

Sheet PLAN
C2: PLAN ANUAL DE ADQUISICIONES
C4: A. INFORMACIÓN GENERAL DE LA ENTIDAD
C5: Nombre | D5: POSITIVA COMPAÑÍA DE SEGUROS S.A. | G5: El principal objetivo del Plan Anual de Adquisiciones es permitir que la entidad estatal aumente la probabilidad de lograr mejores condiciones de competencia a través de la participación de un mayor número de operadores económicos interesados en los procesos de selección que se van a adelantar durante el año fiscal, y que el Estado cuente con información suficiente para realizar compras coordinadas.
C6: Dirección | D6: Avenida Carrera 45 No. 94-72
C7: Teléfono | D7: PBX:(57-1)6502200
C8: Página web | D8: www.positiva.gov.co
C9: Misión y visión | D9: MISION: Protegemos Integralmente la vida de las personas contribuyendo al bienestar de las familias, las empresas y la sociedad VISION: Ser la aseguradora que garantiza oportunamente la máxima protección a nuestros clientes
C10: Perspectiva estratégica | D10: POSITIVA COMPAÑÍA DE SEGUROS S.A., diseña e implementa un modelo de negocio de Responsabilidad Global que contribuya con la rentabilidad y el desarrollo sostenible de la empresa y que coadyude con el logro de sus objetivos específicos.
C11: Información de contacto | D11: Gerencia de Abastecimiento Estratégico contratacion@positiva.gov.co PBX: (1)6502200 Ext: 10641 | G11: El Plan Anual de Adquisiciones es un documento de naturaleza informativa y las adquisiciones incluidas en el mismo pueden ser canceladas, revisadas o modificadas. Esta información no representa compromiso u obligación alguna por parte de la entidad estatal ni la compromete a adquirir los bienes, obras y servicios en él señalados.
C12: Valor total del PAA | D12: =SUM(K:K) -> 768889198262
C13: Límite de contratación menor cuantía | D13: Régimen Especial de Contratación
C14: Límite de contratación mínima cuantía | D14: Régimen Especial de Contratación
C15: Fecha de última actualización del PAA | D15: 2024-12-31
C16: NOTA | D16: Acorde con el Decreto 2973 de 2013 en relación con el régimen de las reservas técnicas de las entidades aseguradoras y se dictan otras disposiciones, los contratos para la atención del siniestro se pagan con los recursos destinados a la reserva técnica. Este tipo de contratos son de cuantía indeterminada y aunque es determinable, al momento de la planeación únicamente se refleja el valor asociado al control presupuestal.
C22: B. ADQUISICIONES PLANEADAS
A23: VICEPRESIDENCIA/SECTREATARÍA GENERAL | B23: ORDEN | C23: Códigos UNSPSC | D23: Descripción | E23: Fecha estimada de inicio de proceso de selección | F23: MES | G23: Fecha fin contrato | H23: Duración estimada del contrato (Meses) | I23: Modalidad de selección | J23: Fuente de los recursos | K23: Valor total estimado | L23: Valor estimado en la vigencia actual | M23: ¿Se requieren vigencias futuras? | N23: Estado de solicitud de vigencias futuras | O23: Datos de contacto del responsable | P23: ¿Su necesidad contiene información financiera y secretos comerciales? Ejm: Tarifas comerciales, disminución de la siniestralidad, atención o servicio conexo al siniestro, know how del negocio, clasificación de empresas, estrategias comerciales. | Q23: ¿Su necesidad y el proceso de contratación son catalogados como misionales? Ejm: Gestión comercial, Gestión de clientes, Atención al siniestro, Estrategias de disminución de la siniestralidad, Gestión integral del portafolio, Gestión de reservas y reaseguros. | R23: En caso de ser una necesidad tecnologica ¿Su necesidad contiene información sensible? Ejm: Administración de bases de datos de clientes, información comercial de la Compañía, información relevante al know how del negocio. | S23: ¿De publicarse esta información referente al proceso de contratación podrían vulnerarse los intereses de Positiva con relación a su competencia al revelar información misional? | T23: CLASIFICACIÓN DE LA INFORMACIÓN | U23: DESCRIPCIÓN AJUSTADA
A24: PROMOCION Y PREVENCION | B24: C80172024 | C24: 93141808 93141811 | D24: El CONTRATISTA se compromete a la prestación de servicios de promoción y prevención para implementar, mejorar y/o mantener las actividades de asesoría, asistencia técnica y de formación en Seguridad y Salud en el Trabajo, bajo el lineamiento de los programas de la Estrategia CREA del modelo de Gestión Positiva SUMA, en PLAN BÁSICO: Programa Estructura Empresarial. Preparación y Atención de Emergencias, Programas Protección Colectiva e Individual, Programas Promoción y Prevención en Salud, Programa de Investigación de incidentes y accidentes de trabajo; PLAN AVANZADO: Programa de Gestión para el control de incidentes y accidentes de trabajo, Programas de Gestión en la prevención de la Enfermedad Laboral; PLAN ESPECIALIZADO: Programas de Vigilancia Epidemiológica: PLAN GESTIÓN INTEGRAL: Programas Sistemas de Gestión para la atención de empresas afiliadas a POSITIVA COMPAÑÍA DE SEGUROS de la Sucursal Caquetá Zona Valle | E24: 2024-01-02 | F24: =MONTH(E24) -> 1 | G24: 2024-12-31 | H24: =(G24-E24)/30 -> 12.13333333 | I24: DIRECTA | J24: Gasto Administrativo | K24: 200000000 | L24: 200000000 | M24: =IF(L24<K24,"SI","NO") -> NO | N24: =IF(M24="NO","NO APLICA","APROBADAS") -> NO APLICA | O24: Gerencia de Abastecimiento Estratégico contratacion@positiva.gov.co PBX: (1)6502200 Ext: 10641 | P24: SI | Q24: SI | R24: NA | S24: SI | T24: =IF(S24="SI","Pública clasificada","Pública") -> Pública clasificada | U24: =CONCATENATE(B24,"-","Tipo de información"," ",T24,"-",D24) -> C80172024-Tipo de información Pública clasificada-El CONTRATISTA se compromete a la prestación de servicios de promoción y prevención para implementar, mejorar y/o mantener las actividades de asesoría, asistencia técnica y de formación en Seguridad y Salud en el Trabajo, bajo el lineamiento de los programas de la Estrategia CREA del modelo de Gestión Positiva SUMA, en PLAN BÁSICO: Programa Estructura Empresarial. Preparación y Atención de Emergencias, Programas Protección Colectiva e Individual, Programas Promoción y Prevención en Salud, Programa de Investigación de incidentes y accidentes de trabajo; PLAN AVANZADO: Programa de Gestión para el control de incidentes y accidentes de trabajo, Programas de Gestión en la prevención de la Enfermedad Laboral; PLAN ESPECIALIZADO: Programas de Vigilancia Epidemiológica: PLAN GESTIÓN INTEGRAL: Programas Sistemas de Gestión para la atención de empresas afiliadas a POSITIVA COMPAÑÍA DE SEGUROS de la Sucursal Caquetá Zona Valle
A25: SECRETARIA GENERAL Y JURIDICA | B25: C20532024 | C25: 93141808 93141812 | D25: EL CONTRATISTA se compromete con POSITIVA COMPAÑÍA DE SEGUROS S.A. a la Prestación de servicios profesionales especializados para asesorar y brindar acompañamiento en los procesos contractuales y administrativos de la secretaria general y la Gerencia de Talento Humano | E25: 2024-01-02 | F25: =MONTH(E25) -> 1 | G25: 2024-12-31 | H25: =(G25-E25)/30 -> 12.13333333 | I25: DIRECTA | K25: 122723844 | L25: 122723844 | M25: =IF(L25<K25,"SI","NO") -> NO | N25: =IF(M25="NO","NO APLICA","APROBADAS") -> NO APLICA | O25: Gerencia de Abastecimiento Estratégico contratacion@positiva.gov.co PBX: (1)6502200 Ext: 10641 | P25: SI | Q25: SI | R25: NA | S25: SI | T25: =IF(S25="SI","Pública clasificada","Pública") -> Pública clasificada | U25: =CONCATENATE(B25,"-","Tipo de información"," ",T25,"-",D25) -> C20532024-Tipo de información Pública clasificada-EL CONTRATISTA se compromete con POSITIVA COMPAÑÍA DE SEGUROS S.A. a la Prestación de servicios profesionales especializados para asesorar y brindar acompañamiento en los procesos contractuales y administrativos de la secretaria general y la Gerencia de Talento Humano
A26: PROMOCION Y PREVENCION | B26: C82532024 | C26: 93141808 93141813 | D26: EL CONTRATISTA se compromete a prestar servicios de Promoción y Prevención, con el propósito de ofrecer asesoría y asistencia técnica para la implementación, mejora y mantenimiento del Sistema de Gestión de la Seguridad y Salud en el Trabajo, de acuerdo con los programas del PLAN BÁSICO, PLAN AVANZADO, PLAN ESPECIALIZADO y PLAN GESTIÓN INTEGRAL, dentro del marco de la estrategia CREA del Modelo de Gestión POSITIVA SUMA. Adicionalmente, el contratista brindará apoyo en la investigación de presuntos accidentes de trabajo, ya sean graves, mortales o leves en casos técnicamente justificados. Se implementarán estrategias orientadas a la prevención de accidentes laborales, con el objetivo de impactar positivamente en la siniestralidad. El alcance de los servicios comprenderá asesoría técnica especializada para atender las demandas de reclasificación de empresas, tanto por requerimientos internos de la compañía como por solicitudes de entes de control y vigilancia. Este enfoque busca fortalecer la intervención en las empresas MiPyMes afiliadas a POSITIVA COMPAÑÍA DE SEGUROS S.A. La ejecución de estas actividades se llevará a cabo bajo el lineamiento del prototipo técnico, con un equipo interdisciplinario. Estas labores se desarrollarán en las sucursales de las zonas de Atlántico, Antioquia, Valle, Santander y Coordinadora Bogotá. La modalidad de atención | E26: 2024-01-03 | F26: 1 | G26: 2024-12-31 | H26: 12.1 | I26: DIRECTA | K26: 7573349549 | L26: 5073349549 | M26: SI | N26: APROBADAS | O26: Gerencia de Abastecimiento Estratégico contratacion@positiva.gov.co PBX: (1)6502200 Ext: 10641 | P26: SI | Q26: SI | R26: NA | S26: SI | T26: Pública clasificada | U26: =CONCATENATE(B26,"-","Tipo de información"," ",T26,"-",D26) -> C82532024-Tipo de información Pública clasificada-EL CONTRATISTA se compromete a prestar servicios de Promoción y Prevención, con el propósito de ofrecer asesoría y asistencia técnica para la implementación, mejora y mantenimiento del Sistema de Gestión de la Seguridad y Salud en el Trabajo, de acuerdo con los programas del PLAN BÁSICO, PLAN AVANZADO, PLAN ESPECIALIZADO y PLAN GESTIÓN INTEGRAL, dentro del marco de la estrategia CREA del Modelo de Gestión POSITIVA SUMA. Adicionalmente, el contratista brindará apoyo en la investigación de presuntos accidentes de trabajo, ya sean graves, mortales o leves en casos técnicamente justificados. Se implementarán estrategias orientadas a la prevención de accidentes laborales, con el objetivo de impactar positivamente en la siniestralidad. El alcance de los servicios comprenderá asesoría técnica especializada para atender las demandas de reclasificación de empresas, tanto por requerimientos internos de la compañía como por solicitudes de entes de control y vigilancia. Este enfoque busca fortalecer la intervención en las empresas MiPyMes afiliadas a POSITIVA COMPAÑÍA DE SEGUROS S.A. La ejecución de estas actividades se llevará a cabo bajo el lineamiento del prototipo técnico, con un equipo interdisciplinario. Estas labores se desarrollarán en las sucursales de las zonas de Atlántico, Antioquia, Valle, Santander y Coordinadora Bogotá. La modalidad de atención
A27: PROMOCION Y PREVENCION | B27: C82522024 | C27: 93141808 93141814 | D27: EL CONTRATISTA se compromete a prestar servicios de Promoción y Prevención, con el propósito de ofrecer asesoría y asistencia técnica para la implementación, mejora y mantenimiento del Sistema de Gestión de la Seguridad y Salud en el Trabajo, de acuerdo con los programas del PLAN BÁSICO, PLAN AVANZADO, PLAN ESPECIALIZADO y PLAN GESTIÓN INTEGRAL, dentro del marco de la estrategia CREA del Modelo de Gestión POSITIVA SUMA. Adicionalmente, el contratista brindará apoyo en la investigación de presuntos accidentes de trabajo, ya sean graves, mortales o leves en casos técnicamente justificados. Se implementarán estrategias orientadas a la prevención de accidentes laborales, con el objetivo de impactar positivamente en la siniestralidad. El alcance de los servicios comprenderá asesoría técnica especializada para atender las demandas de reclasificación de empresas, tanto por requerimientos internos de la compañía como por solicitudes de entes de control y vigilancia. Este enfoque busca fortalecer la intervención en las empresas MiPyMes afiliadas a POSITIVA COMPAÑÍA DE SEGUROS S.A. La ejecución de estas actividades se llevará a cabo bajo el lineamiento del prototipo técnico, con un equipo interdisciplinario. Estas labores se desarrollarán en las sucursales de las zonas de Atlántico, Antioquia, Valle, Santander y Coordinadora Bogotá. La modalidad de atención definida y ejecutada se adaptará a las necesidades y características de las empresas MiPyMes asignadas a este modelo de atención. Es esencial que la prestación de servicios sea eficiente y efectiva sin comprometer la calidad del servicio en esta modalidad de atención, con un enfoque específico en la prevención y reducción de la siniestralidad. El contratista estará facultado para cubrir la demanda de solicitudes de reclasificación de empresas, contribuyendo así al fortalecimiento de la intervención en las MiPyMes afiliadas a POSITIVA COMPAÑÍA DE SEGUROS S.A. | E27: 2024-01-04 | F27: 1 | G27: 2024-12-31 | H27: 12.06666667 | I27: DIRECTA | K27: 8947001979 | L27: 5964667986 | M27: SI | N27: APROBADAS | O27: Gerencia de Abastecimiento Estratégico contratacion@positiva.gov.co PBX: (1)6502200 Ext: 10641 | P27: SI | Q27: SI | R27: NA | S27: SI | T27: Pública clasificada | U27: =CONCATENATE(B27,"-","Tipo de información"," ",T27,"-",D27) -> C82522024-Tipo de información Pública clasificada-EL CONTRATISTA se compromete a prestar servicios de Promoción y Prevención, con el propósito de ofrecer asesoría y asistencia técnica para la implementación, mejora y mantenimiento del Sistema de Gestión de la Seguridad y Salud en el Trabajo, de acuerdo con los programas del PLAN BÁSICO, PLAN AVANZADO, PLAN ESPECIALIZADO y PLAN GESTIÓN INTEGRAL, dentro del marco de la estrategia CREA del Modelo de Gestión POSITIVA SUMA. Adicionalmente, el contratista brindará apoyo en la investigación de presuntos accidentes de trabajo, ya sean graves, mortales o leves en casos técnicamente justificados. Se implementarán estrategias orientadas a la prevención de accidentes laborales, con el objetivo de impactar positivamente en la siniestralidad. El alcance de los servicios comprenderá asesoría técnica especializada para atender las demandas de reclasificación de empresas, tanto por requerimientos internos de la compañía como por solicitudes de entes de control y vigilancia. Este enfoque busca fortalecer la intervención en las empresas MiPyMes afiliadas a POSITIVA COMPAÑÍA DE SEGUROS S.A. La ejecución de estas actividades se llevará a cabo bajo el lineamiento del prototipo técnico, con un equipo interdisciplinario. Estas labores se desarrollarán en las sucursales de las zonas de Atlántico, Antioquia, Valle, Santander y Coordinadora Bogotá. La modalidad de atención definida y ejecutada se adaptará a las necesidades y características de las empresas MiPyMes asignadas a este modelo de atención. Es esencial que la prestación de servicios sea eficiente y efectiva sin comprometer la calidad del servicio en esta modalidad de atención, con un enfoque específico en la prevención y reducción de la siniestralidad. El contratista estará facultado para cubrir la demanda de solicitudes de reclasificación de empresas, contribuyendo así al fortalecimiento de la intervención en las MiPyMes afiliadas a POSITIVA COMPAÑÍA DE SEGUROS S.A.
A28: SECRETARIA GENERAL Y JURIDICA | B28: C05192024 | C28: 93141808 93141815 | D28: EL CONTRATISTA, se compromete con POSITIVA COMPAÑÍA DE SEGUROS S.A., con la Renovación del soporte técnico para el licenciamiento SAP-SYBASE de conformidad con lo descrito en la ficha técnica. | E28: 2024-01-05 | F28: 1 | G28: 2024-12-31 | H28: 12.03333333 | I28: DIRECTA | K28: 2202443500 | L28: 2202443500 | M28: NO | N28: NO APLICA | O28: Gerencia de Abastecimiento Estratégico contratacion@positiva.gov.co PBX: (1)6502200 Ext: 10641 | P28: SI | Q28: SI | R28: NA | S28: SI | T28: =IF(S28="SI","Pública clasificada","Pública") -> Pública clasificada | U28: C05192024-Tipo de información Pública clasificada-EL CONTRATISTA, se compromete con POSITIVA COMPAÑÍA DE SEGUROS S.A., con la Renovación del soporte técnico para el licenciamiento SAP-SYBASE de conformidad con lo descrito en la ficha técnica.
A29: SECRETARIA GENERAL Y JURIDICA | B29: C05602024 | C29: 93141808 93141816 | D29: EL CONTRATISTA, se compromete con POSITIVA., a la Prestación de servicios para dar soporte funcional y tecnológico al sistema de información IAXIS y Portal transaccional de vida. | E29: 2024-01-09 | F29: 1 | G29: 2024-12-31 | H29: 11.9 | I29: DIRECTA | K29: 1003016436 | L29: 803016436 | M29: SI | N29: APROBADAS | O29: Gerencia de Abastecimiento Estratégico contratacion@positiva.gov.co PBX: (1)6502200 Ext: 10641 | P29: SI | Q29: SI | R29: NA | S29: SI | T29: Pública clasificada | U29: C05602024-Tipo de información Pública clasificada-EL CONTRATISTA, se compromete con POSITIVA., a la Prestación de servicios para dar soporte funcional y tecnológico al sistema de información IAXIS y Portal transaccional de vida.
A30: SECRETARIA GENERAL Y JURIDICA | B30: C05852024 | C30: 93141808 93141817 | D30: PRESTAR LOS SERVICIOS DE GENERACIÓN, VALIDACIÓN, TRANSMISIÓN A LA DIAN, ENTREGA Y DISPOSICIÓN DE DOCUMENTOS ELECTRÓNICOS PROPIOS DE LA EMISIÓN DE FACTURAS ELECTRÓNICAS, DOCUMENTOS SOPORTE EQUIVALENTES, NOTAS DÉBITO Y CRÉDITO; ASÍ COMO LA TRANSMISIÓN A LA DIAN DE LA INFORMACIÓN DE ACUSE DE RECIBO, ACEPTACIÓN O RECHAZO DE LOS DOCUMENTOS ELECTRÓNICOS GESTIONADOS POR POSITIVA COMPAÑÍA DE SEGURO. | E30: 2024-01-09 | F30: 1 | G30: 2024-12-31 | H30: 11.9 | I30: DIRECTA | K30: 142419613 | L30: 142419613 | M30: NO | N30: NO APLICA | O30: Gerencia de Abastecimiento Estratégico contratacion@positiva.gov.co PBX: (1)6502200 Ext: 10641 | P30: SI | Q30: SI | R30: NA | S30: SI | T30: Pública clasificada | U30: C05852024-Tipo de información Pública clasificada-PRESTAR LOS SERVICIOS DE GENERACIÓN, VALIDACIÓN, TRANSMISIÓN A LA DIAN, ENTREGA Y DISPOSICIÓN DE DOCUMENTOS ELECTRÓNICOS PROPIOS DE LA EMISIÓN DE FACTURAS ELECTRÓNICAS, DOCUMENTOS SOPORTE EQUIVALENTES, NOTAS DÉBITO Y CRÉDITO; ASÍ COMO LA TRANSMISIÓN A LA DIAN DE LA INFORMACIÓN DE ACUSE DE RECIBO, ACEPTACIÓN O RECHAZO DE LOS DOCUMENTOS ELECTRÓNICOS GESTIONADOS POR POSITIVA COMPAÑÍA DE SEGURO.
A31: FINANCIERA Y ADMINISTRATIVA | B31: C35172024 C56042024 C85512024 | C31: 93141808 93141818 | D31: EL CONTRATISTA se obliga con POSITIVA COMPAÑÍA DE SEGUROS S.A. al suministro de tiquetes aéreos para los servidores públicos y contratistas directos en desarrollo de las actividades de POSITIVA COMPAÑÍA DE SEGUROS S.A. | E31: 2024-01-09 | F31: 1 | G31: 2024-12-31 | H31: 11.9 | I31: DIRECTA | K31: 935623758 | L31: 739747005 | M31: SI | N31: APROBADAS | O31: Gerencia de Abastecimiento Estratégico contratacion@positiva.gov.co PBX: (1)6502200 Ext: 10641 | P31: SI | Q31: SI | R31: NA | S31: SI | T31: Pública clasificada | U31: C35172024 C56042024 C85512024-Tipo de información Pública clasificada-EL CONTRATISTA se obliga con POSITIVA COMPAÑÍA DE SEGUROS S.A. al suministro de tiquetes aéreos para los servidores públicos y contratistas directos en desarrollo de las actividades de POSITIVA COMPAÑÍA DE SEGUROS S.A.
A32: SECRETARIA GENERAL Y JURIDICA | B32: C23382024 | C32: 93141808 93141819 | D32: EL CONTRATISTA se obliga a prestarle a POSITIVA COMPAÑÍA DE SEGUROS S.A. los servicios profesionales, para conceptuar, acompañar y asesorar a la Compañía en el Macroproceso de Gestión Jurídica y Secretaría General y Jurídica. | E32: 2024-01-11 | F32: 1 | G32: 2024-12-31 | H32: 11.83333333 | I32: DIRECTA | K32: 216000000 | L32: 216000000 | M32: NO | N32: NO APLICA | O32: Gerencia de Abastecimiento Estratégico contratacion@positiva.gov.co PBX: (1)6502200 Ext: 10641 | P32: SI | Q32: SI | R32: NA | S32: SI | T32: Pública clasificada | U32: C23382024-Tipo de información Pública clasificada-EL CONTRATISTA se obliga a prestarle a POSITIVA COMPAÑÍA DE SEGUROS S.A. los servicios profesionales, para conceptuar, acompañar y asesorar a la Compañía en el Macroproceso de Gestión Jurídica y Secretaría General y Jurídica.
A33: SECRETARIA GENERAL Y JURIDICA | B33: C23262024 | C33: 93141808 93141820 | D33: EL CONTRATISTA se obliga a prestarle a POSITIVA COMPAÑÍA DE SEGUROS S.A. los servicios profesionales especializados en Cobro coactivo para la Gestión de cobro de cartera y recobros por mora en aportes, mediante el proceso de Cobro Coactivo a favor de Positiva Compañía de Seguros S.A. de las prestaciones asistenciales y/o económicas por mora en aportes y de los aportes a la seguridad social en riesgos laborales que le adeuden a la Compañía, según la asignación de procesos que efectúe la Gerencia Jurídica. | E33: 2024-01-12 | F33: 1 | G33: 2024-12-31 | H33: 11.8 | I33: DIRECTA | K33: 192000000 | L33: 192000000 | M33: NO | N33: NO APLICA | O33: Gerencia de Abastecimiento Estratégico contratacion@positiva.gov.co PBX: (1)6502200 Ext: 10641 | P33: SI | Q33: SI | R33: NA | S33: SI | T33: Pública clasificada | U33: C23262024-Tipo de información Pública clasificada-EL CONTRATISTA se obliga a prestarle a POSITIVA COMPAÑÍA DE SEGUROS S.A. los servicios profesionales especializados en Cobro coactivo para la Gestión de cobro de cartera y recobros por mora en aportes, mediante el proceso de Cobro Coactivo a favor de Positiva Compañía de Seguros S.A. de las prestaciones asistenciales y/o económicas por mora en aportes y de los aportes a la seguridad social en riesgos laborales que le adeuden a la Compañía, según la asignación de procesos que efectúe la Gerencia Jurídica.
A34: SECRETARIA GENERAL Y JURIDICA | B34: C23212024 | C34: 93141808 93141821 | D34: EL CONTRATISTA se compromete con POSITIVA COMPAÑÍA DE SEGUROS S.A. a Prestar servicios profesionales para que acompañe y represente jurídicamente a laCompañía en los procesos en que sea parte activa o pasiva, para que atienda audienciasde conciliación judicial, prejudicial y extrajudicial en los procesos en que sea parte la entidad. | E34: 2024-01-12 | F34: 1 | G34: 2024-12-31 | H34: 11.8 | I34: DIRECTA | K34: 361929708 | L34: 361929708 | M34: NO | N34: NO APLICA | O34: Gerencia de Abastecimiento Estratégico contratacion@positiva.gov.co PBX: (1)6502200 Ext: 10641 | P34: SI | Q34: SI | R34: NA | S34: SI | T34: Pública clasificada | U34: C23212024-Tipo de información Pública clasificada-EL CONTRATISTA se compromete con POSITIVA COMPAÑÍA DE SEGUROS S.A. a Prestar servicios profesionales para que acompañe y represente jurídicamente a laCompañía en los procesos en que sea parte activa o pasiva, para que atienda audienciasde conciliación judicial, prejudicial y extrajudicial en los procesos en que sea parte la entidad.
A35: SECRETARIA GENERAL Y JURIDICA | B35: C05232024 C05242024 C05832024 | C35: 93141808 93141822 | D35: EL CONTRATISTA, se compromete con POSITIVA COMPAÑÍA SE SEGUROS S.A a la prestación del SERVICIO DE SOPORTE Y MANTENIMIENTO CORRECTIVO, ADAPTATIVO Y EVOLUTIVO QUE PERMITA CUBRIR NECESIDADES FUNCIONALES Y NO FUNCIONALES DEL APLICATIVO DE AUTOMATIZACIÓN DE RECAUDO, LA INTERFAZ SAP - SISE Y BICIBLES, RECURSO BPO Y EL SOPORTE Y LA SUSCRIPCIÓN AL SERVICIO CLOUD - AMAZON WEB SERVICES, INSTANCIA T2.XLARGE PARA UN SERVIDOR VIRTUAL EN AWS PARA EL SISTEMA DE INFORMACIÓN BICIBLES Y SU CORRESPONDIENTE SOPORTE. | E35: 2024-01-12 | F35: 1 | G35: 2024-12-31 | H35: 11.8 | I35: DIRECTA | K35: 375264942 | L35: 375264942 | M35: NO | N35: NO APLICA | O35: Gerencia de Abastecimiento Estratégico contratacion@positiva.gov.co PBX: (1)6502200 Ext: 10641 | P35: SI | Q35: SI | R35: NA | S35: SI | T35: Pública clasificada | U35: C05232024 C05242024 C05832024 -Tipo de información Pública clasificada-EL CONTRATISTA, se compromete con POSITIVA COMPAÑÍA SE SEGUROS S.A a la prestación del SERVICIO DE SOPORTE Y MANTENIMIENTO CORRECTIVO, ADAPTATIVO Y EVOLUTIVO QUE PERMITA CUBRIR NECESIDADES FUNCIONALES Y NO FUNCIONALES DEL APLICATIVO DE AUTOMATIZACIÓN DE RECAUDO, LA INTERFAZ SAP - SISE Y BICIBLES, RECURSO BPO Y EL SOPORTE Y LA SUSCRIPCIÓN AL SERVICIO CLOUD - AMAZON WEB SERVICES, INSTANCIA T2.XLARGE PARA UN SERVIDOR VIRTUAL EN AWS PARA EL SISTEMA DE INFORMACIÓN BICIBLES Y SU CORRESPONDIENTE SOPORTE.
A36: FINANCIERA Y ADMINISTRATIVA | B36: C56252024 | C36: 93141808 93141823 | D36: EL CONTRATISTA, se compromete con POSITIVA COMPAÑÍA DE SEGUROS S.A., a la prestación del servicio de administración del EDIFICIO TORRE POSITIVA – PROPIEDAD HORIZONTAL de propiedad de POSITIVA COMPAÑÍA DE SEGUROS S.A., el cual se encuentra sometido al Régimen de Propiedad Horizontal establecido en la Escritura Pública No. 0954 del 16 de abril del 2013 de la Notaria 39 de Bogotá y en la cual funciona la casa matriz de POSITIVA, para garantizar su manejo, cuidado y mantenimiento. | E36: 2024-01-15 | F36: 1 | G36: 2024-05-31 | H36: 4.566666667 | I36: DIRECTA | K36: 145635165 | L36: 97090110 | M36: SI | N36: APROBADAS | O36: Gerencia de Abastecimiento Estratégico contratacion@positiva.gov.co PBX: (1)6502200 Ext: 10641 | P36: SI | Q36: SI | R36: NA | S36: SI | T36: Pública clasificada | U36: C56252024-Tipo de información Pública clasificada-EL CONTRATISTA, se compromete con POSITIVA COMPAÑÍA DE SEGUROS S.A., a la prestación del servicio de administración del EDIFICIO TORRE POSITIVA – PROPIEDAD HORIZONTAL de propiedad de POSITIVA COMPAÑÍA DE SEGUROS S.A., el cual se encuentra sometido al Régimen de Propiedad Horizontal establecido en la Escritura Pública No. 0954 del 16 de abril del 2013 de la Notaria 39 de Bogotá y en la cual funciona la casa matriz de POSITIVA, para garantizar su manejo, cuidado y mantenimiento.
A37: PROMOCION Y PREVENCION | B37: C75052024 | C37: 93141808 93141824 | D37: EL CONTRATISTA, se compromete con POSITIVA COMPAÑÍA DE SEGUROS S.A., a la prestación de servicios de Promoción y Prevención, para realizar actividades de, asesoría, asistencia técnica y de formación en Seguridad y Salud en el Trabajo, con base en los Programas de la Estrategia POSITIVA CREA del Modelo de Gestión POSITIVA SUMA en PLAN BASICO, Estructura Empresarial, Preparación y Atención de Emergencias, Investigación de Incidentes y Accidentes de Trabajo, Prevención y Protección Colectiva e Individual, PLAN AVANZADO, Programa de Gestión para el Control de Incidentes y Accidentes de Trabajo PLAN DE GESTION INTEGRAL, Sistemas Integrados de Gestión, de la estrategia CREA, para la atención de empresas en la modalidad de atención de Planes GRAN EMPRESA, afiliadas a la Compañía en la Sucursal Antioquia Coordinadora y Oficina Chocó. | E37: 2024-01-16 | F37: 1 | G37: 2024-12-31 | H37: 11.66666667 | I37: DIRECTA | K37: 400000000 | L37: 400000000 | M37: NO | N37: NO APLICA | O37: Gerencia de Abastecimiento Estratégico contratacion@positiva.gov.co PBX: (1)6502200 Ext: 10641 | P37: SI | Q37: SI | R37: NA | S37: SI | T37: Pública clasificada | U37: C75052024-Tipo de información Pública clasificada-EL CONTRATISTA, se compromete con POSITIVA COMPAÑÍA DE SEGUROS S.A., a la prestación de servicios de Promoción y Prevención, para realizar actividades de, asesoría, asistencia técnica y de formación en Seguridad y Salud en el Trabajo, con base en los Programas de la Estrategia POSITIVA CREA del Modelo de Gestión POSITIVA SUMA en PLAN BASICO, Estructura Empresarial, Preparación y Atención de Emergencias, Investigación de Incidentes y Accidentes de Trabajo, Prevención y Protección Colectiva e Individual, PLAN AVANZADO, Programa de Gestión para el Control de Incidentes y Accidentes de Trabajo PLAN DE GESTION INTEGRAL, Sistemas Integrados de Gestión, de la estrategia CREA, para la atención de empresas en la modalidad de atención de Planes GRAN EMPRESA, afiliadas a la Compañía en la Sucursal Antioquia Coordinadora y Oficina Chocó.
A38: SECRETARIA GENERAL Y JURIDICA | B38: C23202024 | C38: 93141808 93141825 | D38: EL CONTRATISTA se obliga a prestarle a POSITIVA COMPAÑÍA DE SEGUROS S.A. los servicios profesionales como abogado especializado en derecho comercial. | E38: 2024-01-15 | F38: 1 | G38: 2024-12-31 | H38: 11.7 | I38: DIRECTA | K38: 384000000 | L38: 384000000 | M38: NO | N38: NO APLICA | O38: Gerencia de Abastecimiento Estratégico contratacion@positiva.gov.co PBX: (1)6502200 Ext: 10641 | P38: SI | Q38: SI | R38: NA | S38: SI | T38: Pública clasificada | U38: C23202024-Tipo de información Pública clasificada-EL CONTRATISTA se obliga a prestarle a POSITIVA COMPAÑÍA DE SEGUROS S.A. los servicios profesionales como abogado especializado en derecho comercial.
A39: SECRETARIA GENERAL Y JURIDICA | B39: C23232024 | C39: 93141808 93141826 | D39: EL CONTRATISTA se obliga a prestarle a POSITIVA COMPAÑÍA DE SEGUROS S.A. los servicios profesionales especializados en derecho constitucional, para apoyo en la atención de acciones de tutelas y desacatos y sanciones, formular estrategias, modelo y Plan de Mejora de acciones de tutelas y procesos judiciales en contra de la compañía, elaboración de conceptos, capacitaciones, representación judicial y todos aquellos que resulten necesarios para el cabal desarrollo de las actividades asignadas en cumplimiento del objeto contractual. | E39: 2024-01-15 | F39: 1 | G39: 2024-12-31 | H39: 11.7 | I39: DIRECTA | K39: 336000000 | L39: 336000000 | M39: NO | N39: NO APLICA | O39: Gerencia de Abastecimiento Estratégico contratacion@positiva.gov.co PBX: (1)6502200 Ext: 10641 | P39: SI | Q39: SI | R39: NA | S39: SI | T39: Pública clasificada | U39: C23232024-Tipo de información Pública clasificada-EL CONTRATISTA se obliga a prestarle a POSITIVA COMPAÑÍA DE SEGUROS S.A. los servicios profesionales especializados en derecho constitucional, para apoyo en la atención de acciones de tutelas y desacatos y sanciones, formular estrategias, modelo y Plan de Mejora de acciones de tutelas y procesos judiciales en contra de la compañía, elaboración de conceptos, capacitaciones, representación judicial y todos aquellos que resulten necesarios para el cabal desarrollo de las actividades asignadas en cumplimiento del objeto contractual.
A40: TECNICA | B40: N/A | C40: 93141808 93141827 | D40: El CONTRATISTA se obliga con POSITIVA a la prestación de los servicios de salud para los asegurados y/o afiliados a POSITIVA, que accedan a los servicios habilitados del CONTRATISTA en calidad de asegurados, a los ramos: Administración de Riesgos Laborales (ARL -por causa exclusiva de un accidente de trabajo, una enfermedad profesional), Accidentes Personales (AP Educativo Generación Positiva, AP Colectivos, AP Corto Plazo, AP Individual), Vida Individual, Vida Grupo, Planes de Salud (complicaciones quirúrgicas, de cirugía estética y bariátrica) y demás Ramos de Seguros autorizados a Positiva, encontrándose excluidos del presente contrato los servicios y todas aquellas actividades, procedimientos e intervenciones que no tengan por objeto contribuir al diagnóstico, tratamiento o rehabilitación de la patología derivada del siniestro o los servicios considerados como experimentales, cosméticos y suntuarios. Para tal efecto, POSITIVA se compromete a pagarle al CONTRATISTA el valor de los servicios de salud, en caso de la atención de: 1. CONSULTA EXTERNA Demás servicios que se habiliten durante la vigencia del contrato previa concertación económica entre las partes | E40: 2024-01-11 | F40: 1 | G40: 2026-01-11 | H40: 24.36666667 | I40: DIRECTA | K40: 0 | L40: INDETERMINADO | M40: NO | N40: NO APLICA | O40: Gerencia de Abastecimiento Estratégico contratacion@positiva.gov.co PBX: (1)6502200 Ext: 10641 | P40: SI | Q40: SI | R40: NA | S40: SI | T40: Pública clasificada | U40: N/A-Tipo de información Pública clasificada-El CONTRATISTA se obliga con POSITIVA a la prestación de los servicios de salud para los asegurados y/o afiliados a POSITIVA, que accedan a los servicios habilitados del CONTRATISTA en calidad de asegurados, a los ramos: Administración de Riesgos Laborales (ARL -por causa exclusiva de un accidente de trabajo, una enfermedad profesional), Accidentes Personales (AP Educativo Generación Positiva, AP Colectivos, AP Corto Plazo, AP Individual), Vida Individual, Vida Grupo, Planes de Salud (complicaciones quirúrgicas, de cirugía estética y bariátrica) y demás Ramos de Seguros autorizados a Positiva, encontrándose excluidos del presente contrato los servicios y todas aquellas actividades, procedimientos e intervenciones que no tengan por objeto contribuir al diagnóstico, tratamiento o rehabilitación de la patología derivada del siniestro o los servicios considerados como experimentales, cosméticos y suntuarios. Para tal efecto, POSITIVA se compromete a pagarle al CONTRATISTA el valor de los servicios de salud, en caso de la atención de: 1. CONSULTA EXTERNA Demás servicios que se habiliten durante la vigencia del contrato previa concertación económica entre las partes
A41: PROMOCION Y PREVENCION | B41: C80072024 | C41: 93141808 93141828 | D41: EL CONTRATISTA, se compromete con POSITIVA COMPAÑÍA DE SEGUROS S.A., a realizar la Prestación de servicios de promoción y prevención para implementar, mejorar y/o mantener las actividades de asesoría, asistencia técnica y de formación en Seguridad y Salud en el Trabajo, bajo el lineamiento de los programas de la Estrategia CREA del Modelo de Gestión Positiva SUMA, en PLAN BASICO: Programa Estructura Empresarial, Preparación y atención de emergencias, Programas Protección Colectiva e Individual, Programa Promoción y prevención en Salud, Programa de Investigación de incidentes y accidentes de trabajo; PLAN AVANZADO: Programa Gestión para el Control de incidentes y accidentes de trabajo, programa de Gestión en la Prevención de la Enfermedad Laboral; PLAN ESPECIALIZADO: Programas de Vigilancia Epidemiológica; PLAN GESTION INTEGRAL: Programas Sistema de Gestión para la atención de la empresa VARISUR SAS afiliada a POSITIVA COMPAÑÍA DE SEGUROS en la Sucursal Huila Zona Valle. | E41: 2024-01-16 | F41: 1 | G41: 2024-11-30 | H41: 10.63333333 | I41: DIRECTA | K41: 750000000 | L41: 500000000 | M41: SI | N41: APROBADAS | O41: Gerencia de Abastecimiento Estratégico contratacion@positiva.gov.co PBX: (1)6502200 Ext: 10641 | P41: SI | Q41: SI | R41: NA | S41: SI | T41: Pública clasificada | U41: C80072024-Tipo de información Pública clasificada-EL CONTRATISTA, se compromete con POSITIVA COMPAÑÍA DE SEGUROS S.A., a realizar la Prestación de servicios de promoción y prevención para implementar, mejorar y/o mantener las actividades de asesoría, asistencia técnica y de formación en Seguridad y Salud en el Trabajo, bajo el lineamiento de los programas de la Estrategia CREA del Modelo de Gestión Positiva SUMA, en PLAN BASICO: Programa Estructura Empresarial, Preparación y atención de emergencias, Programas Protección Colectiva e Individual, Programa Promoción y prevención en Salud, Programa de Investigación de incidentes y accidentes de trabajo; PLAN AVANZADO: Programa Gestión para el Control de incidentes y accidentes de trabajo, programa de Gestión en la Prevención de la Enfermedad Laboral; PLAN ESPECIALIZADO: Programas de Vigilancia Epidemiológica; PLAN GESTION INTEGRAL: Programas Sistema de Gestión para la atención de la empresa VARISUR SAS afiliada a POSITIVA COMPAÑÍA DE SEGUROS en la Sucursal Huila Zona Valle.
A42: SECRETARIA GENERAL Y JURIDICA | B42: N/A | C42: 93141808 93141829 | D42: EL CONTRATISTA se compromete con POSITIVA COMPAÑÍA DE SEGUROS S.A. a la Prestación de servicios profesionales jurídicos para representar los intereses de la Compañía en los procesos judiciales asignados, así como las audiencias de conciliación judicial, prejudicial, en los procesos en que sea parte la Entidad en calidad de demandante o demandado, en las Sucursales de Arauca, Casanare, Boyacá, Santander y Norte de Santander. Igualmente, para rendir conceptos jurídicos en las áreas especializadas a contratar y prestar la asesoría jurídica que se le solicite | E42: 2024-01-16 | F42: 1 | G42: 2024-12-31 | H42: 11.66666667 | I42: DIRECTA | K42: 340000000 | L42: 340000000 | M42: NO | N42: NO APLICA | O42: Gerencia de Abastecimiento Estratégico contratacion@positiva.gov.co PBX: (1)6502200 Ext: 10641 | P42: SI | Q42: SI | R42: NA | S42: SI | T42: Pública clasificada | U42: N/A-Tipo de información Pública clasificada-EL CONTRATISTA se compromete con POSITIVA COMPAÑÍA DE SEGUROS S.A. a la Prestación de servicios profesionales jurídicos para representar los intereses de la Compañía en los procesos judiciales asignados, así como las audiencias de conciliación judicial, prejudicial, en los procesos en que sea parte la Entidad en calidad de demandante o demandado, en las Sucursales de Arauca, Casanare, Boyacá, Santander y Norte de Santander. Igualmente, para rendir conceptos jurídicos en las áreas especializadas a contratar y prestar la asesoría jurídica que se le solicite
A43: FINANCIERA Y ADMINISTRATIVA | B43: C56152024 | C43: 93141808 93141830 | D43: La CONTRATISTA se obliga a favor de POSITIVA a PRESTARLE LOS SERVICIOS PROFESIONALES PARA APOYAR EL PROCESO DE REVISIÓN Y PROYECCIÓN DE DOCUMENTOS PRECONTRACTUALES, CONTRACTUALES Y POSCONTRACTUALES A CARGO DE LA GERENCIA DE ABASTECIMIENTO ESTRATÉGICO DE LA VICEPRESIDENCIA FINANCIERA Y ADMINISTRATIVA DE POSITIVA COMPAÑÍA DE SEGUROS. | E43: 2024-01-16 | F43: 1 | G43: 2024-12-31 | H43: 11.66666667 | I43: DIRECTA | K43: 66000000 | L43: 66000000 | M43: NO | N43: NO APLICA | O43: Gerencia de Abastecimiento Estratégico contratacion@positiva.gov.co PBX: (1)6502200 Ext: 10641 | P43: SI | Q43: SI | R43: NA | S43: SI | T43: Pública clasificada | U43: C56152024-Tipo de información Pública clasificada-La CONTRATISTA se obliga a favor de POSITIVA a PRESTARLE LOS SERVICIOS PROFESIONALES PARA APOYAR EL PROCESO DE REVISIÓN Y PROYECCIÓN DE DOCUMENTOS PRECONTRACTUALES, CONTRACTUALES Y POSCONTRACTUALES A CARGO DE LA GERENCIA DE ABASTECIMIENTO ESTRATÉGICO DE LA VICEPRESIDENCIA FINANCIERA Y ADMINISTRATIVA DE POSITIVA COMPAÑÍA DE SEGUROS.
A44: FINANCIERA Y ADMINISTRATIVA | B44: C56092024 | C44: 93141808 93141831 | D44: El CONTRATISTA se obliga a favor de POSITIVA a PRESTAR LOS SERVICIOS PROFESIONALES PARA EL APOYO Y ACOMPAÑAMIENTO JURÍDICO DE LOS DIFERENTES PROCESOS, ACTIVIDADES Y GESTIONES A CARGO DE LA GERENCIA DE ABASTECIMIENTO ESTRATÉGICO DE LA VICEPRESIDENCIA FINANCIERA Y ADMINISTRATIVA DE POSITIVA - COMPAÑÍA DE SEGUROS. | E44: 2024-01-16 | F44: 1 | G44: 2024-12-31 | H44: 11.66666667 | I44: DIRECTA | K44: 72000000 | L44: 72000000 | M44: NO | N44: NO APLICA | O44: Gerencia de Abastecimiento Estratégico contratacion@positiva.gov.co PBX: (1)6502200 Ext: 10641 | P44: SI | Q44: SI | R44: NA | S44: SI | T44: Pública clasificada | U44: C56092024-Tipo de información Pública clasificada-El CONTRATISTA se obliga a favor de POSITIVA a PRESTAR LOS SERVICIOS PROFESIONALES PARA EL APOYO Y ACOMPAÑAMIENTO JURÍDICO DE LOS DIFERENTES PROCESOS, ACTIVIDADES Y GESTIONES A CARGO DE LA GERENCIA DE ABASTECIMIENTO ESTRATÉGICO DE LA VICEPRESIDENCIA FINANCIERA Y ADMINISTRATIVA DE POSITIVA - COMPAÑÍA DE SEGUROS.
A45: SECRETARIA GENERAL Y JURIDICA | B45: N/A | C45: 93141808 93141832 | D45: EL CONTRATISTA, se compromete con POSITIVA COMPAÑÍA DE SEGUROS S.A., a Representar los intereses de la Compañía en los procesos judiciales asignados, así como las audiencias de conciliación judicial, prejudicial, en los procesos en que sea parte la Entidad en calidad de demandante o demandado, en las Sucursales de Bogotá, Boyacá, Meta, Caquetá, Huila, Putumayo, Tolima, San Andrés, Guainía, Vichada, Guaviare, Amazonas, Vaupés y Cundinamarca | E45: 2024-01-17 | F45: 1 | G45: 2024-12-31 | H45: 11.63333333 | I45: DIRECTA | K45: 590000000 | L45: 590000000 | M45: NO | N45: NO APLICA | O45: Gerencia de Abastecimiento Estratégico contratacion@positiva.gov.co PBX: (1)6502200 Ext: 10641 | P45: SI | Q45: SI | R45: NA | S45: SI | T45: Pública clasificada | U45: N/A-Tipo de información Pública clasificada-EL CONTRATISTA, se compromete con POSITIVA COMPAÑÍA DE SEGUROS S.A., a Representar los intereses de la Compañía en los procesos judiciales asignados, así como las audiencias de conciliación judicial, prejudicial, en los procesos en que sea parte la Entidad en calidad de demandante o demandado, en las Sucursales de Bogotá, Boyacá, Meta, Caquetá, Huila, Putumayo, Tolima, San Andrés, Guainía, Vichada, Guaviare, Amazonas, Vaupés y Cundinamarca
A46: FINANCIERA Y ADMINISTRATIVA | B46: C56142024 | C46: 93141808 93141833 | D46: EL CONTRATISTA se obliga a favor de Positiva Compañía de Seguros S.A. a prestar los servicios profesionales de abogado, brindando apoyo a la gestión y acompañamiento para la atención de los diferentes procesos, actividades y gestiones contractuales de Positiva Compañía de Seguros. | E46: 2024-01-16 | F46: 1 | G46: 2024-12-31 | H46: 11.66666667 | I46: DIRECTA | K46: 122723844 | L46: 122723844 | M46: NO | N46: NO APLICA | O46: Gerencia de Abastecimiento Estratégico contratacion@positiva.gov.co PBX: (1)6502200 Ext: 10641 | P46: SI | Q46: SI | R46: NA | S46: SI | T46: Pública clasificada | U46: C56142024-Tipo de información Pública clasificada-EL CONTRATISTA se obliga a favor de Positiva Compañía de Seguros S.A. a prestar los servicios profesionales de abogado, brindando apoyo a la gestión y acompañamiento para la atención de los diferentes procesos, actividades y gestiones contractuales de Positiva Compañía de Seguros.
A47: PROMOCION Y PREVENCION | B47: C75012024 | C47: 93141808 93141834 | D47: EL CONTRATISTA, se compromete con POSITIVA COMPAÑÍA DE SEGUROS S.A., a la prestación de servicios de promoción y prevención para implementar, mejorar y/o mantener actividades de asesoría técnica del Sistema de Gestión de Seguridad y Salud en Trabajo, con base en los Programas de la estrategia POSITIVA CREA del Modelo de Gestión POSITIVA SUMA en PLAN BASICO (programa estructura empresarial, programa promoción y prevención en salud, programa de investigación de incidentes y accidentes de trabajo, programa de prevención y protección colectiva e individual) PLAN AVANZADO (programa de gestión prevención de la enfermedad profesional, programa gestión para el control de incidentes y accidentes de trabajo) PLAN ESPECIALIZADO (programas de vigilancia epidemiológico) de las empresas afiliadas a POSITIVA COMPAÑÍA DE SEGUROS, en la modalidad de atención de Planes GRAN EMPRESA para la Sucursal Antioquia Coordinadora y Punto de Atención Chocó. | E47: 2024-01-17 | F47: 1 | G47: 2024-12-31 | H47: 11.63333333 | I47: DIRECTA | K47: 400000000 | L47: 400000000 | M47: NO | N47: NO APLICA | O47: Gerencia de Abastecimiento Estratégico contratacion@positiva.gov.co PBX: (1)6502200 Ext: 10641 | P47: SI | Q47: SI | R47: NA | S47: SI | T47: Pública clasificada | U47: C75012024-Tipo de información Pública clasificada-EL CONTRATISTA, se compromete con POSITIVA COMPAÑÍA DE SEGUROS S.A., a la prestación de servicios de promoción y prevención para implementar, mejorar y/o mantener actividades de asesoría técnica del Sistema de Gestión de Seguridad y Salud en Trabajo, con base en los Programas de la estrategia POSITIVA CREA del Modelo de Gestión POSITIVA SUMA en PLAN BASICO (programa estructura empresarial, programa promoción y prevención en salud, programa de investigación de incidentes y accidentes de trabajo, programa de prevención y protección colectiva e individual) PLAN AVANZADO (programa de gestión prevención de la enfermedad profesional, programa gestión para el control de incidentes y accidentes de trabajo) PLAN ESPECIALIZADO (programas de vigilancia epidemiológico) de las empresas afiliadas a POSITIVA COMPAÑÍA DE SEGUROS, en la modalidad de atención de Planes GRAN EMPRESA para la Sucursal Antioquia Coordinadora y Punto de Atención Chocó.
A48: PROMOCION Y PREVENCION | B48: C86052024 | C48: 93141808 93141835 | D48: EL CONTRATISTA, se compromete con POSITIVA COMPAÑÍA DE SEGUROS S.A., a la Prestación de servicios profesionales para la realización de evaluaciones médicas ocupacionales, pruebas complementarias, examen médico laboral, post incapacidad, reubicación laboral, valoración de ingreso a la brigada de emergencias, actividades deportivas, análisis de puesto de trabajo, exámenes médicos psicosensométricos, telemedicina y vacunación para el cliente CONSEJO NACIONAL ELECTORAL. | E48: 2024-01-17 | F48: 1 | G48: 2024-02-28 | H48: 1.4 | I48: DIRECTA | K48: 103952112 | L48: 103952112 | M48: NO | N48: NO APLICA | O48: Gerencia de Abastecimiento Estratégico contratacion@positiva.gov.co PBX: (1)6502200 Ext: 10641 | P48: SI | Q48: SI | R48: NA | S48: SI | T48: Pública clasificada | U48: C86052024-Tipo de información Pública clasificada-EL CONTRATISTA, se compromete con POSITIVA COMPAÑÍA DE SEGUROS S.A., a la Prestación de servicios profesionales para la realización de evaluaciones médicas ocupacionales, pruebas complementarias, examen médico laboral, post incapacidad, reubicación laboral, valoración de ingreso a la brigada de emergencias, actividades deportivas, análisis de puesto de trabajo, exámenes médicos psicosensométricos, telemedicina y vacunación para el cliente CONSEJO NACIONAL ELECTORAL.
A49: SECRETARIA GENERAL Y JURIDICA | B49: N/A | C49: 93141808 93141836 | D49: EL CONTRATISTA, se compromete con POSITIVA COMPAÑÍA DE SEGUROS S.A., a Prestar servicios profesionales especializados en derecho laboral y seguridad social o de seguros, para defender los intereses de Positiva en los procesos judiciales asignados, así como las audiencias de conciliación judicial, prejudicial y extrajudicial en los procesos en que sea parte la Entidad, en la Regional Occidente: Sucursales de CALDAS, RISARALDA, VALLE, NARIÑO, CAUCA, QUINDIO, Igualmente para rendir conceptos jurídicos en las áreas especializadas a contratar y prestar la asesoría jurídica que se le solicite. | E49: 2024-01-17 | F49: 1 | G49: 2024-12-31 | H49: 11.63333333 | I49: DIRECTA | K49: 450000000 | L49: 450000000 | M49: NO | N49: NO APLICA | O49: Gerencia de Abastecimiento Estratégico contratacion@positiva.gov.co PBX: (1)6502200 Ext: 10641 | P49: SI | Q49: SI | R49: NA | S49: SI | T49: Pública clasificada | U49: N/A-Tipo de información Pública clasificada-EL CONTRATISTA, se compromete con POSITIVA COMPAÑÍA DE SEGUROS S.A., a Prestar servicios profesionales especializados en derecho laboral y seguridad social o de seguros, para defender los intereses de Positiva en los procesos judiciales asignados, así como las audiencias de conciliación judicial, prejudicial y extrajudicial en los procesos en que sea parte la Entidad, en la Regional Occidente: Sucursales de CALDAS, RISARALDA, VALLE, NARIÑO, CAUCA, QUINDIO, Igualmente para rendir conceptos jurídicos en las áreas especializadas a contratar y prestar la asesoría jurídica que se le solicite.
A50: PROMOCION Y PREVENCION | B50: C75072024 | C50: 93141808 93141837 | D50: EL CONTRATISTA, se compromete con POSITIVA COMPAÑÍA DE SEGUROS S.A., a la prestación de servicios de Promoción y Prevención, para realizar actividades de, asesoría, asistencia técnica y de formación en Seguridad y Salud en el Trabajo, con base en los Programas de la Estrategia POSITIVA CREA del Modelo de Gestión POSITIVA SUMA en PLAN BASICO, Estructura Empresarial, Preparación y Atención de Emergencias, Investigación de Incidentes y Accidentes de Trabajo, Prevención y Protección Colectiva e Individual, PLAN AVANZADO, Programa de Gestión para el Control de Incidentes y Accidentes de Trabajo PLAN DE GESTION INTEGRAL, Sistemas Integrados de Gestión, de la estrategia CREA, para atender las solicitudes de la Gerencia Sucursal Antioquia Coordinadora en la modalidad de atención Planes Gran Empresa | E50: 2024-01-17 | F50: 1 | G50: 2024-12-31 | H50: 11.63333333 | I50: DIRECTA | K50: 200000000 | L50: 200000000 | M50: NO | N50: NO APLICA | O50: Gerencia de Abastecimiento Estratégico contratacion@positiva.gov.co PBX: (1)6502200 Ext: 10641 | P50: SI | Q50: SI | R50: NA | S50: SI | T50: Pública clasificada | U50: C75072024-Tipo de información Pública clasificada-EL CONTRATISTA, se compromete con POSITIVA COMPAÑÍA DE SEGUROS S.A., a la prestación de servicios de Promoción y Prevención, para realizar actividades de, asesoría, asistencia técnica y de formación en Seguridad y Salud en el Trabajo, con base en los Programas de la Estrategia POSITIVA CREA del Modelo de Gestión POSITIVA SUMA en PLAN BASICO, Estructura Empresarial, Preparación y Atención de Emergencias, Investigación de Incidentes y Accidentes de Trabajo, Prevención y Protección Colectiva e Individual, PLAN AVANZADO, Programa de Gestión para el Control de Incidentes y Accidentes de Trabajo PLAN DE GESTION INTEGRAL, Sistemas Integrados de Gestión, de la estrategia CREA, para atender las solicitudes de la Gerencia Sucursal Antioquia Coordinadora en la modalidad de atención Planes Gran Empresa
A51: PROMOCION Y PREVENCION | B51: C75282024 | C51: 93141808 93141838 | D51: Prestar servicios de promoción y prevención para implementar, mejorar y/o manteneractividades de asesoría y asistencia técnica del Sistema de Gestión de Seguridad y Saluden Trabajo, bajo el lineamiento de los Programas del PLAN BASICO, EstructuraEmpresarial, Preparación y Atención de Emergencias, Promoción y Prevención en Salud,Investigación de Incidentes y Accidentes de Trabajo, Prevención y Protección Colectiva eIndividual, PLAN AVANZADO, Gestión en la Prevención de la Enfermedad Laboral, Gestiónen la Prevención de la Accidentalidad y PLAN ESPECIALIZADO, Sistemas deVigilanciaEpidemiológica, PLAN DE GESTION INTEGRAL, Sistemas Integrados de Gestión, de laestrategia CREA, para la atención de empresas en la modalidad de atención GRAN EMPRESA, afiliadas a la Compañía en la Sucursal Quindío de la Zona Antioquia, primordialmente empresas de los sectores: Manufactura y de actividades de administración y apoyo empresarial. | E51: 2024-01-17 | F51: 1 | G51: 2024-11-30 | H51: 10.6 | I51: DIRECTA | K51: 220000000 | L51: 220000000 | M51: NO | N51: NO APLICA | O51: Gerencia de Abastecimiento Estratégico contratacion@positiva.gov.co PBX: (1)6502200 Ext: 10641 | P51: SI | Q51: SI | R51: NA | S51: SI | T51: Pública clasificada | U51: C75282024-Tipo de información Pública clasificada-Prestar servicios de promoción y prevención para implementar, mejorar y/o manteneractividades de asesoría y asistencia técnica del Sistema de Gestión de Seguridad y Saluden Trabajo, bajo el lineamiento de los Programas del PLAN BASICO, EstructuraEmpresarial, Preparación y Atención de Emergencias, Promoción y Prevención en Salud,Investigación de Incidentes y Accidentes de Trabajo, Prevención y Protección Colectiva eIndividual, PLAN AVANZADO, Gestión en la Prevención de la Enfermedad Laboral, Gestiónen la Prevención de la Accidentalidad y PLAN ESPECIALIZADO, Sistemas deVigilanciaEpidemiológica, PLAN DE GESTION INTEGRAL, Sistemas Integrados de Gestión, de laestrategia CREA, para la atención de empresas en la modalidad de atención GRAN EMPRESA, afiliadas a la Compañía en la Sucursal Quindío de la Zona Antioquia, primordialmente empresas de los sectores: Manufactura y de actividades de administración y apoyo empresarial.
A52: PROMOCION Y PREVENCION | B52: C77032024 | C52: 93141808 93141839 | D52: Prestación de servicios de Promoción y Prevención para implementar, mejorar y/o mantener actividades de asesoría técnica del Sistema de Gestión de Seguridad y Salud en Trabajo, con base en los Programas de la Estrategia POSITIVA CREA del Modelo de Gestión POSITIVA SUMA en: PLAN BASICO - Programa de Prevención y Protección Colectiva e Individual, Programa de Promoción y Prevención en Salud y Programa de Investigación de Incidentes y Accidentes de Trabajo; PLAN AVANZADO – Programa Gestión para el Control de Incidentes y Accidentes de Trabajo, Programa Gestión en la Prevención de Enfermedades Profesionales; PLAN ESPECIALIZADO - Programas de Vigilancia Epidemiológico; PLAN GESTION INTEGRAL - Sistemas de Gestión Integral, de acuerdo con los Planes de Trabajo concertados con la empresas y cargados en el aplicativo GESTPOS, para empresas afiliadas a Positiva Compañía de Seguros especialmente para empresas en la modalidad de atención Gran Empresa de los departamentos del Meta y Guaviare como parte de la zona de Influencia de la sucursal Meta. | E52: 2024-01-18 | F52: 1 | G52: 2024-12-31 | H52: 11.6 | I52: DIRECTA | K52: 203925163 | L52: 171113883 | M52: SI | N52: APROBADAS | O52: Gerencia de Abastecimiento Estratégico contratacion@positiva.gov.co PBX: (1)6502200 Ext: 10641 | P52: SI | Q52: SI | R52: NA | S52: SI | T52: Pública clasificada | U52: C77032024-Tipo de información Pública clasificada-Prestación de servicios de Promoción y Prevención para implementar, mejorar y/o mantener actividades de asesoría técnica del Sistema de Gestión de Seguridad y Salud en Trabajo, con base en los Programas de la Estrategia POSITIVA CREA del Modelo de Gestión POSITIVA SUMA en: PLAN BASICO - Programa de Prevención y Protección Colectiva e Individual, Programa de Promoción y Prevención en Salud y Programa de Investigación de Incidentes y Accidentes de Trabajo; PLAN AVANZADO – Programa Gestión para el Control de Incidentes y Accidentes de Trabajo, Programa Gestión en la Prevención de Enfermedades Profesionales; PLAN ESPECIALIZADO - Programas de Vigilancia Epidemiológico; PLAN GESTION INTEGRAL - Sistemas de Gestión Integral, de acuerdo con los Planes de Trabajo concertados con la empresas y cargados en el aplicativo GESTPOS, para empresas afiliadas a Positiva Compañía de Seguros especialmente para empresas en la modalidad de atención Gran Empresa de los departamentos del Meta y Guaviare como parte de la zona de Influencia de la sucursal Meta.
A53: TECNICA | B53: C65382024 | C53: 93141808 93141840 | D53: EL CONTRATISTA se obliga a favor de Positiva Compañía de Seguros S.A. a Prestar servicios profesionales, brindando asesoría, apoyo y acompañamiento en los tramites precontractuales, contractuales y postcontractuales de los procesos a realizar por la Compañía al grupo de servicios definidos por la Vicepresidencia Técnica y la Gerencia Medica referentes a la red de prestadores de servicios de salud en el subproceso de Planeación del Modelo de atención integral del siniestro de Positiva Compañía de Seguros. | E53: 2024-01-18 | F53: 1 | G53: 2024-12-31 | H53: 11.6 | I53: DIRECTA | K53: 50400000 | L53: 50400000 | M53: NO | N53: NO APLICA | O53: Gerencia de Abastecimiento Estratégico contratacion@positiva.gov.co PBX: (1)6502200 Ext: 10641 | P53: SI | Q53: SI | R53: NA | S53: SI | T53: Pública clasificada | U53: C65382024-Tipo de información Pública clasificada-EL CONTRATISTA se obliga a favor de Positiva Compañía de Seguros S.A. a Prestar servicios profesionales, brindando asesoría, apoyo y acompañamiento en los tramites precontractuales, contractuales y postcontractuales de los procesos a realizar por la Compañía al grupo de servicios definidos por la Vicepresidencia Técnica y la Gerencia Medica referentes a la red de prestadores de servicios de salud en el subproceso de Planeación del Modelo de atención integral del siniestro de Positiva Compañía de Seguros.
A54: TECNICA | B54: C65322024 | C54: 93141808 93141841 | D54: EL CONTRATISTA se obliga a favor de Positiva Compañía de Seguros S.A. a prestar servicios profesionales y acompañamiento para el monitoreo del Ciclo de vida de los siniestros de ARL (AT – EL) identificando aquellos que presentan desviaciones durante la prestación de los servicios a cargo de la ARL Positiva Compañía de Seguros. | E54: 2024-01-17 | F54: 1 | G54: 2024-12-31 | H54: 11.63333333 | I54: DIRECTA | K54: 96000000 | L54: 96000000 | M54: NO | N54: NO APLICA | O54: Gerencia de Abastecimiento Estratégico contratacion@positiva.gov.co PBX: (1)6502200 Ext: 10641 | P54: SI | Q54: SI | R54: NA | S54: SI | T54: Pública clasificada | U54: C65322024-Tipo de información Pública clasificada-EL CONTRATISTA se obliga a favor de Positiva Compañía de Seguros S.A. a prestar servicios profesionales y acompañamiento para el monitoreo del Ciclo de vida de los siniestros de ARL (AT – EL) identificando aquellos que presentan desviaciones durante la prestación de los servicios a cargo de la ARL Positiva Compañía de Seguros.
A55: TECNICA | B55: C65362024 | C55: 93141808 93141842 | D55: EL CONTRATISTA se obliga a favor de Positiva Compañía de Seguros S.A. a prestar servicios de apoyo y acompañamiento en los tramitesprecontractuales, contractuales y postcontractuales de los procesos a realizar por la Compañía al grupo de servicios definidos por la Vicepresidencia Técnica y la Gerencia Medica referentes a la red de prestadores de servicios de salud en el subproceso de Planeación del Modelo de atención integral del siniestro de Positiva Compañía de Seguros. | E55: 2024-01-18 | F55: 1 | G55: 2024-12-31 | H55: 11.6 | I55: DIRECTA | K55: 43200000 | L55: 43200000 | M55: NO | N55: NO APLICA | O55: Gerencia de Abastecimiento Estratégico contratacion@positiva.gov.co PBX: (1)6502200 Ext: 10641 | P55: SI | Q55: SI | R55: NA | S55: SI | T55: Pública clasificada | U55: C65362024-Tipo de información Pública clasificada-EL CONTRATISTA se obliga a favor de Positiva Compañía de Seguros S.A. a prestar servicios de apoyo y acompañamiento en los tramitesprecontractuales, contractuales y postcontractuales de los procesos a realizar por la Compañía al grupo de servicios definidos por la Vicepresidencia Técnica y la Gerencia Medica referentes a la red de prestadores de servicios de salud en el subproceso de Planeación del Modelo de atención integral del siniestro de Positiva Compañía de Seguros.
A56: PROMOCION Y PREVENCION | B56: C83012024 | C56: 93141808 93141843 | D56: EL CONTRATISTA, se compromete para con POSITIVA COMPAÑÍA DE SEGUROS S.A, a la prestación de servicios de apoyo logístico para la ejecución de actividades de promoción y prevención enmarcadas en nuestras líneas de acción estratégica Positiva Comunica y Positiva Educa a Nivel Nacional. | E56: 2024-01-18 | F56: 1 | G56: 2024-03-30 | H56: 2.4 | I56: DIRECTA | K56: 6491291240 | L56: 6491291240 | M56: NO | N56: NO APLICA | O56: Gerencia de Abastecimiento Estratégico contratacion@positiva.gov.co PBX: (1)6502200 Ext: 10641 | P56: SI | Q56: SI | R56: NA | S56: SI | T56: Pública clasificada | U56: C83012024-Tipo de información Pública clasificada-EL CONTRATISTA, se compromete para con POSITIVA COMPAÑÍA DE SEGUROS S.A, a la prestación de servicios de apoyo logístico para la ejecución de actividades de promoción y prevención enmarcadas en nuestras líneas de acción estratégica Positiva Comunica y Positiva Educa a Nivel Nacional.
A57: TECNICA | B57: N/A | C57: 93141808 93141844 | D57: El CONTRATISTA se obliga con POSITIVA a la prestación de los servicios de salud para los asegurados y/o afiliados a POSITIVA, que accedan a los servicios habilitados del CONTRATISTA en calidad de asegurados, a los ramos: Administración de Riesgos Laborales (ARL -por causa exclusiva de un accidente de trabajo, una enfermedad profesional), Accidentes Personales (AP Educativo Generación Positiva, AP Colectivos, AP Corto Plazo, AP Individual), Vida Individual, Vida Grupo, Planes de Salud (complicaciones quirúrgicas, de cirugía estética y bariátrica), y demás Ramos de Seguros autorizados a Positiva, encontrándose excluidos del presente contrato los servicios y todas aquellas actividades, procedimientos e intervenciones que no tengan por objeto contribuir al diagnóstico, tratamiento o rehabilitación de la patología derivada del siniestro o los servicios considerados como experimentales, cosméticos y suntuarios. Para tal efecto, POSITIVA se compromete a pagarle al CONTRATISTA el valor de los servicios de salud, en caso de la atención de: 1. Cuidado Intermedio Adultos 2. Cuidado Intensivo Adultos 3. Procedimientos 4. Apoyo diagnóstico y complementación terapéutica 5. Medicamentos e insumos 6. Traslado Asistencial Demás servicios que se habiliten durante la vigencia del contrato previa concertación económica entre las partes. | E57: 2024-01-04 | F57: 1 | G57: 2026-01-04 | H57: 24.36666667 | I57: DIRECTA | K57: 0 | L57: INDETERMINADO | M57: NO | N57: NO APLICA | O57: Gerencia de Abastecimiento Estratégico contratacion@positiva.gov.co PBX: (1)6502200 Ext: 10641 | P57: SI | Q57: SI | R57: NA | S57: SI | T57: Pública clasificada | U57: N/A-Tipo de información Pública clasificada-El CONTRATISTA se obliga con POSITIVA a la prestación de los servicios de salud para los asegurados y/o afiliados a POSITIVA, que accedan a los servicios habilitados del CONTRATISTA en calidad de asegurados, a los ramos: Administración de Riesgos Laborales (ARL -por causa exclusiva de un accidente de trabajo, una enfermedad profesional), Accidentes Personales (AP Educativo Generación Positiva, AP Colectivos, AP Corto Plazo, AP Individual), Vida Individual, Vida Grupo, Planes de Salud (complicaciones quirúrgicas, de cirugía estética y bariátrica), y demás Ramos de Seguros autorizados a Positiva, encontrándose excluidos del presente contrato los servicios y todas aquellas actividades, procedimientos e intervenciones que no tengan por objeto contribuir al diagnóstico, tratamiento o rehabilitación de la patología derivada del siniestro o los servicios considerados como experimentales, cosméticos y suntuarios. Para tal efecto, POSITIVA se compromete a pagarle al CONTRATISTA el valor de los servicios de salud, en caso de la atención de: 1. Cuidado Intermedio Adultos 2. Cuidado Intensivo Adultos 3. Procedimientos 4. Apoyo diagnóstico y complementación terapéutica 5. Medicamentos e insumos 6. Traslado Asistencial Demás servicios que se habiliten durante la vigencia del contrato previa concertación económica entre las partes.
A58: TECNICA | B58: N/A | C58: 93141808 93141845 | D58: El CONTRATISTA se obliga con POSITIVA a la prestación de los servicios de salud para los asegurados y/o afiliados a POSITIVA, que accedan a los servicios habilitados del CONTRATISTA en calidad de asegurados, a los ramos: Administración de Riesgos Laborales (ARL -por causa exclusiva de un accidente de trabajo, una enfermedad profesional), Accidentes Personales (AP Educativo Generación Positiva, AP Colectivos, AP Corto Plazo, AP Individual), y demás Ramos de Seguros autorizados a Positiva, encontrándose excluidos de presente contrato los servicios y todas aquellas actividades, procedimientos e intervenciones que no tengan por objeto contribuir al diagnóstico, tratamiento o rehabilitación de la patología derivada del siniestro o los servicios considerados como experimentales, cosméticos y suntuarios. Para tal efecto, POSITIVA se compromete a pagarle al CONTRATISTA el valor de los servicios de salud, en caso de laatención de: 1. Medicina General 2. Medicina física y rehabilitación 3. Radiología e imágenes diagnósticas 4. Laboratorio clínico Demás servicios que se habiliten durante la vigencia del contrato previa concertación económica entre las partes. | E58: 2024-01-02 | F58: 1 | G58: 2026-01-02 | H58: 24.36666667 | I58: DIRECTA | K58: 0 | L58: INDETERMINADO | M58: NO | N58: NO APLICA | O58: Gerencia de Abastecimiento Estratégico contratacion@positiva.gov.co PBX: (1)6502200 Ext: 10641 | P58: SI | Q58: SI | R58: NA | S58: SI | T58: Pública clasificada | U58: N/A-Tipo de información Pública clasificada-El CONTRATISTA se obliga con POSITIVA a la prestación de los servicios de salud para los asegurados y/o afiliados a POSITIVA, que accedan a los servicios habilitados del CONTRATISTA en calidad de asegurados, a los ramos: Administración de Riesgos Laborales (ARL -por causa exclusiva de un accidente de trabajo, una enfermedad profesional), Accidentes Personales (AP Educativo Generación Positiva, AP Colectivos, AP Corto Plazo, AP Individual), y demás Ramos de Seguros autorizados a Positiva, encontrándose excluidos de presente contrato los servicios y todas aquellas actividades, procedimientos e intervenciones que no tengan por objeto contribuir al diagnóstico, tratamiento o rehabilitación de la patología derivada del siniestro o los servicios considerados como experimentales, cosméticos y suntuarios. Para tal efecto, POSITIVA se compromete a pagarle al CONTRATISTA el valor de los servicios de salud, en caso de laatención de: 1. Medicina General 2. Medicina física y rehabilitación 3. Radiología e imágenes diagnósticas 4. Laboratorio clínico Demás servicios que se habiliten durante la vigencia del contrato previa concertación económica entre las partes.
A59: SECRETARIA GENERAL Y JURIDICA | B59: C24182024 | C59: 93141808 93141846 | D59: EL CONTRATISTA se obliga a prestarle a POSITIVA COMPAÑÍA DE SEGUROS S.A. los servicios de apoyo a la gestión a la Secretaria General y Jurídica. | E59: 2024-01-19 | F59: 1 | G59: 2024-04-12 | H59: 2.8 | I59: DIRECTA | K59: 9000000 | L59: 9000000 | M59: NO | N59: NO APLICA | O59: Gerencia de Abastecimiento Estratégico contratacion@positiva.gov.co PBX: (1)6502200 Ext: 10641 | P59: SI | Q59: SI | R59: NA | S59: SI | T59: Pública clasificada | U59: C24182024-Tipo de información Pública clasificada-EL CONTRATISTA se obliga a prestarle a POSITIVA COMPAÑÍA DE SEGUROS S.A. los servicios de apoyo a la gestión a la Secretaria General y Jurídica.
A60: TECNICA | B60: N/A | C60: 93141808 93141847 | D60: El CONTRATISTA se obliga con POSITIVA a la prestación de los servicios de salud para los asegurados y/o afiliados a POSITIVA, que accedan a los servicios habilitados del CONTRATISTA en calidad de asegurados, a los ramos: Administración de Riesgos Laborales (ARL -por causa exclusiva de un accidente de trabajo, una enfermedad profesional), Accidentes Personales (AP Educativo Generación Positiva, AP Colectivos, AP Corto Plazo, AP Individual), y demás Ramos de Seguros autorizados a Positiva, encontrándose excluidos del presente contrato los servicios y todas aquellas actividades, procedimientos e intervenciones que no tengan por objeto contribuir al diagnóstico, tratamiento o rehabilitación de la patología derivada del siniestro o los servicios considerados como experimentales, cosméticos y suntuarios. Para tal efecto, POSITIVA se compromete a pagarle al CONTRATISTA el valor de los servicios de salud, en caso de la atención de: 1. DOLOR Y CUIDADOS PALIATIVOS 2. ANESTESIA 3. MEDICINA FÍSICA Y REHABILITACIÓN 4. MEDICINA GENERAL 5. MEDICINA INTERNA 6. NEUROLOGÍA 7. ORTOPEDIA Y/O TRAUMATOLOGIA 8. PSICOLOGÍA 9. PSIQUIATRÍA 10. CIRUGÍA VASCULAR 11. NEUROCIRUGÍA 12. MEDICINA DEL TRABAJO Y MEDICINA LABORAL 13. MEDICINA ALTERNATIVA Y COMPLEMENTARIA HOMEOPÁTICA Demás servicios que se habiliten durante la vigencia del contrato previa concertación económica entre las partes. | E60: 2024-01-19 | F60: 1 | G60: 2026-01-19 | H60: 24.36666667 | I60: DIRECTA | K60: 0 | L60: INDETERMINADO | M60: NO | N60: NO APLICA | O60: Gerencia de Abastecimiento Estratégico contratacion@positiva.gov.co PBX: (1)6502200 Ext: 10641 | P60: SI | Q60: SI | R60: NA | S60: SI | T60: Pública clasificada | U60: N/A-Tipo de información Pública clasificada-El CONTRATISTA se obliga con POSITIVA a la prestación de los servicios de salud para los asegurados y/o afiliados a POSITIVA, que accedan a los servicios habilitados del CONTRATISTA en calidad de asegurados, a los ramos: Administración de Riesgos Laborales (ARL -por causa exclusiva de un accidente de trabajo, una enfermedad profesional), Accidentes Personales (AP Educativo Generación Positiva, AP Colectivos, AP Corto Plazo, AP Individual), y demás Ramos de Seguros autorizados a Positiva, encontrándose excluidos del presente contrato los servicios y todas aquellas actividades, procedimientos e intervenciones que no tengan por objeto contribuir al diagnóstico, tratamiento o rehabilitación de la patología derivada del siniestro o los servicios considerados como experimentales, cosméticos y suntuarios. Para tal efecto, POSITIVA se compromete a pagarle al CONTRATISTA el valor de los servicios de salud, en caso de la atención de: 1. DOLOR Y CUIDADOS PALIATIVOS 2. ANESTESIA 3. MEDICINA FÍSICA Y REHABILITACIÓN 4. MEDICINA GENERAL 5. MEDICINA INTERNA 6. NEUROLOGÍA 7. ORTOPEDIA Y/O TRAUMATOLOGIA 8. PSICOLOGÍA 9. PSIQUIATRÍA 10. CIRUGÍA VASCULAR 11. NEUROCIRUGÍA 12. MEDICINA DEL TRABAJO Y MEDICINA LABORAL 13. MEDICINA ALTERNATIVA Y COMPLEMENTARIA HOMEOPÁTICA Demás servicios que se habiliten durante la vigencia del contrato previa concertación económica entre las partes.
A61: SECRETARIA GENERAL Y JURIDICA | B61: N/A | C61: 93141808 93141848 | D61: EL CONTRATISTA se obliga a prestarle a POSITIVA COMPAÑÍA DE SEGUROS S.A. los servicios profesionales de recobro vía judicial y prejudicial de las prestaciones económicas y asistenciales derivadas de siniestros de Enfermedad Laboral así como la representación judicial de procesos asignados. | E61: 2024-01-19 | F61: 1 | G61: 2024-12-31 | H61: 11.56666667 | I61: DIRECTA | K61: 0 | L61: INDETERMINADO | M61: NO | N61: NO APLICA | O61: Gerencia de Abastecimiento Estratégico contratacion@positiva.gov.co PBX: (1)6502200 Ext: 10641 | P61: SI | Q61: SI | R61: NA | S61: SI | T61: Pública clasificada | U61: N/A-Tipo de información Pública clasificada-EL CONTRATISTA se obliga a prestarle a POSITIVA COMPAÑÍA DE SEGUROS S.A. los servicios profesionales de recobro vía judicial y prejudicial de las prestaciones económicas y asistenciales derivadas de siniestros de Enfermedad Laboral así como la representación judicial de procesos asignados.
A62: SECRETARIA GENERAL Y JURIDICA | B62: N/A | C62: 93141808 93141849 | D62: EL CONTRATISTA se compromete con POSITIVA COMPAÑÍA DE SEGUROS S.A. a la Prestación de servicios profesionales para la representación judicial deprocesos judiciales de siniestros en Altas Cortes y en especial La Corte Suprema de Justicia, con el propósito de ejercer el mandato judicial en defensa de los intereses de Positiva Compañía de Seguros S.A, ante las autoridades judiciales, administrativas y/o ante particulares con funciones judiciales, a nivel de la etapa de casación. | E62: 2024-01-19 | F62: 1 | G62: 2024-12-31 | H62: 11.56666667 | I62: DIRECTA | K62: 420000000 | L62: 380000000 | M62: SI | N62: APROBADAS | O62: Gerencia de Abastecimiento Estratégico contratacion@positiva.gov.co PBX: (1)6502200 Ext: 10641 | P62: SI | Q62: SI | R62: NA | S62: SI | T62: Pública clasificada | U62: N/A-Tipo de información Pública clasificada-EL CONTRATISTA se compromete con POSITIVA COMPAÑÍA DE SEGUROS S.A. a la Prestación de servicios profesionales para la representación judicial deprocesos judiciales de siniestros en Altas Cortes y en especial La Corte Suprema de Justicia, con el propósito de ejercer el mandato judicial en defensa de los intereses de Positiva Compañía de Seguros S.A, ante las autoridades judiciales, administrativas y/o ante particulares con funciones judiciales, a nivel de la etapa de casación.
A63: PROMOCION Y PREVENCION | B63: C83112024 | C63: 93141808 93141850 | D63: Prestación de servicios Integrales en Promoción y Prevención para el cumplimiento actividades de Promoción y Prevención para implementar, mejorar y/o mantener actividades de asesoría técnica del Sistema de Gestión de Seguridad y Salud en Trabajo, con base en los Programas de la Estrategia POSITIVA CREA del Modelo de Gestión POSITIVA SUMA en PLAN ESPECIALIZADO - Programas de Vigilancia Epidemiológica para el acompañamiento de las empresas afiliadas a POSITIVA COMPAÑÍA DE SEGUROS en Zonas Antioquia, Atlántico, Bogotá, Santander y Valle en la modalidad de atención Gran Empresa | E63: 2024-01-19 | F63: 1 | G63: 2024-12-31 | H63: 11.56666667 | I63: DIRECTA | K63: 855000000 | L63: 570000000 | M63: SI | N63: APROBADAS | O63: Gerencia de Abastecimiento Estratégico contratacion@positiva.gov.co PBX: (1)6502200 Ext: 10641 | P63: SI | Q63: SI | R63: NA | S63: SI | T63: Pública clasificada | U63: C83112024-Tipo de información Pública clasificada-Prestación de servicios Integrales en Promoción y Prevención para el cumplimiento actividades de Promoción y Prevención para implementar, mejorar y/o mantener actividades de asesoría técnica del Sistema de Gestión de Seguridad y Salud en Trabajo, con base en los Programas de la Estrategia POSITIVA CREA del Modelo de Gestión POSITIVA SUMA en PLAN ESPECIALIZADO - Programas de Vigilancia Epidemiológica para el acompañamiento de las empresas afiliadas a POSITIVA COMPAÑÍA DE SEGUROS en Zonas Antioquia, Atlántico, Bogotá, Santander y Valle en la modalidad de atención Gran Empresa
A64: PROMOCION Y PREVENCION | B64: C75082024 | C64: 93141808 93141851 | D64: EL CONTRATISTA, se compromete con POSITIVA COMPAÑÍA DE SEGUROS S.A., a prestación de servicios de Promoción y Prevención para implementar, mejorar y/o mantener actividades de asesoría técnica del Sistema de Gestión de Seguridad y Salud en Trabajo, con base en los Programas de la Estrategia POSITIVA CREA del Modelo de Gestión POSITIVA SUMA en PLAN AVANZADO - Programa Gestión para la Prevención de la Enfermedad Laboral PLAN ESPECIALIZADO - Programas de Vigilancia Epidemiológica para el acompañamiento de las empresas afiliadas a POSITIVA COMPAÑÍA DE SEGUROS en la Gerencia Sucursal Antioquia Coordinadora en la modalidad de atención Planes Gran Empresa. | E64: 2024-01-22 | F64: 1 | G64: 2024-12-31 | H64: 11.46666667 | I64: DIRECTA | K64: 855000000 | L64: 570000000 | M64: SI | N64: APROBADAS | O64: Gerencia de Abastecimiento Estratégico contratacion@positiva.gov.co PBX: (1)6502200 Ext: 10641 | P64: SI | Q64: SI | R64: NA | S64: SI | T64: Pública clasificada | U64: C75082024-Tipo de información Pública clasificada-EL CONTRATISTA, se compromete con POSITIVA COMPAÑÍA DE SEGUROS S.A., a prestación de servicios de Promoción y Prevención para implementar, mejorar y/o mantener actividades de asesoría técnica del Sistema de Gestión de Seguridad y Salud en Trabajo, con base en los Programas de la Estrategia POSITIVA CREA del Modelo de Gestión POSITIVA SUMA en PLAN AVANZADO - Programa Gestión para la Prevención de la Enfermedad Laboral PLAN ESPECIALIZADO - Programas de Vigilancia Epidemiológica para el acompañamiento de las empresas afiliadas a POSITIVA COMPAÑÍA DE SEGUROS en la Gerencia Sucursal Antioquia Coordinadora en la modalidad de atención Planes Gran Empresa.
A65: PROMOCION Y PREVENCION | B65: C82512024 | C65: 93141808 93141852 | D65: EL CONTRATISTA, se compromete con POSITIVA COMPAÑÍA DE SEGUROS S.A., a prestar servicios de Promoción y Prevención, con el propósito de ofrecer asesoría y asistencia técnica para la implementación, mejora y mantenimiento del Sistema de Gestión de la Seguridad y Salud en el Trabajo, de acuerdo con los programas del PLAN BÁSICO, PLAN AVANZADO, PLAN ESPECIALIZADO y PLAN GESTIÓN INTEGRAL, dentro del marco de la estrategia CREA del Modelo de Gestión POSITIVA SUMA. Adicionalmente, el contratista brindará apoyo en la investigación de presuntos accidentes de trabajo, ya sean graves, mortales o leves en casos técnicamente justificados. Se implementarán estrategias orientadas a la prevención de accidentes laborales, con el objetivo de impactar positivamente en la siniestralidad. El alcance de los servicios comprenderá asesoría técnica especializada para atender las demandas de reclasificación de empresas, tanto por requerimientos internos de la compañía como por solicitudes de entes de control y vigilancia. Este enfoque busca fortalecer la intervención en las empresas MiPyMes afiliadas a POSITIVA COMPAÑÍA DE SEGUROS S.A. La ejecución de estas actividades se llevará a cabo bajo el lineamiento del prototipo técnico, con un equipo interdisciplinario. Estas labores se desarrollarán en las sucursales de las zonas de Atlántico, Antioquia, Valle, Santander y Coordinadora Bogotá. La modalidad de atención definida y ejecutada se adaptará a las necesidades y características de las empresas MiPyMes asignadas a este modelo de atención. Es esencial que la prestación de servicios sea eficiente y efectiva sin comprometer la calidad del servicio en esta modalidad de atención, con un enfoque específico en la prevención y reducción de la siniestralidad. El contratista estará facultado para cubrir la demanda de solicitudes de reclasificación de empresas, contribuyendo así al fortalecimiento de la intervención en las MiPyMes afiliadas a POSITIVA COMPAÑÍA DE SEGUROS S.A. | E65: 2024-01-22 | F65: 1 | G65: 2024-12-31 | H65: 11.46666667 | I65: DIRECTA | K65: 5534068149 | L65: 5034068149 | M65: SI | N65: APROBADAS | O65: Gerencia de Abastecimiento Estratégico contratacion@positiva.gov.co PBX: (1)6502200 Ext: 10641 | P65: SI | Q65: SI | R65: NA | S65: SI | T65: Pública clasificada | U65: C82512024-Tipo de información Pública clasificada-EL CONTRATISTA, se compromete con POSITIVA COMPAÑÍA DE SEGUROS S.A., a prestar servicios de Promoción y Prevención, con el propósito de ofrecer asesoría y asistencia técnica para la implementación, mejora y mantenimiento del Sistema de Gestión de la Seguridad y Salud en el Trabajo, de acuerdo con los programas del PLAN BÁSICO, PLAN AVANZADO, PLAN ESPECIALIZADO y PLAN GESTIÓN INTEGRAL, dentro del marco de la estrategia CREA del Modelo de Gestión POSITIVA SUMA. Adicionalmente, el contratista brindará apoyo en la investigación de presuntos accidentes de trabajo, ya sean graves, mortales o leves en casos técnicamente justificados. Se implementarán estrategias orientadas a la prevención de accidentes laborales, con el objetivo de impactar positivamente en la siniestralidad. El alcance de los servicios comprenderá asesoría técnica especializada para atender las demandas de reclasificación de empresas, tanto por requerimientos internos de la compañía como por solicitudes de entes de control y vigilancia. Este enfoque busca fortalecer la intervención en las empresas MiPyMes afiliadas a POSITIVA COMPAÑÍA DE SEGUROS S.A. La ejecución de estas actividades se llevará a cabo bajo el lineamiento del prototipo técnico, con un equipo interdisciplinario. Estas labores se desarrollarán en las sucursales de las zonas de Atlántico, Antioquia, Valle, Santander y Coordinadora Bogotá. La modalidad de atención definida y ejecutada se adaptará a las necesidades y características de las empresas MiPyMes asignadas a este modelo de atención. Es esencial que la prestación de servicios sea eficiente y efectiva sin comprometer la calidad del servicio en esta modalidad de atención, con un enfoque específico en la prevención y reducción de la siniestralidad. El contratista estará facultado para cubrir la demanda de solicitudes de reclasificación de empresas, contribuyendo así al fortalecimiento de la intervención en las MiPyMes afiliadas a POSITIVA COMPAÑÍA DE SEGUROS S.A.
A66: SECRETARIA GENERAL Y JURIDICA | B66: C05622024 C05632024 | C66: 93141808 93141853 | D66: EL CONTRATISTA, se compromete con POSITIVA COMPAÑÍA DE SEGUROS S.A., a la prestación de servicios de solución tecnológica para el mantenimiento preventivo, correctivo, adaptativo, evolutivo, soporte tecnológico y funcional y cierre de reserva soa para el sistema de información de administración de riesgos laborales – ISARL, análisis, documentación y depuración de DB – SIARP, desacople monolito ISARL, recurso dedicado a POSITIVA. | E66: 2024-01-22 | F66: 1 | G66: 2024-12-31 | H66: 11.46666667 | I66: DIRECTA | K66: 2404132785 | L66: 1852156785 | M66: SI | N66: APROBADAS | O66: Gerencia de Abastecimiento Estratégico contratacion@positiva.gov.co PBX: (1)6502200 Ext: 10641 | P66: SI | Q66: SI | R66: NA | S66: SI | T66: Pública clasificada | U66: C05622024 C05632024-Tipo de información Pública clasificada-EL CONTRATISTA, se compromete con POSITIVA COMPAÑÍA DE SEGUROS S.A., a la prestación de servicios de solución tecnológica para el mantenimiento preventivo, correctivo, adaptativo, evolutivo, soporte tecnológico y funcional y cierre de reserva soa para el sistema de información de administración de riesgos laborales – ISARL, análisis, documentación y depuración de DB – SIARP, desacople monolito ISARL, recurso dedicado a POSITIVA.
A67: SECRETARIA GENERAL Y JURIDICA | B67: C23252024 | C67: 93141808 93141854 | D67: EL CONTRATISTA se obliga a prestarle a POSITIVA COMPAÑÍA DE SEGUROS S.A. los servicios profesionales especializados en derecho comercial y administrativo para la elaboración y actualización de normograma en cumplimiento de la Ley 1712 de 2014, el Decreto 1081 de 2015 y en particular la resolución No. 1519 de 2020 emitida por el Ministerio de Tecnologías de la Información y las Comunicaciones, así como la atención de conceptos capacitaciones y actividades asignadas en cumplimiento del objeto contractual. | E67: 2024-01-22 | F67: 1 | G67: 2024-12-31 | H67: 11.46666667 | I67: DIRECTA | K67: 108000000 | L67: 108000000 | M67: NO | N67: NO APLICA | O67: Gerencia de Abastecimiento Estratégico contratacion@positiva.gov.co PBX: (1)6502200 Ext: 10641 | P67: SI | Q67: SI | R67: NA | S67: SI | T67: Pública clasificada | U67: C23252024-Tipo de información Pública clasificada-EL CONTRATISTA se obliga a prestarle a POSITIVA COMPAÑÍA DE SEGUROS S.A. los servicios profesionales especializados en derecho comercial y administrativo para la elaboración y actualización de normograma en cumplimiento de la Ley 1712 de 2014, el Decreto 1081 de 2015 y en particular la resolución No. 1519 de 2020 emitida por el Ministerio de Tecnologías de la Información y las Comunicaciones, así como la atención de conceptos capacitaciones y actividades asignadas en cumplimiento del objeto contractual.
A68: SECRETARIA GENERAL Y JURIDICA | B68: N/A | C68: 93141808 93141855 | D68: EL CONTRATISTA se obliga a prestarle a POSITIVA COMPAÑÍA DE SEGUROS S.A. los servicios profesionales para Representar los intereses de la Compañía en los procesos judiciales de siniestros asignados, ante la en la jurisdicción de lo contencioso administrativa | E68: 2024-01-22 | F68: 1 | G68: 2024-12-31 | H68: 11.46666667 | I68: DIRECTA | K68: 300000000 | L68: 300000000 | M68: NO | N68: NO APLICA | O68: Gerencia de Abastecimiento Estratégico contratacion@positiva.gov.co PBX: (1)6502200 Ext: 10641 | P68: SI | Q68: SI | R68: NA | S68: SI | T68: Pública clasificada | U68: N/A-Tipo de información Pública clasificada-EL CONTRATISTA se obliga a prestarle a POSITIVA COMPAÑÍA DE SEGUROS S.A. los servicios profesionales para Representar los intereses de la Compañía en los procesos judiciales de siniestros asignados, ante la en la jurisdicción de lo contencioso administrativa
A69: SECRETARIA GENERAL Y JURIDICA | B69: C15282024 | C69: 93141808 93141856 | D69: La CONTRATISTA se obliga a favor de POSITIVA a PRESTAR LOS SERVICIOS PROFESIONALES A LA OFICINA DE ESTRATEGIA Y DESARROLLO DE MANERA AUTÓNOMA E INDEPENDIENTE PARA EL DESARROLLO DE LAS ACTIVIDADES DERIVADAS DE LOS TRÁMITES Y ACTUACIONES ADMINISTRATIVAS RELACIONADAS A PROCESOS CONTRACTUALES Y A FINES, DE ACUERDO CON LA NORMATIVIDAD VIGENTE. | E69: 2024-01-22 | F69: 1 | G69: 2024-12-31 | H69: 11.46666667 | I69: DIRECTA | K69: 76162200 | L69: 76162200 | M69: NO | N69: NO APLICA | O69: Gerencia de Abastecimiento Estratégico contratacion@positiva.gov.co PBX: (1)6502200 Ext: 10641 | P69: SI | Q69: SI | R69: NA | S69: SI | T69: Pública clasificada | U69: C15282024-Tipo de información Pública clasificada-La CONTRATISTA se obliga a favor de POSITIVA a PRESTAR LOS SERVICIOS PROFESIONALES A LA OFICINA DE ESTRATEGIA Y DESARROLLO DE MANERA AUTÓNOMA E INDEPENDIENTE PARA EL DESARROLLO DE LAS ACTIVIDADES DERIVADAS DE LOS TRÁMITES Y ACTUACIONES ADMINISTRATIVAS RELACIONADAS A PROCESOS CONTRACTUALES Y A FINES, DE ACUERDO CON LA NORMATIVIDAD VIGENTE.
A70: PROMOCION Y PREVENCION | B70: C75062024 | C70: 93141808 93141857 | D70: EL CONTRATISTA, se compromete con POSITIVA COMPAÑÍA DE SEGUROS S.A., a la prestación de servicios de Promoción y Prevención, para realizar actividades de, asesoría, asistencia técnica y de formación en Seguridad y Salud en el Trabajo, con base en los Programas de la Estrategia POSITIVA CREA del Modelo de Gestión POSITIVA SUMA en PLAN BASICO, Estructura Empresarial, Preparación y Atención de Emergencias, Investigación de Incidentes y Accidentes de Trabajo, Prevención y Protección Colectiva e Individual, PLAN AVANZADO, Programa de Gestión para el Control de Incidentes y Accidentes de Trabajo PLAN DE GESTION INTEGRAL, Sistemas Integrados de Gestión, de la estrategia CREA, para atender las solicitudes en la Gerencia Sucursal Antioquia Coordinadora en la modalidad de atención Planes Gran Empresa. | E70: 2024-01-23 | F70: 1 | G70: 2024-12-31 | H70: 11.43333333 | I70: DIRECTA | K70: 250000000 | L70: 250000000 | M70: NO | N70: NO APLICA | O70: Gerencia de Abastecimiento Estratégico contratacion@positiva.gov.co PBX: (1)6502200 Ext: 10641 | P70: SI | Q70: SI | R70: NA | S70: SI | T70: Pública clasificada | U70: C75062024-Tipo de información Pública clasificada-EL CONTRATISTA, se compromete con POSITIVA COMPAÑÍA DE SEGUROS S.A., a la prestación de servicios de Promoción y Prevención, para realizar actividades de, asesoría, asistencia técnica y de formación en Seguridad y Salud en el Trabajo, con base en los Programas de la Estrategia POSITIVA CREA del Modelo de Gestión POSITIVA SUMA en PLAN BASICO, Estructura Empresarial, Preparación y Atención de Emergencias, Investigación de Incidentes y Accidentes de Trabajo, Prevención y Protección Colectiva e Individual, PLAN AVANZADO, Programa de Gestión para el Control de Incidentes y Accidentes de Trabajo PLAN DE GESTION INTEGRAL, Sistemas Integrados de Gestión, de la estrategia CREA, para atender las solicitudes en la Gerencia Sucursal Antioquia Coordinadora en la modalidad de atención Planes Gran Empresa.
A71: PROMOCION Y PREVENCION | B71: C86032024 | C71: 93141808 93141858 | D71: EL CONTRATISTA, se obliga con POSITIVA COMPAÑÍA DE SEGUROS S.A., a la Prestación de servicios profesionales para las Gerencias de Administración del Riesgo e Investigación y Control del Riesgo, de la Vicepresidencia de Promoción y Prevención de POSITIVA, con los objetivos de, consolidar la atención técnica y profesional para la realización y gestión de los requerimientos y solicitudes realizadas por las empresas afiliadas y no afiliadas, apoyando la fidelización y el mantenimiento de los clientes y fortaleciendo la gestión de los diferentes procesos técnicos, administrativos y de comercialización de servicios de HSEQ y SST, así como los procesos licitatorios y contractuales llevados a cabo por Positiva Compañía de Seguros S.A. | E71: 2024-01-23 | F71: 1 | G71: 2024-09-19 | H71: 8 | I71: DIRECTA | K71: 158400000 | L71: 158400000 | M71: NO | N71: NO APLICA | O71: Gerencia de Abastecimiento Estratégico contratacion@positiva.gov.co PBX: (1)6502200 Ext: 10641 | P71: SI | Q71: SI | R71: NA | S71: SI | T71: Pública clasificada | U71: C86032024-Tipo de información Pública clasificada-EL CONTRATISTA, se obliga con POSITIVA COMPAÑÍA DE SEGUROS S.A., a la Prestación de servicios profesionales para las Gerencias de Administración del Riesgo e Investigación y Control del Riesgo, de la Vicepresidencia de Promoción y Prevención de POSITIVA, con los objetivos de, consolidar la atención técnica y profesional para la realización y gestión de los requerimientos y solicitudes realizadas por las empresas afiliadas y no afiliadas, apoyando la fidelización y el mantenimiento de los clientes y fortaleciendo la gestión de los diferentes procesos técnicos, administrativos y de comercialización de servicios de HSEQ y SST, así como los procesos licitatorios y contractuales llevados a cabo por Positiva Compañía de Seguros S.A.
A72: TECNICA | B72: N/A | C72: 93141808 93141859 | D72: El CONTRATISTA se obliga con POSITIVA a la prestación de los servicios de salud para los asegurados y/o afiliados a POSITIVA, que accedan a los servicios habilitados del CONTRATISTA en calidad de asegurados, a los ramos: Administración de Riesgos Laborales (ARL -por causa exclusiva de un accidente de trabajo, una enfermedad profesional), Accidentes Personales (AP Educativo Generación Positiva, AP Colectivos, AP Corto Plazo, AP Individual), Vida Individual, Vida Grupo, Planes de Salud (complicaciones quirúrgicas, de cirugíaestética y bariátrica) y demás Ramos de Seguros autorizados a Positiva, encontrándose excluidos del presente contrato los servicios y todas aquellas actividades, procedimientos e intervenciones que no tengan por objeto contribuir aldiagnóstico, tratamiento o rehabilitación de la patología derivada del siniestro o los servicios considerados como experimentales, cosméticos y suntuarios. Para tal efecto, POSITIVA se compromete a pagarle al CONTRATISTA el valor de los servicios de salud, en caso de la atención de: 1.Consulta Externa 2. Apoyo Diagnostico y Complementación Terapéutica 3. Demás servicios que se habiliten durante la vigencia del contrato previa concertación económica entre las partes. | E72: 2024-01-15 | F72: 1 | G72: 2026-01-15 | H72: 24.36666667 | I72: DIRECTA | K72: 0 | L72: INDETERMINADO | M72: NO | N72: NO APLICA | O72: Gerencia de Abastecimiento Estratégico contratacion@positiva.gov.co PBX: (1)6502200 Ext: 10641 | P72: SI | Q72: SI | R72: NA | S72: SI | T72: Pública clasificada | U72: N/A-Tipo de información Pública clasificada-El CONTRATISTA se obliga con POSITIVA a la prestación de los servicios de salud para los asegurados y/o afiliados a POSITIVA, que accedan a los servicios habilitados del CONTRATISTA en calidad de asegurados, a los ramos: Administración de Riesgos Laborales (ARL -por causa exclusiva de un accidente de trabajo, una enfermedad profesional), Accidentes Personales (AP Educativo Generación Positiva, AP Colectivos, AP Corto Plazo, AP Individual), Vida Individual, Vida Grupo, Planes de Salud (complicaciones quirúrgicas, de cirugíaestética y bariátrica) y demás Ramos de Seguros autorizados a Positiva, encontrándose excluidos del presente contrato los servicios y todas aquellas actividades, procedimientos e intervenciones que no tengan por objeto contribuir aldiagnóstico, tratamiento o rehabilitación de la patología derivada del siniestro o los servicios considerados como experimentales, cosméticos y suntuarios. Para tal efecto, POSITIVA se compromete a pagarle al CONTRATISTA el valor de los servicios de salud, en caso de la atención de: 1.Consulta Externa 2. Apoyo Diagnostico y Complementación Terapéutica 3. Demás servicios que se habiliten durante la vigencia del contrato previa concertación económica entre las partes.
A73: TECNICA | B73: N/A | C73: 93141808 93141860 | D73: El CONTRATISTA se obliga con POSITIVA a la prestación de los servicios de salud para los asegurados y/o afiliados a POSITIVA, que accedan a los servicios habilitados del CONTRATISTA en calidad de asegurados, a los ramos: Administración de Riesgos Laborales (ARL -por causa exclusiva de un accidente de trabajo, una enfermedad profesional), Accidentes Personales (AP Educativo Generación Positiva, AP Colectivos, AP Corto Plazo, AP Individual), Vida Individual, Vida Grupo, y demás Ramos de Seguros autorizados a Positiva, encontrándose excluidos del presente contrato los servicios y todas aquellas actividades, procedimientos e intervenciones que no tengan por objeto contribuir al diagnóstico, tratamiento o rehabilitación de la patología derivada del siniestro o los servicios considerados como experimentales, cosméticos y suntuarios. Para tal efecto,POSITIVA se compromete a pagarle al CONTRATISTA el valor de los servicios de salud,en caso de la atención de:1. Medicina Física y Del Deporte2. Ortopedia y/o Traumatología3. Fisioterapia4. Nutrición y Dietética5. InsumosDemás servicios que se habiliten durante la vigencia del contrato previa concertacióneconómica entre las partes. | E73: 2024-01-09 | F73: 1 | G73: 2026-01-09 | H73: 24.36666667 | I73: DIRECTA | K73: 0 | L73: INDETERMINADO | M73: NO | N73: NO APLICA | O73: Gerencia de Abastecimiento Estratégico contratacion@positiva.gov.co PBX: (1)6502200 Ext: 10641 | P73: SI | Q73: SI | R73: NA | S73: SI | T73: Pública clasificada | U73: N/A-Tipo de información Pública clasificada-El CONTRATISTA se obliga con POSITIVA a la prestación de los servicios de salud para los asegurados y/o afiliados a POSITIVA, que accedan a los servicios habilitados del CONTRATISTA en calidad de asegurados, a los ramos: Administración de Riesgos Laborales (ARL -por causa exclusiva de un accidente de trabajo, una enfermedad profesional), Accidentes Personales (AP Educativo Generación Positiva, AP Colectivos, AP Corto Plazo, AP Individual), Vida Individual, Vida Grupo, y demás Ramos de Seguros autorizados a Positiva, encontrándose excluidos del presente contrato los servicios y todas aquellas actividades, procedimientos e intervenciones que no tengan por objeto contribuir al diagnóstico, tratamiento o rehabilitación de la patología derivada del siniestro o los servicios considerados como experimentales, cosméticos y suntuarios. Para tal efecto,POSITIVA se compromete a pagarle al CONTRATISTA el valor de los servicios de salud,en caso de la atención de:1. Medicina Física y Del Deporte2. Ortopedia y/o Traumatología3. Fisioterapia4. Nutrición y Dietética5. InsumosDemás servicios que se habiliten durante la vigencia del contrato previa concertacióneconómica entre las partes.
A74: PROMOCION Y PREVENCION | B74: C75132024 | C74: 93141808 93141861 | D74: El Contratista se compromete a la Prestación de servicios de Promoción y Prevención, para realizar actividades de asesoría, asistencia técnica y de formación en Seguridad y Salud en el Trabajo, bajo el lineamiento de los Programas del PLAN BASICO, Estructura Empresarial, Preparación y Atención de Emergencias, Promoción y Prevención en Salud,Investigación de Incidentes y Accidentes de Trabajo, Prevención y Protección Colectiva eIndividual, PLAN AVANZADO, Gestión en la Prevención de la Enfermedad Laboral, Gestión en la Prevención de la Accidentalidad y PLAN ESPECIALIZADO, Sistemas de Vigilancia Epidemiológica, PLAN DE GESTION INTEGRAL, Sistemas Integrados de Gestión, de la estrategia CREA, para la atención de empresas en la modalidad de atención de Planes Gran Empresa, afiliadas a la Compañía en la Sucursal Caldas de la Zona Antioquia PARÁGRAFO PRIMERO: Para mayor ilustración y definición de los términos del presente Contrato, se entiende que la justificación, los estudios previos y la oferta presentada por EL CONTRATISTA junto con los documentos aportados hacen parte integral del presente Contrato. | E74: 2024-01-23 | F74: 1 | G74: 2024-12-31 | H74: 11.43333333 | I74: DIRECTA | K74: 670000000 | L74: 570000000 | M74: SI | N74: APROBADAS | O74: Gerencia de Abastecimiento Estratégico contratacion@positiva.gov.co PBX: (1)6502200 Ext: 10641 | P74: SI | Q74: SI | R74: NA | S74: SI | T74: Pública clasificada | U74: C75132024-Tipo de información Pública clasificada-El Contratista se compromete a la Prestación de servicios de Promoción y Prevención, para realizar actividades de asesoría, asistencia técnica y de formación en Seguridad y Salud en el Trabajo, bajo el lineamiento de los Programas del PLAN BASICO, Estructura Empresarial, Preparación y Atención de Emergencias, Promoción y Prevención en Salud,Investigación de Incidentes y Accidentes de Trabajo, Prevención y Protección Colectiva eIndividual, PLAN AVANZADO, Gestión en la Prevención de la Enfermedad Laboral, Gestión en la Prevención de la Accidentalidad y PLAN ESPECIALIZADO, Sistemas de Vigilancia Epidemiológica, PLAN DE GESTION INTEGRAL, Sistemas Integrados de Gestión, de la estrategia CREA, para la atención de empresas en la modalidad de atención de Planes Gran Empresa, afiliadas a la Compañía en la Sucursal Caldas de la Zona Antioquia PARÁGRAFO PRIMERO: Para mayor ilustración y definición de los términos del presente Contrato, se entiende que la justificación, los estudios previos y la oferta presentada por EL CONTRATISTA junto con los documentos aportados hacen parte integral del presente Contrato.
A75: SECRETARIA GENERAL Y JURIDICA | B75: C15272024 | C75: 93141808 93141862 | D75: El CONTRATISTA se obliga a favor de POSITIVA a PRESTACIÓN DE SERVICIOS PROFESIONALES DE ASESORÍA Y ACOMPAÑAMIENTO EN EL DESARROLLO Y SEGUIMIENTO DE UNA METODOLOGÍA DE TRABAJO CON MÉTRICAS CUALITATIVAS Y CUANTITATIVAS (OKR Y KPI) EN LA CONSTRUCCIÓN Y SEGUIMIENTO DE LOS PROYECTOS DE LA COMPAÑÍA. | E75: 2024-01-24 | F75: 1 | G75: 2024-12-31 | H75: 11.4 | I75: DIRECTA | K75: 109250000 | L75: 109250000 | M75: NO | N75: NO APLICA | O75: Gerencia de Abastecimiento Estratégico contratacion@positiva.gov.co PBX: (1)6502200 Ext: 10641 | P75: SI | Q75: SI | R75: NA | S75: SI | T75: Pública clasificada | U75: C15272024-Tipo de información Pública clasificada-El CONTRATISTA se obliga a favor de POSITIVA a PRESTACIÓN DE SERVICIOS PROFESIONALES DE ASESORÍA Y ACOMPAÑAMIENTO EN EL DESARROLLO Y SEGUIMIENTO DE UNA METODOLOGÍA DE TRABAJO CON MÉTRICAS CUALITATIVAS Y CUANTITATIVAS (OKR Y KPI) EN LA CONSTRUCCIÓN Y SEGUIMIENTO DE LOS PROYECTOS DE LA COMPAÑÍA.
A76: PROMOCION Y PREVENCION | B76: C75242024 | C76: 93141808 93141863 | D76: Prestar servicios de promoción y prevención para implementar, mejorar y/o mantener actividades de asesoría y asistencia técnica del Sistema de Gestión de Seguridad y Salud en Trabajo, bajo el lineamiento de los Programas del PLAN BASICO, Estructura Empresarial, Preparación y Atención de Emergencias, Promoción y Prevención en Salud, Investigación de Incidentes y Accidentes de Trabajo, Prevención y Protección Colectiva e Individual, PLAN AVANZADO, Gestión en la Prevención de la Enfermedad Laboral, Gestión en la Prevención de la Accidentalidad y PLAN ESPECIALIZADO, Sistemas de Vigilancia Epidemiológica, PLAN DE GESTION INTEGRAL, Sistemas Integrados de Gestión, de la estrategia CREA, para la atención de empresas en la modalidad de atención de GRAN EMPRESA, afiliadas a la Compañía en la Sucursal Quindío de la Zona Antioquia, primordialmente a empresas de los sectores de Construcción, transporte y almacenamiento, actividades de servicios administrativos y de apoyo-vigilancia, actividades de juegos de azar y apuestas. | E76: 2024-01-25 | F76: 1 | G76: 2024-11-30 | H76: 10.33333333 | I76: DIRECTA | K76: 202400000 | L76: 272400000 | M76: NO | N76: NO APLICA | O76: Gerencia de Abastecimiento Estratégico contratacion@positiva.gov.co PBX: (1)6502200 Ext: 10641 | P76: SI | Q76: SI | R76: NA | S76: SI | T76: Pública clasificada | U76: C75242024-Tipo de información Pública clasificada-Prestar servicios de promoción y prevención para implementar, mejorar y/o mantener actividades de asesoría y asistencia técnica del Sistema de Gestión de Seguridad y Salud en Trabajo, bajo el lineamiento de los Programas del PLAN BASICO, Estructura Empresarial, Preparación y Atención de Emergencias, Promoción y Prevención en Salud, Investigación de Incidentes y Accidentes de Trabajo, Prevención y Protección Colectiva e Individual, PLAN AVANZADO, Gestión en la Prevención de la Enfermedad Laboral, Gestión en la Prevención de la Accidentalidad y PLAN ESPECIALIZADO, Sistemas de Vigilancia Epidemiológica, PLAN DE GESTION INTEGRAL, Sistemas Integrados de Gestión, de la estrategia CREA, para la atención de empresas en la modalidad de atención de GRAN EMPRESA, afiliadas a la Compañía en la Sucursal Quindío de la Zona Antioquia, primordialmente a empresas de los sectores de Construcción, transporte y almacenamiento, actividades de servicios administrativos y de apoyo-vigilancia, actividades de juegos de azar y apuestas.
A77: TECNICA | B77: N/A | C77: 93141808 93141864 | D77: El CONTRATISTA se obliga con POSITIVA a la prestación de los servicios de salud para los asegurados y/o afiliados a POSITIVA, que accedan a los servicios habilitados del CONTRATISTA en calidad de asegurados, a los ramos: Administración de Riesgos Laborales (ARL -por causa exclusiva de un accidente de trabajo, una enfermedadprofesional), Accidentes Personales (AP Educativo Generación Positiva, AP Colectivos,AP Corto Plazo, AP Individual), Vida Individual, Vida Grupo, Planes de Salud(complicaciones quirúrgicas, de cirugíaestética y bariátrica) y demás Ramos de Segurosautorizados a Positiva, encontrándose excluidos del presente contrato los servicios y todas aquellas actividades, procedimientos e intervenciones que no tengan por objeto contribuiraldiagnóstico, tratamiento o rehabilitación de la patología derivada del siniestro o losservicios considerados como experimentales, cosméticos y suntuarios. Para tal efecto,POSITIVA se compromete a pagarle al CONTRATISTA el valor de los servicios de salud,en caso de la atención de:1. Internación 2. Apoyo Diagnostico y Complementación Terapéutica Demás servicios que se habiliten durante la vigencia del contrato previa concertación económica entre las partes. | E77: 2024-01-25 | F77: 1 | G77: 2026-01-25 | H77: 24.36666667 | I77: DIRECTA | K77: 0 | L77: INDETERMINADO | M77: NO | N77: NO APLICA | O77: Gerencia de Abastecimiento Estratégico contratacion@positiva.gov.co PBX: (1)6502200 Ext: 10641 | P77: SI | Q77: SI | R77: NA | S77: SI | T77: Pública clasificada | U77: N/A-Tipo de información Pública clasificada-El CONTRATISTA se obliga con POSITIVA a la prestación de los servicios de salud para los asegurados y/o afiliados a POSITIVA, que accedan a los servicios habilitados del CONTRATISTA en calidad de asegurados, a los ramos: Administración de Riesgos Laborales (ARL -por causa exclusiva de un accidente de trabajo, una enfermedadprofesional), Accidentes Personales (AP Educativo Generación Positiva, AP Colectivos,AP Corto Plazo, AP Individual), Vida Individual, Vida Grupo, Planes de Salud(complicaciones quirúrgicas, de cirugíaestética y bariátrica) y demás Ramos de Segurosautorizados a Positiva, encontrándose excluidos del presente contrato los servicios y todas aquellas actividades, procedimientos e intervenciones que no tengan por objeto contribuiraldiagnóstico, tratamiento o rehabilitación de la patología derivada del siniestro o losservicios considerados como experimentales, cosméticos y suntuarios. Para tal efecto,POSITIVA se compromete a pagarle al CONTRATISTA el valor de los servicios de salud,en caso de la atención de:1. Internación 2. Apoyo Diagnostico y Complementación Terapéutica Demás servicios que se habiliten durante la vigencia del contrato previa concertación económica entre las partes.
A78: SECRETARIA GENERAL Y JURIDICA | B78: C15292024 | C78: 93141808 93141865 | D78: El CONTRATISTA se obliga a favor de POSITIVA a PRESTAR SERVICIOS PROFESIONALESJURÍDICOS PARA APOYO EN LA CONTRATACIÓN PÚBLICA Y PRIVADA EN TODAS SUSETAPAS, PARA ADELANTAR GESTIONES REQUERIDAS POR LA OFICINA DE ESTRATEGIA YDESARROLLO, COMO TAMBIÉN EN LOS ASPECTOS JURÍDICOS CUMPLIENDO CON LOSESTÁNDARES NORMATIVOS QUE LA RIGEN, DE ACUERDO CON PLAN DE CONTRATACIÓN Y POLÍTICAS INSTITUCIONALES ESTABLECIDAS POR POSITIVA COMPAÑÍA DE SEGUROS S.A. | E78: 2024-01-25 | F78: 1 | G78: 2024-12-31 | H78: 11.36666667 | I78: DIRECTA | K78: 69000000 | L78: 69000000 | M78: NO | N78: NO APLICA | O78: Gerencia de Abastecimiento Estratégico contratacion@positiva.gov.co PBX: (1)6502200 Ext: 10641 | P78: SI | Q78: SI | R78: NA | S78: SI | T78: Pública clasificada | U78: C15292024-Tipo de información Pública clasificada-El CONTRATISTA se obliga a favor de POSITIVA a PRESTAR SERVICIOS PROFESIONALESJURÍDICOS PARA APOYO EN LA CONTRATACIÓN PÚBLICA Y PRIVADA EN TODAS SUSETAPAS, PARA ADELANTAR GESTIONES REQUERIDAS POR LA OFICINA DE ESTRATEGIA YDESARROLLO, COMO TAMBIÉN EN LOS ASPECTOS JURÍDICOS CUMPLIENDO CON LOSESTÁNDARES NORMATIVOS QUE LA RIGEN, DE ACUERDO CON PLAN DE CONTRATACIÓN Y POLÍTICAS INSTITUCIONALES ESTABLECIDAS POR POSITIVA COMPAÑÍA DE SEGUROS S.A.
A79: TECNICA | B79: N/A | C79: 93141808 93141866 | D79: El CONTRATISTA se obliga con POSITIVA a la prestación de los servicios de salud para los asegurados y/o afiliados a POSITIVA, que accedan a los servicios habilitados del CONTRATISTA en calidad de asegurados, a los ramos: Administración de Riesgos Laborales (ARL -por causa exclusiva de un accidente de trabajo, una enfermedad profesional), Accidentes Personales (AP Educativo Generación Positiva, AP Colectivos, AP Corto Plazo, AP Individual), Vida Individual, Vida Grupo y demás Ramos de Seguros autorizados a Positiva, encontrándose excluidos del presente contrato los servicios y todas aquellas actividades, procedimientos e intervenciones que no tengan por objeto contribuir al diagnóstico, tratamiento o rehabilitación de la patología derivada del siniestro o los servicios considerados como experimentales, cosméticos y suntuarios. Para tal efecto, POSITIVA se compromete a pagarle al CONTRATISTA el valor de los servicios de salud, en caso de la atención de: 1. Urgencias 2. Cirugía 3. Consulta de especialistas 4. Apoyo diagnostico 5. Internación Demás servicios que se habiliten durante la vigencia del contrato previa concertación económica entre las partes | E79: 2024-01-25 | F79: 1 | G79: 2026-01-24 | H79: 24.33333333 | I79: DIRECTA | K79: 0 | L79: INDETERMINADO | M79: NO | N79: NO APLICA | O79: Gerencia de Abastecimiento Estratégico contratacion@positiva.gov.co PBX: (1)6502200 Ext: 10641 | P79: SI | Q79: SI | R79: NA | S79: SI | T79: Pública clasificada | U79: N/A-Tipo de información Pública clasificada-El CONTRATISTA se obliga con POSITIVA a la prestación de los servicios de salud para los asegurados y/o afiliados a POSITIVA, que accedan a los servicios habilitados del CONTRATISTA en calidad de asegurados, a los ramos: Administración de Riesgos Laborales (ARL -por causa exclusiva de un accidente de trabajo, una enfermedad profesional), Accidentes Personales (AP Educativo Generación Positiva, AP Colectivos, AP Corto Plazo, AP Individual), Vida Individual, Vida Grupo y demás Ramos de Seguros autorizados a Positiva, encontrándose excluidos del presente contrato los servicios y todas aquellas actividades, procedimientos e intervenciones que no tengan por objeto contribuir al diagnóstico, tratamiento o rehabilitación de la patología derivada del siniestro o los servicios considerados como experimentales, cosméticos y suntuarios. Para tal efecto, POSITIVA se compromete a pagarle al CONTRATISTA el valor de los servicios de salud, en caso de la atención de: 1. Urgencias 2. Cirugía 3. Consulta de especialistas 4. Apoyo diagnostico 5. Internación Demás servicios que se habiliten durante la vigencia del contrato previa concertación económica entre las partes
A80: TECNICA | B80: N/A | C80: 93141808 93141867 | D80: El CONTRATISTA se obliga con POSITIVA a la prestación de los servicios de salud para los asegurados y/o afiliados a POSITIVA, que accedan a los servicios habilitados del CONTRATISTA en calidad de asegurados, a los ramos: Administración de Riesgos Laborales (ARL -por causa exclusiva de un accidente de trabajo, una enfermedad profesional), Accidentes Personales (AP Educativo Generación Positiva, AP Colectivos, AP Corto Plazo, AP Individual), Vida Individual, Vida Grupo, Planes de Salud (complicaciones quirúrgicas, de cirugíaestética y bariátrica) y demás Ramos de Seguros autorizados a Positiva, encontrándose excluidos del presente contrato los servicios y todas aquellas actividades, procedimientos e intervenciones que no tengan por objeto contribuir aldiagnóstico, tratamiento o rehabilitación de la patología derivada del siniestro o los servicios considerados como experimentales, cosméticos y suntuarios. Para tal efecto, POSITIVA se compromete a pagarle al CONTRATISTA el valor de los servicios de salud, en caso de la atención de: 1. Internación 2. Consulta Externa 3. Apoyo Diagnostico y Complementación Terapéutica 4. Atención inmediata 5. Quirúrgicos Demás servicios que se habiliten durante la vigencia del contrato previa concertación económica entre las partes. | E80: 2024-01-25 | F80: 1 | G80: 2026-01-25 | H80: 24.36666667 | I80: DIRECTA | K80: 0 | L80: INDETERMINADO | M80: NO | N80: NO APLICA | O80: Gerencia de Abastecimiento Estratégico contratacion@positiva.gov.co PBX: (1)6502200 Ext: 10641 | P80: SI | Q80: SI | R80: NA | S80: SI | T80: Pública clasificada | U80: N/A-Tipo de información Pública clasificada-El CONTRATISTA se obliga con POSITIVA a la prestación de los servicios de salud para los asegurados y/o afiliados a POSITIVA, que accedan a los servicios habilitados del CONTRATISTA en calidad de asegurados, a los ramos: Administración de Riesgos Laborales (ARL -por causa exclusiva de un accidente de trabajo, una enfermedad profesional), Accidentes Personales (AP Educativo Generación Positiva, AP Colectivos, AP Corto Plazo, AP Individual), Vida Individual, Vida Grupo, Planes de Salud (complicaciones quirúrgicas, de cirugíaestética y bariátrica) y demás Ramos de Seguros autorizados a Positiva, encontrándose excluidos del presente contrato los servicios y todas aquellas actividades, procedimientos e intervenciones que no tengan por objeto contribuir aldiagnóstico, tratamiento o rehabilitación de la patología derivada del siniestro o los servicios considerados como experimentales, cosméticos y suntuarios. Para tal efecto, POSITIVA se compromete a pagarle al CONTRATISTA el valor de los servicios de salud, en caso de la atención de: 1. Internación 2. Consulta Externa 3. Apoyo Diagnostico y Complementación Terapéutica 4. Atención inmediata 5. Quirúrgicos Demás servicios que se habiliten durante la vigencia del contrato previa concertación económica entre las partes.
A81: PROMOCION Y PREVENCION | B81: C75272024 | C81: 93141808 93141868 | D81: Prestar servicios de promoción y prevención para implementar, mejorar y/o mantener actividades de asesoría y asistencia técnica del Sistema de Gestión de Seguridad y Salud en Trabajo, bajo el lineamiento de los Programas del PLAN BASICO, Estructura Empresarial, Preparación y Atención de Emergencias, Promoción y Prevención en Salud, Investigación de Incidentes y Accidentes de Trabajo, Prevención y Protección Colectiva e Individual, PLAN AVANZADO, Gestión en la Prevención de la Enfermedad Laboral, Gestión en la Prevención de la Accidentalidad y PLAN ESPECIALIZADO, Sistemas de Vigilancia Epidemiológica, PLAN DE GESTION INTEGRAL, Sistemas Integrados de Gestión, de la estrategia CREA, para la atención de empresas en la modalidad de atención de GRAN EMPRESA, afiliadas a la Compañía en la Sucursal Quindío de la Zona Antioquia, primordialmente empresas del sector de Actividades de servicios administrativos y de apoyo-agencias de empleos temporales | E81: 2024-01-26 | F81: 1 | G81: 2024-11-30 | H81: 10.3 | I81: DIRECTA | K81: 402184000 | L81: 402184000 | M81: NO | N81: NO APLICA | O81: Gerencia de Abastecimiento Estratégico contratacion@positiva.gov.co PBX: (1)6502200 Ext: 10641 | P81: SI | Q81: SI | R81: NA | S81: SI | T81: Pública clasificada | U81: C75272024-Tipo de información Pública clasificada-Prestar servicios de promoción y prevención para implementar, mejorar y/o mantener actividades de asesoría y asistencia técnica del Sistema de Gestión de Seguridad y Salud en Trabajo, bajo el lineamiento de los Programas del PLAN BASICO, Estructura Empresarial, Preparación y Atención de Emergencias, Promoción y Prevención en Salud, Investigación de Incidentes y Accidentes de Trabajo, Prevención y Protección Colectiva e Individual, PLAN AVANZADO, Gestión en la Prevención de la Enfermedad Laboral, Gestión en la Prevención de la Accidentalidad y PLAN ESPECIALIZADO, Sistemas de Vigilancia Epidemiológica, PLAN DE GESTION INTEGRAL, Sistemas Integrados de Gestión, de la estrategia CREA, para la atención de empresas en la modalidad de atención de GRAN EMPRESA, afiliadas a la Compañía en la Sucursal Quindío de la Zona Antioquia, primordialmente empresas del sector de Actividades de servicios administrativos y de apoyo-agencias de empleos temporales
A82: PROMOCION Y PREVENCION | B82: C75202024 | C82: 93141808 93141869 | D82: El Contratista se compromete a la Prestación de servicios de Promoción y Prevención, para realizar actividades de asesoría, asistencia técnica y de formación en Seguridad y Salud en el Trabajo, bajo el lineamiento de los Programas del PLAN BASICO, Estructura Empresarial, Preparación y Atención de Emergencias, Promoción y Prevención en Salud, Investigación de Incidentes y Accidentes de Trabajo, Prevención y Protección Colectiva e Individual, PLAN AVANZADO, Gestión en la Prevención de la Enfermedad Laboral, Gestión en la Prevención de la Accidentalidad y PLAN ESPECIALIZADO, Sistemas de Vigilancia Epidemiológica, PLAN DE GESTION INTEGRAL, Sistemas Integrados de Gestión, de la estrategia CREA, para la atención de empresas en la modalidad de atención de Planes Gran Empresa, afiliadas a la Compañía en la Sucursal Caldas de la Zona Antioquia. | E82: 2024-01-26 | F82: 1 | G82: 2024-12-31 | H82: 11.33333333 | I82: DIRECTA | K82: 299999995 | L82: 199999997 | M82: SI | N82: APROBADAS | O82: Gerencia de Abastecimiento Estratégico contratacion@positiva.gov.co PBX: (1)6502200 Ext: 10641 | P82: SI | Q82: SI | R82: NA | S82: SI | T82: Pública clasificada | U82: C75202024-Tipo de información Pública clasificada-El Contratista se compromete a la Prestación de servicios de Promoción y Prevención, para realizar actividades de asesoría, asistencia técnica y de formación en Seguridad y Salud en el Trabajo, bajo el lineamiento de los Programas del PLAN BASICO, Estructura Empresarial, Preparación y Atención de Emergencias, Promoción y Prevención en Salud, Investigación de Incidentes y Accidentes de Trabajo, Prevención y Protección Colectiva e Individual, PLAN AVANZADO, Gestión en la Prevención de la Enfermedad Laboral, Gestión en la Prevención de la Accidentalidad y PLAN ESPECIALIZADO, Sistemas de Vigilancia Epidemiológica, PLAN DE GESTION INTEGRAL, Sistemas Integrados de Gestión, de la estrategia CREA, para la atención de empresas en la modalidad de atención de Planes Gran Empresa, afiliadas a la Compañía en la Sucursal Caldas de la Zona Antioquia.
A83: PROMOCION Y PREVENCION | B83: C75022024 | C83: 93141808 93141870 | D83: Prestación de servicios de promoción y prevención para implementar, mejorar y/o mantener actividades de asesoría técnica del Sistema de Gestión de Seguridad y Salud en Trabajo, con base en los Programas de la estrategia POSITIVA CREA del Modelo de Gestión POSITIVA SUMA en PLAN BASICO (programa estructura empresarial, programa promoción y prevención en salud, programa de investigación de incidentes y accidentes de trabajo, programa de prevención y protección colectiva e individual) PLAN AVANZADO (programa de gestión prevención de la enfermedad profesional, énfasis psicosocial, programa gestión para el control de incidentes y accidentes de trabajo) PLAN ESPECIALIZADO (programas de vigilancia epidemiológico con énfasis psicosocial), y PLAN DE GESTION INTEGRAL, (Programa Sistema de Gestión en S&SOOHSAS 18001) de las empresas afiliadas a POSITIVA COMPAÑÍA DE SEGUROS, en la modalidad de atención de Planes GRAN EMPRESA para la Sucursal Antioquia Coordinadora y Punto de Atención Chocó. | E83: 2024-01-26 | F83: 1 | G83: 2024-12-31 | H83: 11.33333333 | I83: DIRECTA | K83: 570000000 | L83: 570000000 | M83: NO | N83: NO APLICA | O83: Gerencia de Abastecimiento Estratégico contratacion@positiva.gov.co PBX: (1)6502200 Ext: 10641 | P83: SI | Q83: SI | R83: NA | S83: SI | T83: Pública clasificada | U83: C75022024-Tipo de información Pública clasificada-Prestación de servicios de promoción y prevención para implementar, mejorar y/o mantener actividades de asesoría técnica del Sistema de Gestión de Seguridad y Salud en Trabajo, con base en los Programas de la estrategia POSITIVA CREA del Modelo de Gestión POSITIVA SUMA en PLAN BASICO (programa estructura empresarial, programa promoción y prevención en salud, programa de investigación de incidentes y accidentes de trabajo, programa de prevención y protección colectiva e individual) PLAN AVANZADO (programa de gestión prevención de la enfermedad profesional, énfasis psicosocial, programa gestión para el control de incidentes y accidentes de trabajo) PLAN ESPECIALIZADO (programas de vigilancia epidemiológico con énfasis psicosocial), y PLAN DE GESTION INTEGRAL, (Programa Sistema de Gestión en S&SOOHSAS 18001) de las empresas afiliadas a POSITIVA COMPAÑÍA DE SEGUROS, en la modalidad de atención de Planes GRAN EMPRESA para la Sucursal Antioquia Coordinadora y Punto de Atención Chocó.
A84: TECNICA | B84: C65332024 | C84: 93141808 93141871 | D84: EL CONTRATISTA se obliga a favor de Positiva Compañía de Seguros S.A. a prestar servicios profesionales y acompañamiento para el monitoreo del ciclo de vida de los siniestros de ARL AT – EL identificando aquellos que presentan desviaciones durante la prestación de los servicios a cargo de la ARL Positiva Compañía de Seguros. | E84: 2024-01-26 | F84: 1 | G84: 2024-12-31 | H84: 11.33333333 | I84: DIRECTA | K84: 96000000 | L84: 96000000 | M84: NO | N84: NO APLICA | O84: Gerencia de Abastecimiento Estratégico contratacion@positiva.gov.co PBX: (1)6502200 Ext: 10641 | P84: SI | Q84: SI | R84: NA | S84: SI | T84: Pública clasificada | U84: C65332024-Tipo de información Pública clasificada-EL CONTRATISTA se obliga a favor de Positiva Compañía de Seguros S.A. a prestar servicios profesionales y acompañamiento para el monitoreo del ciclo de vida de los siniestros de ARL AT – EL identificando aquellos que presentan desviaciones durante la prestación de los servicios a cargo de la ARL Positiva Compañía de Seguros.
A85: SECRETARIA GENERAL Y JURIDICA | B85: C00082024 | C85: 93141808 93141872 | D85: El CONTRATISTA se obliga a favor de POSITIVA a PRESTAR LOS SERVICIOS PROFESIONALES EN LA EJECUCIÓN DE LAS ACTIVIDADES RELACIONADAS CON LA GESTIÓN DE LOS RIESGOS Y CONTROLES, ASÍ COMO EL MONITOREO PARA LA SEGURIDAD DIGITAL DE LA COMPAÑÍA. | E85: 2024-01-26 | F85: 1 | G85: 2024-12-31 | H85: 11.33333333 | I85: DIRECTA | K85: 74000004 | L85: 74000004 | M85: NO | N85: NO APLICA | O85: Gerencia de Abastecimiento Estratégico contratacion@positiva.gov.co PBX: (1)6502200 Ext: 10641 | P85: SI | Q85: SI | R85: NA | S85: SI | T85: Pública clasificada | U85: C00082024-Tipo de información Pública clasificada-El CONTRATISTA se obliga a favor de POSITIVA a PRESTAR LOS SERVICIOS PROFESIONALES EN LA EJECUCIÓN DE LAS ACTIVIDADES RELACIONADAS CON LA GESTIÓN DE LOS RIESGOS Y CONTROLES, ASÍ COMO EL MONITOREO PARA LA SEGURIDAD DIGITAL DE LA COMPAÑÍA.
A86: TECNICA | B86: C65232024 | C86: 93141808 93141873 | D86: EL CONTRATISTA se obliga a favor de Positiva Compañía de Seguros S.A. a prestar servicios profesionales para levantamiento, la implementación, desarrollo y seguimiento de productos y servicios relacionados con la atención de los siniestros de los ramos comercializados de la Compañía. | E86: 2024-01-26 | F86: 1 | G86: 2024-12-31 | H86: 11.33333333 | I86: DIRECTA | K86: 120000000 | L86: 120000000 | M86: NO | N86: NO APLICA | O86: Gerencia de Abastecimiento Estratégico contratacion@positiva.gov.co PBX: (1)6502200 Ext: 10641 | P86: SI | Q86: SI | R86: NA | S86: SI | T86: Pública clasificada | U86: C65232024-Tipo de información Pública clasificada-EL CONTRATISTA se obliga a favor de Positiva Compañía de Seguros S.A. a prestar servicios profesionales para levantamiento, la implementación, desarrollo y seguimiento de productos y servicios relacionados con la atención de los siniestros de los ramos comercializados de la Compañía.
A87: PROMOCION Y PREVENCION | B87: C75152024 | C87: 93141808 93141874 | D87: El Contratista se compromete a la Prestación de servicios de Promoción y Prevención, para realizar actividades de asesoría, asistencia técnica y de formación en Seguridad y Salud en el Trabajo, bajo el lineamiento de los Programas del PLAN BASICO, Estructura Empresarial, Preparación y Atención de Emergencias, Promoción y Prevención en Salud, Investigación de Incidentes y Accidentes de Trabajo, Prevención y Protección Colectiva e Individual, PLAN AVANZADO, Gestión en la Prevención de la Enfermedad Laboral, Gestión en la Prevención de la Accidentalidad y PLAN ESPECIALIZADO, Sistemas de Vigilancia Epidemiológica, PLAN DE GESTION INTEGRAL, Sistemas Integrados de Gestión, de la estrategia CREA, para la atención de empresas en la modalidad de atención de Planes Regulares, afiliadas a la Compañía en la Sucursal Caldas de la Zona Antioquia. | E87: 2024-01-26 | F87: 1 | G87: 2024-12-31 | H87: 11.33333333 | I87: DIRECTA | K87: 405000000 | L87: 320000000 | M87: SI | N87: APROBADAS | O87: Gerencia de Abastecimiento Estratégico contratacion@positiva.gov.co PBX: (1)6502200 Ext: 10641 | P87: SI | Q87: SI | R87: NA | S87: SI | T87: Pública clasificada | U87: C75152024-Tipo de información Pública clasificada-El Contratista se compromete a la Prestación de servicios de Promoción y Prevención, para realizar actividades de asesoría, asistencia técnica y de formación en Seguridad y Salud en el Trabajo, bajo el lineamiento de los Programas del PLAN BASICO, Estructura Empresarial, Preparación y Atención de Emergencias, Promoción y Prevención en Salud, Investigación de Incidentes y Accidentes de Trabajo, Prevención y Protección Colectiva e Individual, PLAN AVANZADO, Gestión en la Prevención de la Enfermedad Laboral, Gestión en la Prevención de la Accidentalidad y PLAN ESPECIALIZADO, Sistemas de Vigilancia Epidemiológica, PLAN DE GESTION INTEGRAL, Sistemas Integrados de Gestión, de la estrategia CREA, para la atención de empresas en la modalidad de atención de Planes Regulares, afiliadas a la Compañía en la Sucursal Caldas de la Zona Antioquia.
A88: FINANCIERA Y ADMINISTRATIVA | B88: C55612024 | C88: 93141808 93141875 | D88: EL CONTRATISTA se compromete con POSITIVA COMPAÑÍA DE SEGUROS S.A. a laPrestación de servicios profesionales especializados como director de proyecto en lo que respecta a la estructuración, complementación, seguimiento y control de proceso para la migración del sistema de información SAP On premise actual, a la plataforma SAP S/4Hana en la nube. | E88: 2024-01-26 | F88: 1 | G88: 2024-12-31 | H88: 11.33333333 | I88: DIRECTA | K88: 257040000 | L88: 257040000 | M88: NO | N88: NO APLICA | O88: Gerencia de Abastecimiento Estratégico contratacion@positiva.gov.co PBX: (1)6502200 Ext: 10641 | P88: SI | Q88: SI | R88: NA | S88: SI | T88: Pública clasificada | U88: C55612024-Tipo de información Pública clasificada-EL CONTRATISTA se compromete con POSITIVA COMPAÑÍA DE SEGUROS S.A. a laPrestación de servicios profesionales especializados como director de proyecto en lo que respecta a la estructuración, complementación, seguimiento y control de proceso para la migración del sistema de información SAP On premise actual, a la plataforma SAP S/4Hana en la nube.
A89: PROMOCION Y PREVENCION | B89: C75162024 | C89: 93141808 93141876 | D89: El Contratista se compromete a la Prestación de servicios de Promoción y Prevención, para realizar actividades de asesoría, asistencia técnica y de formación en Seguridad y Salud en el Trabajo, bajo el lineamiento de los Programas del PLAN BASICO, Estructura Empresarial, Preparación y Atención de Emergencias, Promoción y Prevención en Salud, Investigación de Incidentes y Accidentes de Trabajo, Prevención y Protección Colectiva e Individual, PLAN AVANZADO, Gestión en la Prevención de la Enfermedad Laboral, Gestión en la Prevención de la Accidentalidad y PLAN ESPECIALIZADO, Sistemas de Vigilancia Epidemiológica, PLAN DE GESTION INTEGRAL, Sistemas Integrados de Gestión, de la estrategia CREA, para la atención de empresas en la modalidad de atención de Planes Regulares, afiliadas a la Compañía en la Sucursal Caldas de la Zona Antioquia. | E89: 2024-01-26 | F89: =MONTH(E89) -> 1 | G89: 2024-12-31 | H89: =(G89-E89)/30 -> 11.33333333 | I89: DIRECTA | K89: 327833775 | L89: 240000000 | M89: =IF(L89<K89,"SI","NO") -> SI | N89: =IF(M89="NO","NO APLICA","APROBADAS") -> APROBADAS | O89: Gerencia de Abastecimiento Estratégico contratacion@positiva.gov.co PBX: (1)6502200 Ext: 10641 | P89: SI | Q89: SI | R89: NA | S89: SI | T89: Pública clasificada | U89: C75162024-Tipo de información Pública clasificada-El Contratista se compromete a la Prestación de servicios de Promoción y Prevención, para realizar actividades de asesoría, asistencia técnica y de formación en Seguridad y Salud en el Trabajo, bajo el lineamiento de los Programas del PLAN BASICO, Estructura Empresarial, Preparación y Atención de Emergencias, Promoción y Prevención en Salud, Investigación de Incidentes y Accidentes de Trabajo, Prevención y Protección Colectiva e Individual, PLAN AVANZADO, Gestión en la Prevención de la Enfermedad Laboral, Gestión en la Prevención de la Accidentalidad y PLAN ESPECIALIZADO, Sistemas de Vigilancia Epidemiológica, PLAN DE GESTION INTEGRAL, Sistemas Integrados de Gestión, de la estrategia CREA, para la atención de empresas en la modalidad de atención de Planes Regulares, afiliadas a la Compañía en la Sucursal Caldas de la Zona Antioquia.
A90: SECRETARIA GENERAL Y JURIDICA | B90: C23192024 | C90: 93141808 93141877 | D90: EL CONTRATISTA se compromete con POSITIVA COMPAÑÍA DE SEGUROS S.A. a Prestar servicios profesionales especializados en Derecho Penal para la Gerencia Jurídica. | E90: 2024-01-26 | F90: 1 | G90: 2024-12-31 | H90: 11.33333333 | I90: DIRECTA | K90: 410000000 | L90: 410000000 | M90: NO | N90: NO APLICA | O90: Gerencia de Abastecimiento Estratégico contratacion@positiva.gov.co PBX: (1)6502200 Ext: 10641 | P90: SI | Q90: SI | R90: NA | S90: SI | T90: Pública clasificada | U90: C23192024-Tipo de información Pública clasificada-EL CONTRATISTA se compromete con POSITIVA COMPAÑÍA DE SEGUROS S.A. a Prestar servicios profesionales especializados en Derecho Penal para la Gerencia Jurídica.
A91: OPERACIONES | B91: C45332024 | C91: 93141808 93141878 | D91: EL CONTRATISTA se compromete con POSITIVA COMPAÑÍA DE SEGUROS S.A. a laPrestación de servicios profesionales para la asesoría en asuntos relacionados con análisis, estrategias, seguimientos, conciliaciones y validaciones de temas administrativos y financieros que le competen a la Gerencia de Recaudo y Cartera, en materia de recaudo, cartera, recobros y liquidación de comisiones. | E91: 2024-01-26 | F91: 1 | G91: 2024-12-31 | H91: 11.33333333 | I91: DIRECTA | K91: 127212384 | L91: 127212384 | M91: NO | N91: NO APLICA | O91: Gerencia de Abastecimiento Estratégico contratacion@positiva.gov.co PBX: (1)6502200 Ext: 10641 | P91: SI | Q91: SI | R91: NA | S91: SI | T91: Pública clasificada | U91: =CONCATENATE(B91,"-","Tipo de información"," ",T91,"-",D91) -> C45332024-Tipo de información Pública clasificada-EL CONTRATISTA se compromete con POSITIVA COMPAÑÍA DE SEGUROS S.A. a laPrestación de servicios profesionales para la asesoría en asuntos relacionados con análisis, estrategias, seguimientos, conciliaciones y validaciones de temas administrativos y financieros que le competen a la Gerencia de Recaudo y Cartera, en materia de recaudo, cartera, recobros y liquidación de comisiones.
A92: OPERACIONES | B92: C45322024 | C92: 93141808 93141879 | D92: EL CONTRATISTA se compromete con POSITIVA COMPAÑÍA DE SEGUROS S.A. a laPrestación de servicios profesionales para la revisión, validación y conciliación de la información registrada en los diferentes aplicativos de los procesos de recaudo, cartera, recobros y liquidación de comisiones, así como apoyar en la legalización y reporte de los saldos pendientes por recuperar y/o los saldos pendientes por pagar en las cuentas corrientes de los intermediarios de la Gerencia de Recaudo y Cartera de POSITIVA. | E92: 2024-01-26 | F92: 1 | G92: 2024-07-31 | H92: 6.233333333 | I92: DIRECTA | K92: 33691665 | L92: 33691665 | M92: NO | N92: NO APLICA | O92: Gerencia de Abastecimiento Estratégico contratacion@positiva.gov.co PBX: (1)6502200 Ext: 10641 | P92: SI | Q92: SI | R92: NA | S92: SI | T92: =IF(S92="SI","Pública clasificada","Pública") -> Pública clasificada | U92: C45322024-Tipo de información Pública clasificada-EL CONTRATISTA se compromete con POSITIVA COMPAÑÍA DE SEGUROS S.A. a laPrestación de servicios profesionales para la revisión, validación y conciliación de la información registrada en los diferentes aplicativos de los procesos de recaudo, cartera, recobros y liquidación de comisiones, así como apoyar en la legalización y reporte de los saldos pendientes por recuperar y/o los saldos pendientes por pagar en las cuentas corrientes de los intermediarios de la Gerencia de Recaudo y Cartera de POSITIVA.
A93: SECRETARIA GENERAL Y JURIDICA | B93: C15262024 | C93: 93141808 93141880 | D93: el CONTRATISTA se obliga a favor de POSITIVA a PRESTACIÓN DE SERVICIOS PROFESIONALES ESPECIALIZADOS DE ASESORÍA Y ACOMPAÑAMIENTO A POSITIVA COMPAÑÍA DE SEGUROS, COMO ARQUITECTO EMPRESARIAL PARA LA ARTICULACIÓN DEL MARCO DE REFERENCIA DE ARQUITECTURA EMPRESARIAL –MRAE, EMITIDO POR EL MINISTERIO DE TECNOLOGÍAS DE LA INFORMACIÓN. | E93: 2024-01-26 | F93: 1 | G93: 2024-12-31 | H93: 11.33333333 | I93: DIRECTA | K93: 170788800 | L93: 170788800 | M93: NO | N93: NO APLICA | O93: Gerencia de Abastecimiento Estratégico contratacion@positiva.gov.co PBX: (1)6502200 Ext: 10641 | P93: SI | Q93: SI | R93: NA | S93: SI | T93: Pública clasificada | U93: C15262024-Tipo de información Pública clasificada-el CONTRATISTA se obliga a favor de POSITIVA a PRESTACIÓN DE SERVICIOS PROFESIONALES ESPECIALIZADOS DE ASESORÍA Y ACOMPAÑAMIENTO A POSITIVA COMPAÑÍA DE SEGUROS, COMO ARQUITECTO EMPRESARIAL PARA LA ARTICULACIÓN DEL MARCO DE REFERENCIA DE ARQUITECTURA EMPRESARIAL –MRAE, EMITIDO POR EL MINISTERIO DE TECNOLOGÍAS DE LA INFORMACIÓN.
A94: SECRETARIA GENERAL Y JURIDICA | B94: C24212024 | C94: 93141808 93141881 | D94: EL CONTRATISTA se obliga a prestarle a POSITIVA COMPAÑÍA DE SEGUROS S.A. los servicios profesionales para la gestión de relacionamiento con grupos de interés y otras entidades públicas y privadas para la estrategia de gobierno corporativo, en coordinación con las diferentes dependencias. | E94: 2024-01-26 | F94: 1 | G94: 2024-12-31 | H94: 11.33333333 | I94: DIRECTA | K94: 86900000 | L94: 86900000 | M94: NO | N94: NO APLICA | O94: Gerencia de Abastecimiento Estratégico contratacion@positiva.gov.co PBX: (1)6502200 Ext: 10641 | P94: SI | Q94: SI | R94: NA | S94: SI | T94: Pública clasificada | U94: C24212024-Tipo de información Pública clasificada-EL CONTRATISTA se obliga a prestarle a POSITIVA COMPAÑÍA DE SEGUROS S.A. los servicios profesionales para la gestión de relacionamiento con grupos de interés y otras entidades públicas y privadas para la estrategia de gobierno corporativo, en coordinación con las diferentes dependencias.
A95: PROMOCION Y PREVENCION | B95: C82542024 | C95: 93141808 93141882 | D95: EL CONTRATISTA se compromete a prestar servicios de Promoción y Prevención, con elpropósito de ofrecer asesoría y asistencia técnica para la implementación, mejora ymantenimiento del Sistema de Gestión de la Seguridad y Salud en el Trabajo, de acuerdocon los programas del PLAN BÁSICO, PLAN AVANZADO, PLAN ESPECIALIZADO y PLANGESTIÓN INTEGRAL, dentro del marco de la estrategia CREA del Modelo de GestiónPOSITIVA SUMA. Adicionalmente, el contratista brindará apoyo en la investigación depresuntos accidentes de trabajo, ya sean graves, mortales o leves en casos técnicamentejustificados. Se implementarán estrategias orientadas a la prevención de accidenteslaborales, con el objetivo de impactar positivamente en la siniestralidad. El alcance de losservicios comprenderá asesoría técnica especializada para atender las demandas dereclasificación de empresas, tanto por requerimientos internos de la compañía como porsolicitudes de entes de control y vigilancia. Este enfoque busca fortalecer la intervención enlas empresas MiPyMes afiliadas a POSITIVA COMPAÑÍA DE SEGUROS S.A. La ejecuciónde estas actividades se llevará a cabo bajo el lineamiento del prototipo técnico, con unequipo interdisciplinario. Estas labores se desarrollarán en las sucursales de las zonas deAtlántico, Antioquia, Valle, Santander y Coordinadora Bogotá. La modalidad de atencióndefinida y ejecutada se adaptará a las necesidades y características de las empresasMiPyMes asignadas a este modelo de atención. Es esencial que la prestación de serviciossea eficiente y efectiva sin comprometer la calidad del servicio en esta modalidad deatención, con un enfoque específico en la prevención y reducción de la siniestralidad. Elcontratista estará facultado para cubrir la demanda de solicitudes de reclasificación de empresas, contribuyendo así al fortalecimiento de la intervención en las MiPyMes afiliadas a POSITIVA COMPAÑÍA DE SEGUROS S.A. | E95: 2024-01-26 | F95: 1 | G95: 2024-12-31 | H95: 11.33333333 | I95: DIRECTA | K95: 650000000 | L95: 650000000 | M95: NO | N95: NO APLICA | O95: Gerencia de Abastecimiento Estratégico contratacion@positiva.gov.co PBX: (1)6502200 Ext: 10641 | P95: SI | Q95: SI | R95: NA | S95: SI | T95: Pública clasificada | U95: C82542024-Tipo de información Pública clasificada-EL CONTRATISTA se compromete a prestar servicios de Promoción y Prevención, con elpropósito de ofrecer asesoría y asistencia técnica para la implementación, mejora ymantenimiento del Sistema de Gestión de la Seguridad y Salud en el Trabajo, de acuerdocon los programas del PLAN BÁSICO, PLAN AVANZADO, PLAN ESPECIALIZADO y PLANGESTIÓN INTEGRAL, dentro del marco de la estrategia CREA del Modelo de GestiónPOSITIVA SUMA. Adicionalmente, el contratista brindará apoyo en la investigación depresuntos accidentes de trabajo, ya sean graves, mortales o leves en casos técnicamentejustificados. Se implementarán estrategias orientadas a la prevención de accidenteslaborales, con el objetivo de impactar positivamente en la siniestralidad. El alcance de losservicios comprenderá asesoría técnica especializada para atender las demandas dereclasificación de empresas, tanto por requerimientos internos de la compañía como porsolicitudes de entes de control y vigilancia. Este enfoque busca fortalecer la intervención enlas empresas MiPyMes afiliadas a POSITIVA COMPAÑÍA DE SEGUROS S.A. La ejecuciónde estas actividades se llevará a cabo bajo el lineamiento del prototipo técnico, con unequipo interdisciplinario. Estas labores se desarrollarán en las sucursales de las zonas deAtlántico, Antioquia, Valle, Santander y Coordinadora Bogotá. La modalidad de atencióndefinida y ejecutada se adaptará a las necesidades y características de las empresasMiPyMes asignadas a este modelo de atención. Es esencial que la prestación de serviciossea eficiente y efectiva sin comprometer la calidad del servicio en esta modalidad deatención, con un enfoque específico en la prevención y reducción de la siniestralidad. Elcontratista estará facultado para cubrir la demanda de solicitudes de reclasificación de empresas, contribuyendo así al fortalecimiento de la intervención en las MiPyMes afiliadas a POSITIVA COMPAÑÍA DE SEGUROS S.A.
A96: SECRETARIA GENERAL Y JURIDICA | B96: C00042024 | C96: 93141808 93141883 | D96: La CONTRATISTA se obliga a favor de POSITIVA a PRESTACIÓN DE SERVICIOS DE APOYO A LA GESTIÓN EN LA EJECUCIÓN DE LAS ACTIVIDADES TÉCNICO-ADMINISTRATIVAS EN EL ANÁLISIS, DIAGNÓSTICO Y SEGUIMIENTO DE PRESUNTOS CASOS DE FRAUDE Y ACTOS DE CORRUPCIÓN. | E96: 2024-01-26 | F96: 1 | G96: 2024-12-31 | H96: 11.33333333 | I96: DIRECTA | K96: 44527788 | L96: 44527788 | M96: NO | N96: NO APLICA | O96: Gerencia de Abastecimiento Estratégico contratacion@positiva.gov.co PBX: (1)6502200 Ext: 10641 | P96: SI | Q96: SI | R96: NA | S96: SI | T96: Pública clasificada | U96: C00042024-Tipo de información Pública clasificada-La CONTRATISTA se obliga a favor de POSITIVA a PRESTACIÓN DE SERVICIOS DE APOYO A LA GESTIÓN EN LA EJECUCIÓN DE LAS ACTIVIDADES TÉCNICO-ADMINISTRATIVAS EN EL ANÁLISIS, DIAGNÓSTICO Y SEGUIMIENTO DE PRESUNTOS CASOS DE FRAUDE Y ACTOS DE CORRUPCIÓN.
A97: TECNICA | B97: N/A | C97: 93141808 93141884 | D97: El CONTRATISTA se obliga con POSITIVA a la prestación de los servicios de salud para los asegurados y/o afiliados a POSITIVA, que accedan a los servicios habilitados del CONTRATISTA en calidad de asegurados, a los ramos: Administración de Riesgos Laborales (ARL -por causa exclusiva de un accidente de trabajo, una enfermedad profesional), Accidentes Personales (AP Educativo Generación Positiva, AP Colectivos, AP Corto Plazo, AP Individual), Vida Individual, Vida Grupo, y demás Ramos de Seguros autorizados a Positiva, encontrándose excluidos del presente contrato los servicios y todas aquellas actividades, procedimientos e intervenciones que no tengan por objeto contribuir aldiagnóstico, tratamiento o rehabilitación de la patología derivada del siniestro o los servicios considerados como experimentales, cosméticos y suntuarios. Para tal efecto, POSITIVA se compromete a pagarle al CONTRATISTA el valor de los servicios de salud, en caso de la atención de: 1. Internación 2. Consulta Externa 3. Apoyo Diagnostico y Complementación Terapéutica 4. Laboratorio clínico 5. Medicamentos e insumos. Demás servicios que se habiliten durante la vigencia del contrato previa concertación económica entre las partes. | E97: 2024-01-29 | F97: 1 | G97: 2029-01-29 | H97: 60.9 | I97: DIRECTA | K97: 0 | L97: INDETERMINADO | M97: NO | N97: NO APLICA | O97: Gerencia de Abastecimiento Estratégico contratacion@positiva.gov.co PBX: (1)6502200 Ext: 10641 | P97: SI | Q97: SI | R97: NA | S97: SI | T97: Pública clasificada | U97: N/A-Tipo de información Pública clasificada-El CONTRATISTA se obliga con POSITIVA a la prestación de los servicios de salud para los asegurados y/o afiliados a POSITIVA, que accedan a los servicios habilitados del CONTRATISTA en calidad de asegurados, a los ramos: Administración de Riesgos Laborales (ARL -por causa exclusiva de un accidente de trabajo, una enfermedad profesional), Accidentes Personales (AP Educativo Generación Positiva, AP Colectivos, AP Corto Plazo, AP Individual), Vida Individual, Vida Grupo, y demás Ramos de Seguros autorizados a Positiva, encontrándose excluidos del presente contrato los servicios y todas aquellas actividades, procedimientos e intervenciones que no tengan por objeto contribuir aldiagnóstico, tratamiento o rehabilitación de la patología derivada del siniestro o los servicios considerados como experimentales, cosméticos y suntuarios. Para tal efecto, POSITIVA se compromete a pagarle al CONTRATISTA el valor de los servicios de salud, en caso de la atención de: 1. Internación 2. Consulta Externa 3. Apoyo Diagnostico y Complementación Terapéutica 4. Laboratorio clínico 5. Medicamentos e insumos. Demás servicios que se habiliten durante la vigencia del contrato previa concertación económica entre las partes.
A98: PROMOCION Y PREVENCION | B98: C77052024 | C98: 93141808 93141885 | D98: Prestación de servicios de Promoción y Prevención para implementar, mejorar y/o mantener actividades de asesoría técnica del Sistema de Gestión de Seguridad y Salud en Trabajo, con base en los Programas de la Estrategia POSITIVA CREA del Modelo de Gestión POSITIVA SUMA en: PLAN BASICO - Programa de Preparación y Atención de Emergencias, Programa de Prevención y Protección Colectiva e Individual, Programa de Promoción y Prevención en Salud, Programa de Investigación de Incidentes y Accidentes de Trabajo; PLAN AVANZADO - Programa Gestión para el Control de Incidentes y Accidentes de Trabajo, Programa Gestión en la Prevención de Enfermedades Profesionales; PLAN ESPECIALIZADO - Programas de Vigilancia Epidemiológico; PLAN GESTION INTEGRAL - Sistemas de Gestión Integral, de acuerdo con los Planes de Trabajo concertados con la empresas y cargados en el aplicativo GESTPOS, para empresas afiliadas a Positiva Compañía de Seguros en la modalidad de atención Gran Empresa, especialmente para empresas en la Sucursal Meta que incluye las zonas de Influencia Guainía, Vichada, Guaviare y Vaupés. | E98: 2024-01-29 | F98: 1 | G98: 2024-12-31 | H98: 11.23333333 | I98: DIRECTA | K98: 138617308 | L98: 114075922 | M98: SI | N98: APROBADAS | O98: Gerencia de Abastecimiento Estratégico contratacion@positiva.gov.co PBX: (1)6502200 Ext: 10641 | P98: SI | Q98: SI | R98: NA | S98: SI | T98: Pública clasificada | U98: C77052024-Tipo de información Pública clasificada-Prestación de servicios de Promoción y Prevención para implementar, mejorar y/o mantener actividades de asesoría técnica del Sistema de Gestión de Seguridad y Salud en Trabajo, con base en los Programas de la Estrategia POSITIVA CREA del Modelo de Gestión POSITIVA SUMA en: PLAN BASICO - Programa de Preparación y Atención de Emergencias, Programa de Prevención y Protección Colectiva e Individual, Programa de Promoción y Prevención en Salud, Programa de Investigación de Incidentes y Accidentes de Trabajo; PLAN AVANZADO - Programa Gestión para el Control de Incidentes y Accidentes de Trabajo, Programa Gestión en la Prevención de Enfermedades Profesionales; PLAN ESPECIALIZADO - Programas de Vigilancia Epidemiológico; PLAN GESTION INTEGRAL - Sistemas de Gestión Integral, de acuerdo con los Planes de Trabajo concertados con la empresas y cargados en el aplicativo GESTPOS, para empresas afiliadas a Positiva Compañía de Seguros en la modalidad de atención Gran Empresa, especialmente para empresas en la Sucursal Meta que incluye las zonas de Influencia Guainía, Vichada, Guaviare y Vaupés.
A99: TECNICA | B99: N/A | C99: 93141808 93141886 | D99: El CONTRATISTA se obliga con POSITIVA a la prestación de los servicios de salud para los asegurados y/o afiliados a POSITIVA, que accedan a los servicios habilitados del CONTRATISTA en calidad de asegurados, a los ramos: Administración de Riesgos Laborales (ARL -por causa exclusiva de un accidente de trabajo, una enfermedad profesional), Accidentes Personales (AP Educativo Generación Positiva, AP Colectivos, AP Corto Plazo, AP Individual), Vida Individual, Vida Grupo, Planes de Salud (complicaciones quirúrgicas, de cirugíaestética y bariátrica) y demás Ramos de Seguros autorizados a Positiva, encontrándose excluidos del presente contrato los servicios y todas aquellas actividades, procedimientos e intervenciones que no tengan por objeto contribuir | E99: 2024-01-29 | F99: 1 | G99: 2026-01-29 | H99: 24.36666667 | I99: DIRECTA | K99: 0 | L99: INDETERMINADO | M99: NO | N99: NO APLICA | O99: Gerencia de Abastecimiento Estratégico contratacion@positiva.gov.co PBX: (1)6502200 Ext: 10641 | P99: SI | Q99: SI | R99: NA | S99: SI | T99: Pública clasificada | U99: N/A-Tipo de información Pública clasificada-El CONTRATISTA se obliga con POSITIVA a la prestación de los servicios de salud para los asegurados y/o afiliados a POSITIVA, que accedan a los servicios habilitados del CONTRATISTA en calidad de asegurados, a los ramos: Administración de Riesgos Laborales (ARL -por causa exclusiva de un accidente de trabajo, una enfermedad profesional), Accidentes Personales (AP Educativo Generación Positiva, AP Colectivos, AP Corto Plazo, AP Individual), Vida Individual, Vida Grupo, Planes de Salud (complicaciones quirúrgicas, de cirugíaestética y bariátrica) y demás Ramos de Seguros autorizados a Positiva, encontrándose excluidos del presente contrato los servicios y todas aquellas actividades, procedimientos e intervenciones que no tengan por objeto contribuir
A100: PROMOCION Y PREVENCION | B100: C83122024 | C100: 93141808 93141887 | D100: El CONTRATISTA se compromete con POSITIVA COMPAÑÍA DE SEGUROS S.A., en el ajuste y actualización de la Estrategia Integral Salud Musculo Esquelética, con el fin de Garantizar servicios Especializados en PLAN AVANZADO para la Gestión en Prevención de la Enfermedad Laboral (DME) y PLAN ESPECIALIZADO en lo relacionado con todos los Programas, incluyendo la Vigilancia Epidemiológica (DME), mediante la ejecución de labores de carácter técnico y administrativo, con énfasis en el engranaje de la Estrategia Integral con el Modelo de Gestión en Promoción y Prevención POSITIVA SUMA 5.0; el diseño, mantenimiento y empaquetamiento de soluciones; la implementación y socialización de la Estrategia Integral y la transferencia de conocimiento para clientes internos y externos | E100: 2024-01-29 | F100: 1 | G100: 2024-12-31 | H100: 11.23333333 | I100: DIRECTA | K100: 184738585 | L100: 274472585 | M100: NO | N100: NO APLICA | O100: Gerencia de Abastecimiento Estratégico contratacion@positiva.gov.co PBX: (1)6502200 Ext: 10641 | P100: SI | Q100: SI | R100: NA | S100: SI | T100: Pública clasificada | U100: C83122024-Tipo de información Pública clasificada-El CONTRATISTA se compromete con POSITIVA COMPAÑÍA DE SEGUROS S.A., en el ajuste y actualización de la Estrategia Integral Salud Musculo Esquelética, con el fin de Garantizar servicios Especializados en PLAN AVANZADO para la Gestión en Prevención de la Enfermedad Laboral (DME) y PLAN ESPECIALIZADO en lo relacionado con todos los Programas, incluyendo la Vigilancia Epidemiológica (DME), mediante la ejecución de labores de carácter técnico y administrativo, con énfasis en el engranaje de la Estrategia Integral con el Modelo de Gestión en Promoción y Prevención POSITIVA SUMA 5.0; el diseño, mantenimiento y empaquetamiento de soluciones; la implementación y socialización de la Estrategia Integral y la transferencia de conocimiento para clientes internos y externos
A101: PROMOCION Y PREVENCION | B101: C77022024 | C101: 93141808 93141888 | D101: Prestación de servicios de Promoción y Prevención para implementar, mejorar y/o manteneractividades de asesoría técnica del Sistema de Gestión de Seguridad y Salud en Trabajo,con base en los Programas de la Estrategia POSITIVA CREA del Modelo de GestiónPOSITIVA SUMA en: PLAN BASICO – Programa de Preparación y Atención deEmergencias; Programa de Prevención y Protección Colectiva e Individual, Programa dePromoción y Prevención en Salud; PLAN AVANZADO - Programa Gestión para el Controlde Incidentes y Accidentes de Trabajo, Programa Gestión en la Prevención deEnfermedades Profesionales; PLAN ESPECIALIZADO - Programas de VigilanciaEpidemiológico; PLAN GESTION INTEGRAL - Sistemas de Gestión Integral, de acuerdocon los Planes de Trabajo concertados con la empresas y cargados en el aplicativoGESTPOS, para empresas afiliadas a Positiva Compañía de Seguros especialmente paraempresas en la Sucursal Meta que incluye las zonas de Influencia Guainía, Vichada,Guaviare y Vaupés en la modalidad de atención Gran Empresa. | E101: 2024-01-29 | F101: 1 | G101: 2024-12-31 | H101: 11.23333333 | I101: DIRECTA | K101: 208223657 | L101: 171113883 | M101: SI | N101: APROBADAS | O101: Gerencia de Abastecimiento Estratégico contratacion@positiva.gov.co PBX: (1)6502200 Ext: 10641 | P101: SI | Q101: SI | R101: NA | S101: SI | T101: Pública clasificada | U101: C77022024-Tipo de información Pública clasificada-Prestación de servicios de Promoción y Prevención para implementar, mejorar y/o manteneractividades de asesoría técnica del Sistema de Gestión de Seguridad y Salud en Trabajo,con base en los Programas de la Estrategia POSITIVA CREA del Modelo de GestiónPOSITIVA SUMA en: PLAN BASICO – Programa de Preparación y Atención deEmergencias; Programa de Prevención y Protección Colectiva e Individual, Programa dePromoción y Prevención en Salud; PLAN AVANZADO - Programa Gestión para el Controlde Incidentes y Accidentes de Trabajo, Programa Gestión en la Prevención deEnfermedades Profesionales; PLAN ESPECIALIZADO - Programas de VigilanciaEpidemiológico; PLAN GESTION INTEGRAL - Sistemas de Gestión Integral, de acuerdocon los Planes de Trabajo concertados con la empresas y cargados en el aplicativoGESTPOS, para empresas afiliadas a Positiva Compañía de Seguros especialmente paraempresas en la Sucursal Meta que incluye las zonas de Influencia Guainía, Vichada,Guaviare y Vaupés en la modalidad de atención Gran Empresa.
A102: PROMOCION Y PREVENCION | B102: C83132024 | C102: 93141808 93141889 | D102: El CONTRATISTA se compromete a la Prestación de Servicios en Promoción y Prevención para implementar, mejorar y/o mantener actividades de asesoría técnica del Sistema de Gestión de Seguridad y Salud en el Trabajo, enmarcado en el modelo de gestión POSITIVA SUMA a través de la estrategia POSITIVA CREA, PLAN AVANZADO (PROGRAMA PARA LA GESTIÓN DE ENFERMEDAD LABORAL), PLAN ESPECIALIZADO, PROGRAMA DE VIGILANCIA EPIDEMIOLOGICA, (Dosimetrías, control y asesoría en protección radiológica) para la atención de empresas afiliadas a Positiva Compañía de Seguros, que correspondan a la modalidad de Gran empresa de todo el país. | E102: 2024-01-30 | F102: 1 | G102: 2024-12-31 | H102: 11.2 | I102: DIRECTA | K102: 600000000 | L102: 500000000 | M102: SI | N102: APROBADAS | O102: Gerencia de Abastecimiento Estratégico contratacion@positiva.gov.co PBX: (1)6502200 Ext: 10641 | P102: SI | Q102: SI | R102: NA | S102: SI | T102: Pública clasificada | U102: C83132024 -Tipo de información Pública clasificada-El CONTRATISTA se compromete a la Prestación de Servicios en Promoción y Prevención para implementar, mejorar y/o mantener actividades de asesoría técnica del Sistema de Gestión de Seguridad y Salud en el Trabajo, enmarcado en el modelo de gestión POSITIVA SUMA a través de la estrategia POSITIVA CREA, PLAN AVANZADO (PROGRAMA PARA LA GESTIÓN DE ENFERMEDAD LABORAL), PLAN ESPECIALIZADO, PROGRAMA DE VIGILANCIA EPIDEMIOLOGICA, (Dosimetrías, control y asesoría en protección radiológica) para la atención de empresas afiliadas a Positiva Compañía de Seguros, que correspondan a la modalidad de Gran empresa de todo el país.
A103: PROMOCION Y PREVENCION | B103: C80312024 | C103: 93141808 93141890 | D103: EL CONTRATISTA, se compromete con POSITIVA COMPAÑÍA DE SEGUROS S.A., a realizar la prestación de servicios de Promoción y Prevención para mplementar, mejorar y/o mantener actividades de, asesoría, asistencia técnica y de formación en Seguridad y Salud en el Trabajo del PLAN BÁSICO en los Programas, Estructura Empresarial, Preparación y atención ante emergencias, Programa de prevención y protección colectiva e individual, Programa de Promoción y Prevención de la Salud y Programa de investigación de incidentes y accidentes de trabajo, PLAN AVANZADO Programa de Gestión para el Control de Incidentes y Accidentes de Trabajo y Programa de Gestión en la Prevención de la Enfermedad Laboral, PLAN ESPECIALIZADO Programa de Vigilancia Epidemiológica y el PLAN DE GESTION INTEGRAL Sistemas Integrados de Gestión de la Estrategia CREA del Modelo de Gestión Positiva SUMA de acuerdo a los Planes de Trabajo pactados con la empresas y cargados en el aplicativo GESTPOS, para empresas afiliadas a Positiva Compañía de Seguros en la Sucursal Tipo A Coordinadora Valle. | E103: 2024-01-29 | F103: 1 | G103: 2024-12-31 | H103: 11.23333333 | I103: DIRECTA | K103: 570000000 | L103: 570000000 | M103: NO | N103: NO APLICA | O103: Gerencia de Abastecimiento Estratégico contratacion@positiva.gov.co PBX: (1)6502200 Ext: 10641 | P103: SI | Q103: SI | R103: NA | S103: SI | T103: Pública clasificada | U103: C80312024-Tipo de información Pública clasificada-EL CONTRATISTA, se compromete con POSITIVA COMPAÑÍA DE SEGUROS S.A., a realizar la prestación de servicios de Promoción y Prevención para mplementar, mejorar y/o mantener actividades de, asesoría, asistencia técnica y de formación en Seguridad y Salud en el Trabajo del PLAN BÁSICO en los Programas, Estructura Empresarial, Preparación y atención ante emergencias, Programa de prevención y protección colectiva e individual, Programa de Promoción y Prevención de la Salud y Programa de investigación de incidentes y accidentes de trabajo, PLAN AVANZADO Programa de Gestión para el Control de Incidentes y Accidentes de Trabajo y Programa de Gestión en la Prevención de la Enfermedad Laboral, PLAN ESPECIALIZADO Programa de Vigilancia Epidemiológica y el PLAN DE GESTION INTEGRAL Sistemas Integrados de Gestión de la Estrategia CREA del Modelo de Gestión Positiva SUMA de acuerdo a los Planes de Trabajo pactados con la empresas y cargados en el aplicativo GESTPOS, para empresas afiliadas a Positiva Compañía de Seguros en la Sucursal Tipo A Coordinadora Valle.
A104: PROMOCION Y PREVENCION | B104: C80382024 | C104: 93141808 93141891 | D104: EL CONTRATISTA, se compromete con POSITIVA COMPAÑÍA DE SEGUROS S.A., a la Prestación de servicios de Promoción y Prevención para implementar, mejorar y/o mantener actividades de, asesoría, asistencia técnica y de formación en Seguridad y Salud en el Trabajo del PLAN BÁSICO en los Programas, Estructura Empresarial, Preparación y atención ante emergencias, Programa de prevención y protección colectiva e individual, Programa de Promoción y Prevención de la Salud y Programa de investigación de incidentes y accidentes de trabajo, PLAN AVANZADO Programa de Gestión para el Control de Incidentes y Accidentes de Trabajo y Programa de Gestión en la Prevención de la Enfermedad Laboral, PLAN ESPECIALIZADO Programa de Vigilancia Epidemiológica y el PLAN DE GESTION INTEGRAL Sistemas Integrados de Gestión de la Estrategia CREA del Modelo de Gestión Positiva SUMA de acuerdo a los Planes de Trabajo pactados con la empresas y cargados en el aplicativo GESTPOS, para empresas afiliadas a Positiva Compañía de Seguros en la Sucursal Tipo A Coordinadora Valle. | E104: 2024-01-29 | F104: 1 | G104: 2024-12-31 | H104: 11.23333333 | I104: DIRECTA | K104: 60000000 | L104: 40000000 | M104: SI | N104: APROBADAS | O104: Gerencia de Abastecimiento Estratégico contratacion@positiva.gov.co PBX: (1)6502200 Ext: 10641 | P104: SI | Q104: SI | R104: NA | S104: SI | T104: Pública clasificada | U104: C80382024-Tipo de información Pública clasificada-EL CONTRATISTA, se compromete con POSITIVA COMPAÑÍA DE SEGUROS S.A., a la Prestación de servicios de Promoción y Prevención para implementar, mejorar y/o mantener actividades de, asesoría, asistencia técnica y de formación en Seguridad y Salud en el Trabajo del PLAN BÁSICO en los Programas, Estructura Empresarial, Preparación y atención ante emergencias, Programa de prevención y protección colectiva e individual, Programa de Promoción y Prevención de la Salud y Programa de investigación de incidentes y accidentes de trabajo, PLAN AVANZADO Programa de Gestión para el Control de Incidentes y Accidentes de Trabajo y Programa de Gestión en la Prevención de la Enfermedad Laboral, PLAN ESPECIALIZADO Programa de Vigilancia Epidemiológica y el PLAN DE GESTION INTEGRAL Sistemas Integrados de Gestión de la Estrategia CREA del Modelo de Gestión Positiva SUMA de acuerdo a los Planes de Trabajo pactados con la empresas y cargados en el aplicativo GESTPOS, para empresas afiliadas a Positiva Compañía de Seguros en la Sucursal Tipo A Coordinadora Valle.
A105: PROMOCION Y PREVENCION | B105: C80352024 | C105: 93141808 93141892 | D105: EL CONTRATISTA, se compromete con POSITIVA COMPAÑÍA DE SEGUROS S.A., a la prestación de servicios de Promoción y Prevención para implementar, mejorar y/o mantener actividades de, asesoría, asistencia técnica y de formación en Seguridad y Salud en el Trabajo del PLAN BÁSICO en los Programas, Estructura Empresarial, Preparación y atención ante emergencias, Programa de prevención y protección colectiva e individual, Programa de Promoción y Prevención de la Salud y Programa de investigación de incidentes y accidentes de trabajo, PLAN AVANZADO Programa de Gestión para el Control de Incidentes y Accidentes de Trabajo y Programa de Gestión en la Prevención de la Enfermedad Laboral, PLAN ESPECIALIZADO Programa de Vigilancia Epidemiológica y el PLAN DE GESTION INTEGRAL Sistemas Integrados de Gestión de la Estrategia CREA del Modelo de Gestión Positiva SUMA de acuerdo a los Planes de Trabajo pactados con la empresas y cargados en el aplicativo GESTPOS, para empresas afiliadas a Positiva Compañía de Seguros en la Sucursal Tipo A Coordinadora Valle. | E105: 2024-01-29 | F105: 1 | G105: 2024-12-31 | H105: 11.23333333 | I105: DIRECTA | K105: 170000000 | L105: 120000000 | M105: SI | N105: APROBADAS | O105: Gerencia de Abastecimiento Estratégico contratacion@positiva.gov.co PBX: (1)6502200 Ext: 10641 | P105: SI | Q105: SI | R105: NA | S105: SI | T105: Pública clasificada | U105: C80352024-Tipo de información Pública clasificada-EL CONTRATISTA, se compromete con POSITIVA COMPAÑÍA DE SEGUROS S.A., a la prestación de servicios de Promoción y Prevención para implementar, mejorar y/o mantener actividades de, asesoría, asistencia técnica y de formación en Seguridad y Salud en el Trabajo del PLAN BÁSICO en los Programas, Estructura Empresarial, Preparación y atención ante emergencias, Programa de prevención y protección colectiva e individual, Programa de Promoción y Prevención de la Salud y Programa de investigación de incidentes y accidentes de trabajo, PLAN AVANZADO Programa de Gestión para el Control de Incidentes y Accidentes de Trabajo y Programa de Gestión en la Prevención de la Enfermedad Laboral, PLAN ESPECIALIZADO Programa de Vigilancia Epidemiológica y el PLAN DE GESTION INTEGRAL Sistemas Integrados de Gestión de la Estrategia CREA del Modelo de Gestión Positiva SUMA de acuerdo a los Planes de Trabajo pactados con la empresas y cargados en el aplicativo GESTPOS, para empresas afiliadas a Positiva Compañía de Seguros en la Sucursal Tipo A Coordinadora Valle.
A106: PROMOCION Y PREVENCION | B106: C80132024 | C106: 93141808 93141893 | D106: EL CONTRATISTA, se compromete con POSITIVA COMPAÑÍA DE SEGUROS S.A., a la prestación de servicios de Promoción y Prevención para implementar, mejorar y/o mantener las actividades de consultoría, asesoría, asistencia técnica y de formación en Seguridad y Salud en el Trabajo, bajo el lineamiento de los programas de la Estrategia CREA del Modelo de Gestión Positiva SUMA, en PLAN BASICO: Programa Estructura Empresarial, Preparación y atención de emergencias, Programas Protección Colectiva e Individual, Programa Promoción y prevención en Salud, Programa de Investigación de incidentes y accidentes de trabajo; PLAN AVANZADO: Programa Gestión para el Control de incidentes y accidentes de trabajo, programa de Gestión en la Prevención de la Enfermedad Laboral; PLAN ESPECIALIZADO: Programas de Vigilancia Epidemiológica; PLAN GESTION INTEGRAL: Programas Sistema de Gestión para la atención de las empresas de Planes Regulares, afiliadas a POSITIVA COMPAÑÍA DE SEGUROS Sucursal Nariño Zona Valle. | E106: 2024-01-29 | F106: 1 | G106: 2024-12-31 | H106: 11.23333333 | I106: DIRECTA | K106: 180000000 | L106: 180000000 | M106: NO | N106: NO APLICA | O106: Gerencia de Abastecimiento Estratégico contratacion@positiva.gov.co PBX: (1)6502200 Ext: 10641 | P106: SI | Q106: SI | R106: NA | S106: SI | T106: Pública clasificada | U106: C80132024-Tipo de información Pública clasificada-EL CONTRATISTA, se compromete con POSITIVA COMPAÑÍA DE SEGUROS S.A., a la prestación de servicios de Promoción y Prevención para implementar, mejorar y/o mantener las actividades de consultoría, asesoría, asistencia técnica y de formación en Seguridad y Salud en el Trabajo, bajo el lineamiento de los programas de la Estrategia CREA del Modelo de Gestión Positiva SUMA, en PLAN BASICO: Programa Estructura Empresarial, Preparación y atención de emergencias, Programas Protección Colectiva e Individual, Programa Promoción y prevención en Salud, Programa de Investigación de incidentes y accidentes de trabajo; PLAN AVANZADO: Programa Gestión para el Control de incidentes y accidentes de trabajo, programa de Gestión en la Prevención de la Enfermedad Laboral; PLAN ESPECIALIZADO: Programas de Vigilancia Epidemiológica; PLAN GESTION INTEGRAL: Programas Sistema de Gestión para la atención de las empresas de Planes Regulares, afiliadas a POSITIVA COMPAÑÍA DE SEGUROS Sucursal Nariño Zona Valle.
A107: PROMOCION Y PREVENCION | B107: C80032024 | C107: 93141808 93141894 | D107: EL CONTRATISTA, se compromete con POSITIVA COMPAÑÍA DE SEGUROS S.A., a la Prestación de servicios de Promoción y Prevención para implementar, mejorar y/o mantener actividades de, asesoría, asistencia técnica y de formación en Seguridad y Salud en el Trabajo del Plan Avanzado en el Programa (Gestión en la Prevención de la Enfermedad Laboral) y del Plan Especializado en el Programa (Vigilancia Epidemiológica) de la Estrategia CREA del Modelo de Gestión Positiva SUMA de acuerdo a los Planes de Trabajo pactados con las empresas y cargados en el aplicativo GESTPOS, para empresas afiliadas a Positiva Compañía de Seguros S.A, en la Sucursal Cauca de la Zona Valle. | E107: 2024-01-29 | F107: 1 | G107: 2024-12-31 | H107: 11.23333333 | I107: DIRECTA | K107: 92616000 | L107: 92616000 | M107: NO | N107: NO APLICA | O107: Gerencia de Abastecimiento Estratégico contratacion@positiva.gov.co PBX: (1)6502200 Ext: 10641 | P107: SI | Q107: SI | R107: NA | S107: SI | T107: Pública clasificada | U107: C80032024-Tipo de información Pública clasificada-EL CONTRATISTA, se compromete con POSITIVA COMPAÑÍA DE SEGUROS S.A., a la Prestación de servicios de Promoción y Prevención para implementar, mejorar y/o mantener actividades de, asesoría, asistencia técnica y de formación en Seguridad y Salud en el Trabajo del Plan Avanzado en el Programa (Gestión en la Prevención de la Enfermedad Laboral) y del Plan Especializado en el Programa (Vigilancia Epidemiológica) de la Estrategia CREA del Modelo de Gestión Positiva SUMA de acuerdo a los Planes de Trabajo pactados con las empresas y cargados en el aplicativo GESTPOS, para empresas afiliadas a Positiva Compañía de Seguros S.A, en la Sucursal Cauca de la Zona Valle.
A108: PROMOCION Y PREVENCION | B108: C80042024 | C108: 93141808 93141895 | D108: EL CONTRATISTA, se compromete con POSITIVA COMPAÑÍA DE SEGUROS S.A., a la Prestación de servicios de Promoción y Prevención para implementar, mejorar y/o mantener las actividades de consultoría, asesoría, asistencia técnica y de formación en Seguridad y Salud en el Trabajo, bajo el lineamiento de los programas de la Estrategia CREA del Modelo de Gestión Positiva SUMA, en PLAN BASICO: Programa Estructura Empresarial, Preparación y atención de emergencias, Programa Protección Colectiva e Individual, Programa Promoción y prevención en Salud, Programa de Investigación de incidentes y accidentes de trabajo; PLAN AVANZADO: Programa Gestión para el Control de incidentes y accidentes de trabajo, programa de Gestión en la Prevención de la Enfermedad Laboral; PLAN ESPECIALIZADO: Programas de Vigilancia Epidemiológica; PLAN GESTION INTEGRAL: Programa Sistema de Gestión, para la atención de las empresas de Planes Gran empresa, afiliadas a POSITIVA COMPAÑÍA DE SEGUROS Sucursal Cauca Zona Valle | E108: 2024-01-29 | F108: 1 | G108: 2024-12-31 | H108: 11.23333333 | I108: DIRECTA | K108: 300000000 | L108: 300000000 | M108: NO | N108: NO APLICA | O108: Gerencia de Abastecimiento Estratégico contratacion@positiva.gov.co PBX: (1)6502200 Ext: 10641 | P108: SI | Q108: SI | R108: NA | S108: SI | T108: Pública clasificada | U108: C80042024-Tipo de información Pública clasificada-EL CONTRATISTA, se compromete con POSITIVA COMPAÑÍA DE SEGUROS S.A., a la Prestación de servicios de Promoción y Prevención para implementar, mejorar y/o mantener las actividades de consultoría, asesoría, asistencia técnica y de formación en Seguridad y Salud en el Trabajo, bajo el lineamiento de los programas de la Estrategia CREA del Modelo de Gestión Positiva SUMA, en PLAN BASICO: Programa Estructura Empresarial, Preparación y atención de emergencias, Programa Protección Colectiva e Individual, Programa Promoción y prevención en Salud, Programa de Investigación de incidentes y accidentes de trabajo; PLAN AVANZADO: Programa Gestión para el Control de incidentes y accidentes de trabajo, programa de Gestión en la Prevención de la Enfermedad Laboral; PLAN ESPECIALIZADO: Programas de Vigilancia Epidemiológica; PLAN GESTION INTEGRAL: Programa Sistema de Gestión, para la atención de las empresas de Planes Gran empresa, afiliadas a POSITIVA COMPAÑÍA DE SEGUROS Sucursal Cauca Zona Valle
A109: PROMOCION Y PREVENCION | B109: C80122024 | C109: 93141808 93141896 | D109: EL CONTRATISTA, se compromete con POSITIVA COMPAÑÍA DE SEGUROS S.A., a la prestación de servicios de promoción y prevención para implementar, mejorar y/o mantener las actividades de asesoría, asistencia técnica y de formación en Seguridad y Salud en el Trabajo, bajo el lineamiento de los programas de la Estrategia CREA del Modelo de Gestión Positiva SUMA, en PLAN BASICO: Programa Estructura Empresarial, Preparación y atención de emergencias, Programas Protección Colectiva e Individual, Programa Promoción y prevención en Salud, Programa de Investigación de incidentes y accidentes de trabajo; PLAN AVANZADO: Programa Gestión para el Control de incidentes y accidentes de trabajo, programa de Gestión en la Prevención de la Enfermedad Laboral; en la Sucursal Huila Zona Valle. | E109: 2024-01-29 | F109: 1 | G109: 2024-12-31 | H109: 11.23333333 | I109: DIRECTA | K109: 50000000 | L109: 50000000 | M109: NO | N109: NO APLICA | O109: Gerencia de Abastecimiento Estratégico contratacion@positiva.gov.co PBX: (1)6502200 Ext: 10641 | P109: SI | Q109: SI | R109: NA | S109: SI | T109: Pública clasificada | U109: C80122024-Tipo de información Pública clasificada-EL CONTRATISTA, se compromete con POSITIVA COMPAÑÍA DE SEGUROS S.A., a la prestación de servicios de promoción y prevención para implementar, mejorar y/o mantener las actividades de asesoría, asistencia técnica y de formación en Seguridad y Salud en el Trabajo, bajo el lineamiento de los programas de la Estrategia CREA del Modelo de Gestión Positiva SUMA, en PLAN BASICO: Programa Estructura Empresarial, Preparación y atención de emergencias, Programas Protección Colectiva e Individual, Programa Promoción y prevención en Salud, Programa de Investigación de incidentes y accidentes de trabajo; PLAN AVANZADO: Programa Gestión para el Control de incidentes y accidentes de trabajo, programa de Gestión en la Prevención de la Enfermedad Laboral; en la Sucursal Huila Zona Valle.
A110: OPERACIONES | B110: C45312024 | C110: 93141808 93141897 | D110: El CONTRATISTA se obliga a favor de POSITIVA a PRESTACIÓN DE SERVICIOS PROFESIONALES A LA GERENCIA DE AFILIACIONES Y NOVEDADES Y A LA GERENCIA DE RECAUDO Y CARTERA DE LA VICEPRESIDENCIA DE OPERACIONES DE POSITIVA S.A., EN LOS ASUNTOS RELACIONADOS CON LA APLICACIÓN DE NORMAS (LEYES, DECRETOS, REGLAMENTOS, RESOLUCIONES, CIRCULARES, ENTRE OTRAS) Y TEMAS ADMINISTRATIVOS QUE LES COMPETAN EN MATERIA DE AFILIACIONES, NOVEDADES, RECAUDOS, CARTERA Y RECOBROS, ASÍ COMO EN LOS TEMAS ESPECÍFICOS DE NATURALEZA ANÁLOGA QUE REQUIERA DIRECTAMENTE LA VICEPRESIDENCIA DE OPERACIONES. | E110: 2024-01-30 | F110: 1 | G110: 2024-12-31 | H110: 11.2 | I110: DIRECTA | K110: 142800000 | L110: 142800000 | M110: NO | N110: NO APLICA | O110: Gerencia de Abastecimiento Estratégico contratacion@positiva.gov.co PBX: (1)6502200 Ext: 10641 | P110: SI | Q110: SI | R110: NA | S110: SI | T110: Pública clasificada | U110: C45312024-Tipo de información Pública clasificada-El CONTRATISTA se obliga a favor de POSITIVA a PRESTACIÓN DE SERVICIOS PROFESIONALES A LA GERENCIA DE AFILIACIONES Y NOVEDADES Y A LA GERENCIA DE RECAUDO Y CARTERA DE LA VICEPRESIDENCIA DE OPERACIONES DE POSITIVA S.A., EN LOS ASUNTOS RELACIONADOS CON LA APLICACIÓN DE NORMAS (LEYES, DECRETOS, REGLAMENTOS, RESOLUCIONES, CIRCULARES, ENTRE OTRAS) Y TEMAS ADMINISTRATIVOS QUE LES COMPETAN EN MATERIA DE AFILIACIONES, NOVEDADES, RECAUDOS, CARTERA Y RECOBROS, ASÍ COMO EN LOS TEMAS ESPECÍFICOS DE NATURALEZA ANÁLOGA QUE REQUIERA DIRECTAMENTE LA VICEPRESIDENCIA DE OPERACIONES.
A111: OPERACIONES | B111: C45272024 | C111: 93141808 93141898 | D111: EL CONTRATISTA se compromete con POSITIVA COMPAÑÍA DE SEGUROS S.A. a la Prestación de servicios profesionales para la Gerencia de Afiliaciones y Novedades de la Vicepresidencia de Operaciones de POSITIVA, en la revisión, validación, conciliación y gestión de la información obrante en los diferentes aplicativos dispuestos por la compañía para la operación de los procesos de ARL y el mantenimiento de pólizas de los ramos de vida individual y colectivo. | E111: 2024-01-30 | F111: 1 | G111: 2024-12-31 | H111: 11.2 | I111: DIRECTA | K111: 66000000 | L111: 66000000 | M111: NO | N111: NO APLICA | O111: Gerencia de Abastecimiento Estratégico contratacion@positiva.gov.co PBX: (1)6502200 Ext: 10641 | P111: SI | Q111: SI | R111: NA | S111: SI | T111: Pública clasificada | U111: C45272024-Tipo de información Pública clasificada-EL CONTRATISTA se compromete con POSITIVA COMPAÑÍA DE SEGUROS S.A. a la Prestación de servicios profesionales para la Gerencia de Afiliaciones y Novedades de la Vicepresidencia de Operaciones de POSITIVA, en la revisión, validación, conciliación y gestión de la información obrante en los diferentes aplicativos dispuestos por la compañía para la operación de los procesos de ARL y el mantenimiento de pólizas de los ramos de vida individual y colectivo.
A112: TECNICA | B112: C65242024 | C112: 93141808 93141899 | D112: EL CONTRATISTA se obliga a favor de Positiva Compañía de Seguros S.A. a EL CONTRATISTA se compromete con POSITIVA a la Prestación de Servicios profesionales para el diseño, desarrollo y virtualización de tableros de control operacional y/o directivos, así como el apoyo a la supervisión de contratos relacionados con la atención integral de siniestros. | E112: 2024-01-30 | F112: 1 | G112: 2024-12-31 | H112: 11.2 | I112: DIRECTA | K112: 104316000 | L112: 104316000 | M112: NO | N112: NO APLICA | O112: Gerencia de Abastecimiento Estratégico contratacion@positiva.gov.co PBX: (1)6502200 Ext: 10641 | P112: SI | Q112: SI | R112: NA | S112: SI | T112: Pública clasificada | U112: C65242024-Tipo de información Pública clasificada-EL CONTRATISTA se obliga a favor de Positiva Compañía de Seguros S.A. a EL CONTRATISTA se compromete con POSITIVA a la Prestación de Servicios profesionales para el diseño, desarrollo y virtualización de tableros de control operacional y/o directivos, así como el apoyo a la supervisión de contratos relacionados con la atención integral de siniestros.
A113: PROMOCION Y PREVENCION | B113: C76182024 | C113: 93141808 93141900 | D113: EL CONTRATISTA, se compromete con POSITIVA COMPAÑÍA DE SEGUROS S.A., a la prestación de servicios de Promoción y Prevención para realizar actividades de asesoría, asistencia técnica y de formación en Seguridad y Salud en el Trabajo, con base en los Programas del PLAN BÁSICO: Programa Estructura Empresarial, Programa de Preparación y Atención de Emergencias, Programa de Prevención y Protección Colectiva e Individual, Promoción y prevención en Salud, Programa de investigación de incidentes y accidentes de trabajo, PLAN AVANZADO: Programa de Gestión para el Control de Incidentes y Accidentes de Trabajo, gestión en la prevención de Enfermedades Laborales, PLAN ESPECIALIZADO: Programas de Vigilancia Epidemiológico, PLAN DE GESTION INTEGRAL: Programa de gestión integral; de la Estrategia CREA del Modelo de Gestión POSITIVA SUMA, para la atención de las empresas afiliadas a POSITIVA COMPAÑÍA DE SEGUROS, en la modalidad de atención de Planes GRAN EMPRESA de la Sucursal Coordinadora Bogotá | E113: 2024-01-30 | F113: 1 | G113: 2024-12-31 | H113: 11.2 | I113: DIRECTA | K113: 2250000000 | L113: 1500000000 | M113: SI | N113: APROBADAS | O113: Gerencia de Abastecimiento Estratégico contratacion@positiva.gov.co PBX: (1)6502200 Ext: 10641 | P113: SI | Q113: SI | R113: NA | S113: SI | T113: Pública clasificada | U113: C76182024-Tipo de información Pública clasificada-EL CONTRATISTA, se compromete con POSITIVA COMPAÑÍA DE SEGUROS S.A., a la prestación de servicios de Promoción y Prevención para realizar actividades de asesoría, asistencia técnica y de formación en Seguridad y Salud en el Trabajo, con base en los Programas del PLAN BÁSICO: Programa Estructura Empresarial, Programa de Preparación y Atención de Emergencias, Programa de Prevención y Protección Colectiva e Individual, Promoción y prevención en Salud, Programa de investigación de incidentes y accidentes de trabajo, PLAN AVANZADO: Programa de Gestión para el Control de Incidentes y Accidentes de Trabajo, gestión en la prevención de Enfermedades Laborales, PLAN ESPECIALIZADO: Programas de Vigilancia Epidemiológico, PLAN DE GESTION INTEGRAL: Programa de gestión integral; de la Estrategia CREA del Modelo de Gestión POSITIVA SUMA, para la atención de las empresas afiliadas a POSITIVA COMPAÑÍA DE SEGUROS, en la modalidad de atención de Planes GRAN EMPRESA de la Sucursal Coordinadora Bogotá
A114: PROMOCION Y PREVENCION | B114: C75172024 | C114: 93141808 93141901 | D114: El Contratista se compromete a la Prestación de servicios de Promoción y Prevención, para realizar actividades de asesoría, asistencia técnica y de formación en Seguridad y Salud en el Trabajo, bajo el lineamiento de los Programas del PLAN BASICO, Estructura Empresarial, Preparación y Atención de Emergencias, Promoción y Prevención en Salud, Investigación de Incidentes y Accidentes de Trabajo, Prevención y Protección Colectiva e Individual, PLAN AVANZADO, Gestión en la Prevención de la Enfermedad Laboral, Gestión en la Prevención de la Accidentalidad y PLAN ESPECIALIZADO, Sistemas de Vigilancia Epidemiológica, PLAN DE GESTION INTEGRAL, Sistemas Integrados de Gestión, de la estrategia CREA, para la atención de empresas en la modalidad de atención de Planes Regulares, afiliadas a la Compañía en la Sucursal Caldas de la Zona Antioquia. | E114: 2024-01-31 | F114: 1 | G114: 2024-12-31 | H114: 11.16666667 | I114: DIRECTA | K114: 100000000 | L114: 100000000 | M114: NO | N114: NO APLICA | O114: Gerencia de Abastecimiento Estratégico contratacion@positiva.gov.co PBX: (1)6502200 Ext: 10641 | P114: SI | Q114: SI | R114: NA | S114: SI | T114: Pública clasificada | U114: C75172024-Tipo de información Pública clasificada-El Contratista se compromete a la Prestación de servicios de Promoción y Prevención, para realizar actividades de asesoría, asistencia técnica y de formación en Seguridad y Salud en el Trabajo, bajo el lineamiento de los Programas del PLAN BASICO, Estructura Empresarial, Preparación y Atención de Emergencias, Promoción y Prevención en Salud, Investigación de Incidentes y Accidentes de Trabajo, Prevención y Protección Colectiva e Individual, PLAN AVANZADO, Gestión en la Prevención de la Enfermedad Laboral, Gestión en la Prevención de la Accidentalidad y PLAN ESPECIALIZADO, Sistemas de Vigilancia Epidemiológica, PLAN DE GESTION INTEGRAL, Sistemas Integrados de Gestión, de la estrategia CREA, para la atención de empresas en la modalidad de atención de Planes Regulares, afiliadas a la Compañía en la Sucursal Caldas de la Zona Antioquia.
A115: SECRETARIA GENERAL Y JURIDICA | B115: C05252024 | C115: 93141808 93141902 | D115: EL CONTRATISTA, se compromete con POSITIVA COMPAÑÍA DE SEGUROS S.A., con la Renovación de soporte de software por parte de fabricante para herramientas ArubaHPE, soporte de Partner a través de una bolsa de horas y soporte en sitio, más la adquisición de licenciamiento Aruba.. | E115: 2024-01-31 | F115: 1 | G115: 2024-12-31 | H115: 11.16666667 | I115: DIRECTA | K115: 627783962 | L115: 627783962 | M115: NO | N115: NO APLICA | O115: Gerencia de Abastecimiento Estratégico contratacion@positiva.gov.co PBX: (1)6502200 Ext: 10641 | P115: SI | Q115: SI | R115: NA | S115: SI | T115: Pública clasificada | U115: C05252024-Tipo de información Pública clasificada-EL CONTRATISTA, se compromete con POSITIVA COMPAÑÍA DE SEGUROS S.A., con la Renovación de soporte de software por parte de fabricante para herramientas ArubaHPE, soporte de Partner a través de una bolsa de horas y soporte en sitio, más la adquisición de licenciamiento Aruba..
A116: PROMOCION Y PREVENCION | B116: C80272024 | C116: 93141808 93141903 | D116: EL CONTRATISTA, se compromete con POSITIVA COMPAÑÍA DE SEGUROS S.A., a realizar la prestación de servicios de Promoción y Prevención para implementar, mejorar y/o mantener actividades de, asesoría, asistencia técnica y de formación en Seguridad y Salud en el Trabajo del PLAN BÁSICO en los Programas, Estructura Empresarial, Preparación y atención ante emergencias, Programa de prevención y protección colectiva e individual, Programa de Promoción y Prevención de la Salud y Programa de investigación de incidentes y accidentes de trabajo, PLAN AVANZADO Programa de Gestión para el Control de Incidentes y Accidentes de Trabajo y Programa de Gestión en la Prevención de la Enfermedad Laboral, PLAN ESPECIALIZADO Programa de Vigilancia Epidemiológica y el PLAN DE GESTION INTEGRAL Sistemas Integrados de Gestión de la Estrategia CREA del Modelo de Gestión Positiva SUMA de acuerdo a los Planes de Trabajo pactados con la empresas y cargados en el aplicativo GESTPOS, para empresas afiliadas a Positiva Compañía de Seguros en la Sucursal Tipo A Coordinadora Valle. | E116: 2024-01-31 | F116: 1 | G116: 2024-12-31 | H116: 11.16666667 | I116: DIRECTA | K116: 636000000 | L116: 520000000 | M116: SI | N116: APROBADAS | O116: Gerencia de Abastecimiento Estratégico contratacion@positiva.gov.co PBX: (1)6502200 Ext: 10641 | P116: SI | Q116: SI | R116: NA | S116: SI | T116: Pública clasificada | U116: C80272024 -Tipo de información Pública clasificada-EL CONTRATISTA, se compromete con POSITIVA COMPAÑÍA DE SEGUROS S.A., a realizar la prestación de servicios de Promoción y Prevención para implementar, mejorar y/o mantener actividades de, asesoría, asistencia técnica y de formación en Seguridad y Salud en el Trabajo del PLAN BÁSICO en los Programas, Estructura Empresarial, Preparación y atención ante emergencias, Programa de prevención y protección colectiva e individual, Programa de Promoción y Prevención de la Salud y Programa de investigación de incidentes y accidentes de trabajo, PLAN AVANZADO Programa de Gestión para el Control de Incidentes y Accidentes de Trabajo y Programa de Gestión en la Prevención de la Enfermedad Laboral, PLAN ESPECIALIZADO Programa de Vigilancia Epidemiológica y el PLAN DE GESTION INTEGRAL Sistemas Integrados de Gestión de la Estrategia CREA del Modelo de Gestión Positiva SUMA de acuerdo a los Planes de Trabajo pactados con la empresas y cargados en el aplicativo GESTPOS, para empresas afiliadas a Positiva Compañía de Seguros en la Sucursal Tipo A Coordinadora Valle.
A117: TECNICA | B117: N/A | C117: 93141808 93141904 | D117: El CONTRATISTA se obliga con POSITIVA a la prestación de los servicios de salud para los asegurados y/o afiliados a POSITIVA, que accedan a los servicios habilitados del CONTRATISTA en calidad de asegurados, a los ramos: Administración de Riesgos Laborales (ARL -por causa exclusiva de un accidente de trabajo, una enfermedad profesional), Accidentes Personales (AP Educativo Generación Positiva, AP Colectivos, AP Corto Plazo, AP Individual), Vida Individual, Vida Grupo, y demás Ramos de Seguros autorizados a Positiva, encontrándose excluidos del presente contrato los servicios y todas aquellas actividades, procedimientos e intervenciones que no tengan por objeto contribuir | E117: 2024-01-31 | F117: 1 | G117: 2026-01-31 | H117: 24.36666667 | I117: DIRECTA | K117: 0 | L117: INDETERMINADO | M117: NO | N117: NO APLICA | O117: Gerencia de Abastecimiento Estratégico contratacion@positiva.gov.co PBX: (1)6502200 Ext: 10641 | P117: SI | Q117: SI | R117: NA | S117: SI | T117: Pública clasificada | U117: N/A-Tipo de información Pública clasificada-El CONTRATISTA se obliga con POSITIVA a la prestación de los servicios de salud para los asegurados y/o afiliados a POSITIVA, que accedan a los servicios habilitados del CONTRATISTA en calidad de asegurados, a los ramos: Administración de Riesgos Laborales (ARL -por causa exclusiva de un accidente de trabajo, una enfermedad profesional), Accidentes Personales (AP Educativo Generación Positiva, AP Colectivos, AP Corto Plazo, AP Individual), Vida Individual, Vida Grupo, y demás Ramos de Seguros autorizados a Positiva, encontrándose excluidos del presente contrato los servicios y todas aquellas actividades, procedimientos e intervenciones que no tengan por objeto contribuir
A118: PROMOCION Y PREVENCION | B118: C76142024 | C118: 93141808 93141905 | D118: EL CONTRATISTA, se compromete con POSITIVA COMPAÑÍA DE SEGUROS S.A., a la Prestación de servicios de Promoción y Prevención, para realizar actividades de Seguridad y Salud en el Trabajo, bajo el lineamiento de los Programas del PLAN BASICO: Programa de Estructura empresarial, Programa de Preparación y Atención de Emergencias, Programa de Prevención y Protección Colectiva e Individual, Promoción y Prevención en Salud, PLAN AVANZADO: Programa de Gestión Prevención de la Enfermedad Profesional; PLAN ESPECIALIZADO: Programas de Vigilancia Epidemiológica y PLAN GESTION INTEGRAL: Sistemas de Gestión Integral de la estrategia CREA del Modelo de Gestión Positiva SUMA de acuerdo con los Planes de Trabajo pactados con la empresas y cargados en el aplicativo GESTPOS que se desarrollan en empresas afiliadas a Positiva Compañía de Seguros en la Sucursal Córdoba de la Zona Atlántico. | E118: 2024-01-31 | F118: 1 | G118: 2024-12-31 | H118: 11.16666667 | I118: DIRECTA | K118: 150000000 | L118: 150000000 | M118: NO | N118: NO APLICA | O118: Gerencia de Abastecimiento Estratégico contratacion@positiva.gov.co PBX: (1)6502200 Ext: 10641 | P118: SI | Q118: SI | R118: NA | S118: SI | T118: Pública clasificada | U118: C76142024-Tipo de información Pública clasificada-EL CONTRATISTA, se compromete con POSITIVA COMPAÑÍA DE SEGUROS S.A., a la Prestación de servicios de Promoción y Prevención, para realizar actividades de Seguridad y Salud en el Trabajo, bajo el lineamiento de los Programas del PLAN BASICO: Programa de Estructura empresarial, Programa de Preparación y Atención de Emergencias, Programa de Prevención y Protección Colectiva e Individual, Promoción y Prevención en Salud, PLAN AVANZADO: Programa de Gestión Prevención de la Enfermedad Profesional; PLAN ESPECIALIZADO: Programas de Vigilancia Epidemiológica y PLAN GESTION INTEGRAL: Sistemas de Gestión Integral de la estrategia CREA del Modelo de Gestión Positiva SUMA de acuerdo con los Planes de Trabajo pactados con la empresas y cargados en el aplicativo GESTPOS que se desarrollan en empresas afiliadas a Positiva Compañía de Seguros en la Sucursal Córdoba de la Zona Atlántico.
A119: OPERACIONES | B119: C45262024 | C119: 93141808 93141906 | D119: EL CONTRATISTA se compromete con POSITIVA COMPAÑÍA DE SEGUROS S.A. a la Prestación de servicios de apoyo a la gestión en la Gerencia de Afiliaciones y Novedades de la Vicepresidencia de Operaciones de POSITIVA, en la revisión, validación, conciliación y gestión en los diferentes aplicativos dispuestos por la compañía para el apoyo en la operación de los procesos de ARL y mantenimiento de pólizas de los ramos de vida individual y colectivo. | E119: 2024-01-31 | F119: 1 | G119: 2024-12-31 | H119: 11.16666667 | I119: DIRECTA | K119: 57797136 | L119: 57797136 | M119: NO | N119: NO APLICA | O119: Gerencia de Abastecimiento Estratégico contratacion@positiva.gov.co PBX: (1)6502200 Ext: 10641 | P119: SI | Q119: SI | R119: NA | S119: SI | T119: Pública clasificada | U119: C45262024-Tipo de información Pública clasificada-EL CONTRATISTA se compromete con POSITIVA COMPAÑÍA DE SEGUROS S.A. a la Prestación de servicios de apoyo a la gestión en la Gerencia de Afiliaciones y Novedades de la Vicepresidencia de Operaciones de POSITIVA, en la revisión, validación, conciliación y gestión en los diferentes aplicativos dispuestos por la compañía para el apoyo en la operación de los procesos de ARL y mantenimiento de pólizas de los ramos de vida individual y colectivo.
A120: OPERACIONES | B120: 84453352 | C120: 93141808 93141907 | D120: EL CONTRATISTA se compromete con POSITIVA COMPAÑÍA DE SEGUROS S.A. a la Prestación de servicios de apoyo a la Gerencia de Afiliaciones y Novedades de la Vicepresidencia de Operaciones de Positiva, en la revisión, validación, conciliación y gestión en los diferentes aplicativos dispuestos por la compañía para el apoyo en la operación de los procesos de ARL y mantenimiento de pólizas de los ramos de vida individual y colectivo. | E120: 2024-02-01 | F120: 2 | G120: 2024-12-31 | H120: 11.13333333 | I120: DIRECTA | K120: 42000000 | L120: 42000000 | M120: NO | N120: NO APLICA | O120: Gerencia de Abastecimiento Estratégico contratacion@positiva.gov.co PBX: (1)6502200 Ext: 10641 | P120: SI | Q120: SI | R120: NA | S120: SI | T120: Pública clasificada | U120: 84453352-Tipo de información Pública clasificada-EL CONTRATISTA se compromete con POSITIVA COMPAÑÍA DE SEGUROS S.A. a la Prestación de servicios de apoyo a la Gerencia de Afiliaciones y Novedades de la Vicepresidencia de Operaciones de Positiva, en la revisión, validación, conciliación y gestión en los diferentes aplicativos dispuestos por la compañía para el apoyo en la operación de los procesos de ARL y mantenimiento de pólizas de los ramos de vida individual y colectivo.
A121: PROMOCION Y PREVENCION | B121: C79102024 | C121: 93141808 93141908 | D121: El CONTRATISTA se compromete a la Prestación de Servicios de Promoción y Prevención para para implementar, mejorar y/o mantener actividades de asesoría, asistencia técnica y de formación en Seguridad y Salud en el Trabajo del Plan Básico en los programas (Programa de Estructura Empresarial; Programa Preparación y Atención de Emergencias, Programa de Prevención y Protección Colectiva e Individual; Programa de Promoción y Prevención en Salud; Programa Investigación de Incidentes y Accidentes de Trabajo) Avanzado en los programas de (Programa gestión Para el Control de Incidentes y Accidentes de Trabajo, Programa gestión en la Prevención de Enfermedades Profesionales D.M.E;) de la Estrategia CREA del Modelo de Gestión Positiva SUMA de acuerdo con los Planes de Trabajo pactados con las Empresas y cargados al aplicativo GESTPOS para empresas afiliadas a Positiva Compañía de Seguros S.A especialmente para empresas en la Sucursal Casanare de la Zona Santander. | E121: 2024-02-01 | F121: 2 | G121: 2024-12-31 | H121: 11.13333333 | I121: DIRECTA | K121: 230000000 | L121: 160000000 | M121: SI | N121: APROBADAS | O121: Gerencia de Abastecimiento Estratégico contratacion@positiva.gov.co PBX: (1)6502200 Ext: 10641 | P121: SI | Q121: SI | R121: NA | S121: SI | T121: Pública clasificada | U121: C79102024-Tipo de información Pública clasificada-El CONTRATISTA se compromete a la Prestación de Servicios de Promoción y Prevención para para implementar, mejorar y/o mantener actividades de asesoría, asistencia técnica y de formación en Seguridad y Salud en el Trabajo del Plan Básico en los programas (Programa de Estructura Empresarial; Programa Preparación y Atención de Emergencias, Programa de Prevención y Protección Colectiva e Individual; Programa de Promoción y Prevención en Salud; Programa Investigación de Incidentes y Accidentes de Trabajo) Avanzado en los programas de (Programa gestión Para el Control de Incidentes y Accidentes de Trabajo, Programa gestión en la Prevención de Enfermedades Profesionales D.M.E;) de la Estrategia CREA del Modelo de Gestión Positiva SUMA de acuerdo con los Planes de Trabajo pactados con las Empresas y cargados al aplicativo GESTPOS para empresas afiliadas a Positiva Compañía de Seguros S.A especialmente para empresas en la Sucursal Casanare de la Zona Santander.
A122: SECRETARIA GENERAL Y JURIDICA | B122: C20572024 | C122: 93141808 93141909 | D122: El CONTRATISTA se obliga a favor de POSITIVA a la PRESTACIÓN DE SERVICIOS PROFESIONALES PARA BRINDAR APOYO EN LA REALIZACIÓN Y SEGUIMIENTO DE LAS ACTIVIDADES ASOCIADAS AL PROCESO DE GESTIÓN DE CONOCIMIENTO, CON EL PROPÓSITO DE FORTALECER LAS CAPACIDADES TÉCNICAS Y COMPORTAMENTALES DE LOS COLABORADORES DE LA COMPAÑÍA. | E122: 2024-02-01 | F122: 2 | G122: 2024-12-31 | H122: 11.13333333 | I122: DIRECTA | K122: 84000000 | L122: 84000000 | M122: NO | N122: NO APLICA | O122: Gerencia de Abastecimiento Estratégico contratacion@positiva.gov.co PBX: (1)6502200 Ext: 10641 | P122: SI | Q122: SI | R122: NA | S122: SI | T122: Pública clasificada | U122: C20572024-Tipo de información Pública clasificada-El CONTRATISTA se obliga a favor de POSITIVA a la PRESTACIÓN DE SERVICIOS PROFESIONALES PARA BRINDAR APOYO EN LA REALIZACIÓN Y SEGUIMIENTO DE LAS ACTIVIDADES ASOCIADAS AL PROCESO DE GESTIÓN DE CONOCIMIENTO, CON EL PROPÓSITO DE FORTALECER LAS CAPACIDADES TÉCNICAS Y COMPORTAMENTALES DE LOS COLABORADORES DE LA COMPAÑÍA.
A123: SECRETARIA GENERAL Y JURIDICA | B123: C20672024 | C123: 93141808 93141910 | D123: Por esta Aceptación de Oferta POSITIVA no se obliga a encomendar en forma exclusiva a EL CONTRATISTA todos los asuntos en los cuales requiera los servicios para los mismos efectos aquí contratados. Así mismo, no surge para EL CONTRATISTA, la obligación de prestar sus servicios en forma exclusiva a POSITIVA. | E123: 2024-02-01 | F123: 2 | G123: 2024-12-31 | H123: 11.13333333 | I123: DIRECTA | K123: 83725894 | L123: 83725894 | M123: NO | N123: NO APLICA | O123: Gerencia de Abastecimiento Estratégico contratacion@positiva.gov.co PBX: (1)6502200 Ext: 10641 | P123: SI | Q123: SI | R123: NA | S123: SI | T123: Pública clasificada | U123: C20672024-Tipo de información Pública clasificada-Por esta Aceptación de Oferta POSITIVA no se obliga a encomendar en forma exclusiva a EL CONTRATISTA todos los asuntos en los cuales requiera los servicios para los mismos efectos aquí contratados. Así mismo, no surge para EL CONTRATISTA, la obligación de prestar sus servicios en forma exclusiva a POSITIVA.
A124: PROMOCION Y PREVENCION | B124: C80012024 | C124: 93141808 93141911 | D124: EL CONTRATISTA, se compromete con POSITIVA COMPAÑÍA DE SEGUROS S.A., a la Prestación de servicios de Promoción y Prevención para implementar, mejorar y/o mantener las actividades de consultoría, asesoría, asistencia técnica y de formación en Seguridad y Salud en el Trabajo, bajo el lineamiento de los programas de la Estrategia CREA del Modelo de Gestión Positiva SUMA, en PLAN BASICO: Programa Estructura Empresarial, Preparación y atención de emergencias, Programa Protección Colectiva e Individual, Programa Promoción y prevención en Salud, Programa de Investigación de incidentes y accidentes de trabajo; PLAN AVANZADO: Programa Gestión para el Control de incidentes y accidentes de trabajo, programa de Gestión en la Prevención de la Enfermedad Laboral; PLAN ESPECIALIZADO: Programas de Vigilancia Epidemiológica; PLAN GESTION INTEGRAL: Programa Sistema de Gestión, para la atención de las empresas de Planes Gran empresa, afiliadas a POSITIVA COMPAÑÍA DE SEGUROS Sucursal Cauca Zona Valle. | E124: 2024-02-01 | F124: 2 | G124: 2024-12-31 | H124: 11.13333333 | I124: DIRECTA | K124: 287654400 | L124: 287654400 | M124: NO | N124: NO APLICA | O124: Gerencia de Abastecimiento Estratégico contratacion@positiva.gov.co PBX: (1)6502200 Ext: 10641 | P124: SI | Q124: SI | R124: NA | S124: SI | T124: Pública clasificada | U124: C80012024-Tipo de información Pública clasificada-EL CONTRATISTA, se compromete con POSITIVA COMPAÑÍA DE SEGUROS S.A., a la Prestación de servicios de Promoción y Prevención para implementar, mejorar y/o mantener las actividades de consultoría, asesoría, asistencia técnica y de formación en Seguridad y Salud en el Trabajo, bajo el lineamiento de los programas de la Estrategia CREA del Modelo de Gestión Positiva SUMA, en PLAN BASICO: Programa Estructura Empresarial, Preparación y atención de emergencias, Programa Protección Colectiva e Individual, Programa Promoción y prevención en Salud, Programa de Investigación de incidentes y accidentes de trabajo; PLAN AVANZADO: Programa Gestión para el Control de incidentes y accidentes de trabajo, programa de Gestión en la Prevención de la Enfermedad Laboral; PLAN ESPECIALIZADO: Programas de Vigilancia Epidemiológica; PLAN GESTION INTEGRAL: Programa Sistema de Gestión, para la atención de las empresas de Planes Gran empresa, afiliadas a POSITIVA COMPAÑÍA DE SEGUROS Sucursal Cauca Zona Valle.
A125: TECNICA | B125: N/A | C125: 93141808 93141912 | D125: El CONTRATISTA se obliga con POSITIVA a la prestación de los servicios de salud para los asegurados y/oafiliados a POSITIVA, que accedan a los servicios habilitados del CONTRATISTA en calidad de asegurados,a los ramos: Administración de Riesgos Laborales (ARL -por causa exclusiva de un accidente de trabajo, unaenfermedad profesional), Accidentes Personales (AP Educativo Generación Positiva, AP Colectivos, AP CortoPlazo, AP Individual), Vida Individual, Vida Grupo, Planes de Salud (complicaciones quirúrgicas, de cirugíaestética y bariátrica) y demás Ramos de Seguros autorizados a Positiva, encontrándose excluidos del presentecontrato los servicios y todas aquellas actividades, procedimientos e intervenciones que no tengan por objetocontribuir al diagnóstico, tratamiento o rehabilitación de la patología derivada del siniestro o los serviciosconsiderados como experimentales, cosméticos y suntuarios. Para tal efecto, POSITIVA se compromete apagarle al CONTRATISTA el valor de los servicios de salud, en caso de la atención de:1. Cita de oftalmología2. Cirugía oftalmológica3. Trasplante tejidos oculares 4. Lentes, Monturas Demás servicios que se habiliten durante la vigencia del contrato previa concertación económica entre las partes. | E125: 2024-02-02 | F125: 2 | G125: 2026-02-02 | H125: 24.36666667 | I125: DIRECTA | K125: 0 | L125: INDETERMINADO | M125: NO | N125: NO APLICA | O125: Gerencia de Abastecimiento Estratégico contratacion@positiva.gov.co PBX: (1)6502200 Ext: 10641 | P125: SI | Q125: SI | R125: NA | S125: SI | T125: Pública clasificada | U125: N/A-Tipo de información Pública clasificada-El CONTRATISTA se obliga con POSITIVA a la prestación de los servicios de salud para los asegurados y/oafiliados a POSITIVA, que accedan a los servicios habilitados del CONTRATISTA en calidad de asegurados,a los ramos: Administración de Riesgos Laborales (ARL -por causa exclusiva de un accidente de trabajo, unaenfermedad profesional), Accidentes Personales (AP Educativo Generación Positiva, AP Colectivos, AP CortoPlazo, AP Individual), Vida Individual, Vida Grupo, Planes de Salud (complicaciones quirúrgicas, de cirugíaestética y bariátrica) y demás Ramos de Seguros autorizados a Positiva, encontrándose excluidos del presentecontrato los servicios y todas aquellas actividades, procedimientos e intervenciones que no tengan por objetocontribuir al diagnóstico, tratamiento o rehabilitación de la patología derivada del siniestro o los serviciosconsiderados como experimentales, cosméticos y suntuarios. Para tal efecto, POSITIVA se compromete apagarle al CONTRATISTA el valor de los servicios de salud, en caso de la atención de:1. Cita de oftalmología2. Cirugía oftalmológica3. Trasplante tejidos oculares 4. Lentes, Monturas Demás servicios que se habiliten durante la vigencia del contrato previa concertación económica entre las partes.
A126: FINANCIERA Y ADMINISTRATIVA | B126: C55682024 | C126: 93141808 93141913 | D126: EL CONTRATISTA se compromete con POSITIVA COMPAÑÍA DE SEGUROS S.A. a Prestar el servicio de mantenimiento, actualización y nuevos requerimientos para los aplicativos SICO y SUNBOXES (Viáticos y Cajas menores respectivamente). | E126: 2024-02-02 | F126: 2 | G126: 2024-06-30 | H126: 4.966666667 | I126: DIRECTA | K126: 47023200 | L126: 47023200 | M126: NO | N126: NO APLICA | O126: Gerencia de Abastecimiento Estratégico contratacion@positiva.gov.co PBX: (1)6502200 Ext: 10641 | P126: SI | Q126: SI | R126: NA | S126: SI | T126: Pública clasificada | U126: C55682024-Tipo de información Pública clasificada-EL CONTRATISTA se compromete con POSITIVA COMPAÑÍA DE SEGUROS S.A. a Prestar el servicio de mantenimiento, actualización y nuevos requerimientos para los aplicativos SICO y SUNBOXES (Viáticos y Cajas menores respectivamente).
A127: PROMOCION Y PREVENCION | B127: C75312024 | C127: 93141808 93141914 | D127: Prestación de servicios de Promoción y Prevención para implementar, mejorar y/o mantener actividades de asesoría técnica con alcance en los programas: Estructura empresarial, Programa de Preparación y Atención de Emergencias, Programa de Prevención y Protección Colectiva e Individual, Promoción y Prevención en Salud, Programa de Investigación de Incidencia y Accidentes de Trabajo, Gestión para el Control de Incidentes y Accidentes de Trabajo, Gestión en la Prevención de Enfermedades Laborales, Vigilancia Epidemiológica y Gestión Integral, para atención de las empresas afiliadas que correspondan a la modalidad de atención de GRAN EMPRESA para la sucursal Tipo B – Risaralda de la sucursal coordinadora Antioquia. Especialmente para las empresas de los sectores de construcción e inmobiliarias y grupo empresa sector público en actividades de tareas de alto riesgos. | E127: 2024-02-02 | F127: 2 | G127: 2024-12-31 | H127: 11.1 | I127: DIRECTA | K127: 240000000 | L127: 160000000 | M127: SI | N127: APROBADAS | O127: Gerencia de Abastecimiento Estratégico contratacion@positiva.gov.co PBX: (1)6502200 Ext: 10641 | P127: SI | Q127: SI | R127: NA | S127: SI | T127: Pública clasificada | U127: C75312024-Tipo de información Pública clasificada-Prestación de servicios de Promoción y Prevención para implementar, mejorar y/o mantener actividades de asesoría técnica con alcance en los programas: Estructura empresarial, Programa de Preparación y Atención de Emergencias, Programa de Prevención y Protección Colectiva e Individual, Promoción y Prevención en Salud, Programa de Investigación de Incidencia y Accidentes de Trabajo, Gestión para el Control de Incidentes y Accidentes de Trabajo, Gestión en la Prevención de Enfermedades Laborales, Vigilancia Epidemiológica y Gestión Integral, para atención de las empresas afiliadas que correspondan a la modalidad de atención de GRAN EMPRESA para la sucursal Tipo B – Risaralda de la sucursal coordinadora Antioquia. Especialmente para las empresas de los sectores de construcción e inmobiliarias y grupo empresa sector público en actividades de tareas de alto riesgos.
A128: PROMOCION Y PREVENCION | B128: C75252024 | C128: 93141808 93141915 | D128: Prestar servicios de promoción y prevención para implementar, mejorar y/o mantener actividades de asesoría y asistencia técnica del Sistema de Gestión de Seguridad y Salud en Trabajo, bajo el lineamiento de los Programas del PLAN BASICO, Estructura Empresarial, Preparación y Atención de Emergencias, Promoción y Prevención en Salud, Investigación de Incidentes y Accidentes de Trabajo, Prevención y Protección Colectiva e Individual, PLAN AVANZADO, Gestión en la Prevención de la Enfermedad Laboral, Gestión en la Prevención de la Accidentalidad y PLAN ESPECIALIZADO, Sistemas de Vigilancia Epidemiológica, PLAN DE GESTION INTEGRAL, Sistemas Integrados de Gestión, de la estrategia CREA, para la atención de empresas en la modalidad de atención GRAN EMPRESA, afiliadas a la Compañía en la Sucursal Quindío de la Zona Antioquia, primordialmente empresas del sector educación y de actividades de administración y apoyo empresarial. | E128: 2024-02-02 | F128: 2 | G128: 2024-12-31 | H128: 11.1 | I128: DIRECTA | K128: 196128000 | L128: 196128000 | M128: NO | N128: NO APLICA | O128: Gerencia de Abastecimiento Estratégico contratacion@positiva.gov.co PBX: (1)6502200 Ext: 10641 | P128: SI | Q128: SI | R128: NA | S128: SI | T128: Pública clasificada | U128: C75252024-Tipo de información Pública clasificada-Prestar servicios de promoción y prevención para implementar, mejorar y/o mantener actividades de asesoría y asistencia técnica del Sistema de Gestión de Seguridad y Salud en Trabajo, bajo el lineamiento de los Programas del PLAN BASICO, Estructura Empresarial, Preparación y Atención de Emergencias, Promoción y Prevención en Salud, Investigación de Incidentes y Accidentes de Trabajo, Prevención y Protección Colectiva e Individual, PLAN AVANZADO, Gestión en la Prevención de la Enfermedad Laboral, Gestión en la Prevención de la Accidentalidad y PLAN ESPECIALIZADO, Sistemas de Vigilancia Epidemiológica, PLAN DE GESTION INTEGRAL, Sistemas Integrados de Gestión, de la estrategia CREA, para la atención de empresas en la modalidad de atención GRAN EMPRESA, afiliadas a la Compañía en la Sucursal Quindío de la Zona Antioquia, primordialmente empresas del sector educación y de actividades de administración y apoyo empresarial.
A129: PROMOCION Y PREVENCION | B129: C86022024 | C129: 93141808 93141916 | D129: Por este Contrato POSITIVA COMPAÑÍA DE SEGUROS S.A., no se obliga a encomendar en forma exclusiva a EL CONTRATISTA todos los asuntos en los cuales requiera los servicios para los mismos efectos aquí contratados. Así mismo, no surge para EL CONTRATISTA la obligación de prestar sus servicios en forma exclusiva a POSITIVA COMPAÑÍA DE SEGUROS S.A. | E129: 2024-02-02 | F129: 2 | G129: 2024-07-31 | H129: 6 | I129: DIRECTA | K129: 4923000000 | L129: 3300000000 | M129: SI | N129: APROBADAS | O129: Gerencia de Abastecimiento Estratégico contratacion@positiva.gov.co PBX: (1)6502200 Ext: 10641 | P129: SI | Q129: SI | R129: NA | S129: SI | T129: Pública clasificada | U129: C86022024-Tipo de información Pública clasificada-Por este Contrato POSITIVA COMPAÑÍA DE SEGUROS S.A., no se obliga a encomendar en forma exclusiva a EL CONTRATISTA todos los asuntos en los cuales requiera los servicios para los mismos efectos aquí contratados. Así mismo, no surge para EL CONTRATISTA la obligación de prestar sus servicios en forma exclusiva a POSITIVA COMPAÑÍA DE SEGUROS S.A.
A130: FINANCIERA Y ADMINISTRATIVA | B130: C56282024 | C130: 93141808 93141917 | D130: EL CONTRATISTA se obliga a prestarle a POSITIVA COMPAÑÍA DE SEGUROS S.A. los servicios profesionales especializados para la revisión de revelaciones de las notasde los Estados Financieros Básicos y el acompañamiento, revisión y diagnóstico delmanual de políticas contables de POSITIVA en el marco de las Normas Internacionalesde Información Financiera (NIIF), y la reestructuración (reformulación) de por los menoslas tres políticas más relevantes de mayor impacto para la organización, de acuerdo conlas necesidades de la Compañía. | E130: 2024-02-02 | F130: 2 | G130: 2024-06-30 | H130: 4.966666667 | I130: DIRECTA | K130: 742500000 | L130: 495000000 | M130: SI | N130: APROBADAS | O130: Gerencia de Abastecimiento Estratégico contratacion@positiva.gov.co PBX: (1)6502200 Ext: 10641 | P130: SI | Q130: SI | R130: NA | S130: SI | T130: Pública clasificada | U130: C56282024-Tipo de información Pública clasificada-EL CONTRATISTA se obliga a prestarle a POSITIVA COMPAÑÍA DE SEGUROS S.A. los servicios profesionales especializados para la revisión de revelaciones de las notasde los Estados Financieros Básicos y el acompañamiento, revisión y diagnóstico delmanual de políticas contables de POSITIVA en el marco de las Normas Internacionalesde Información Financiera (NIIF), y la reestructuración (reformulación) de por los menoslas tres políticas más relevantes de mayor impacto para la organización, de acuerdo conlas necesidades de la Compañía.
A131: PROMOCION Y PREVENCION | B131: C77062024 | C131: 93141808 93141918 | D131: EL CONTRATISTA se compromete a realizar la prestación de servicios de Promoción yPrevención para implementar, mejorar y/o mantener actividades de asesoría técnica delsistema de gestión de seguridad y salud en el trabajo con base en los programas de losplanes: PLAN BASICO: Programa de Prevención y Protección Colectiva e Individual,Programa Preparación y Atención de Emergencia, Programa Investigación de Incidentes,Accidentes de trabajo PLAN AVANZADO: Programa de Gestión para el Control deIncidentes y Accidentes de Trabajo, Programa de Gestión en la Prevención deEnfermedades Profesionales, PLAN ESPECIALIZADO Programas de VigilanciaEpidemiológico y PLAN DE GESTION INTEGRAL: Programa Sistema de Gestión en S&SOOHSAS 18001 de la Estrategia CREA del Modelo de Gestión POSITIVA SUMA, para laatención de las empresas afiliadas a POSITIVA COMPAÑÍA DE SEGUROS, en lamodalidad de atención GRAN EMPRESA, en la Sucursal Coordinadora Bogotá. | E131: 2024-02-02 | F131: 2 | G131: 2024-12-31 | H131: 11.1 | I131: DIRECTA | K131: 600000000 | L131: 600000000 | M131: NO | N131: NO APLICA | O131: Gerencia de Abastecimiento Estratégico contratacion@positiva.gov.co PBX: (1)6502200 Ext: 10641 | P131: SI | Q131: SI | R131: NA | S131: SI | T131: Pública clasificada | U131: C77062024-Tipo de información Pública clasificada-EL CONTRATISTA se compromete a realizar la prestación de servicios de Promoción yPrevención para implementar, mejorar y/o mantener actividades de asesoría técnica delsistema de gestión de seguridad y salud en el trabajo con base en los programas de losplanes: PLAN BASICO: Programa de Prevención y Protección Colectiva e Individual,Programa Preparación y Atención de Emergencia, Programa Investigación de Incidentes,Accidentes de trabajo PLAN AVANZADO: Programa de Gestión para el Control deIncidentes y Accidentes de Trabajo, Programa de Gestión en la Prevención deEnfermedades Profesionales, PLAN ESPECIALIZADO Programas de VigilanciaEpidemiológico y PLAN DE GESTION INTEGRAL: Programa Sistema de Gestión en S&SOOHSAS 18001 de la Estrategia CREA del Modelo de Gestión POSITIVA SUMA, para laatención de las empresas afiliadas a POSITIVA COMPAÑÍA DE SEGUROS, en lamodalidad de atención GRAN EMPRESA, en la Sucursal Coordinadora Bogotá.
A132: TECNICA | B132: N/A | C132: 93141808 93141919 | D132: El CONTRATISTA se obliga con POSITIVA a la prestación de los servicios de salud para los asegurados y/o afiliados a POSITIVA, que accedan a los servicios habilitados del CONTRATISTA en calidad de asegurados, a los ramos: Administración de Riesgos Laborales (ARL -por causa exclusiva de un accidente de trabajo, una enfermedad profesional), Accidentes Personales (AP Educativo Generación Positiva, AP Colectivos, AP Corto Plazo, AP Individual), Vida Individual, Vida Grupo, Planes de Salud (complicaciones quirúrgicas, de cirugíaestética y bariátrica) y demás Ramos de Seguros autorizados a Positiva, encontrándose excluidos del presente contrato los servicios y todas aquellas actividades, procedimientos e intervenciones que no tengan por objeto contribuir aldiagnóstico, tratamiento o rehabilitación de la patología derivada del siniestro o los servicios considerados como experimentales, cosméticos y suntuarios. Para tal efecto, POSITIVA se compromete a pagarle al CONTRATISTA el valor de los servicios de salud, en caso de la atención de: 1. Consulta Externa 2. Apoyo Diagnostico y Complementación Terapéutica 3. Demás servicios que se habiliten durante la vigencia del contrato previa concertación económica entre las partes. | E132: 2024-02-05 | F132: 2 | G132: 2026-03-24 | H132: 25.93333333 | I132: DIRECTA | K132: 0 | L132: INDETERMINADO | M132: NO | N132: NO APLICA | O132: Gerencia de Abastecimiento Estratégico contratacion@positiva.gov.co PBX: (1)6502200 Ext: 10641 | P132: SI | Q132: SI | R132: NA | S132: SI | T132: Pública clasificada | U132: N/A-Tipo de información Pública clasificada-El CONTRATISTA se obliga con POSITIVA a la prestación de los servicios de salud para los asegurados y/o afiliados a POSITIVA, que accedan a los servicios habilitados del CONTRATISTA en calidad de asegurados, a los ramos: Administración de Riesgos Laborales (ARL -por causa exclusiva de un accidente de trabajo, una enfermedad profesional), Accidentes Personales (AP Educativo Generación Positiva, AP Colectivos, AP Corto Plazo, AP Individual), Vida Individual, Vida Grupo, Planes de Salud (complicaciones quirúrgicas, de cirugíaestética y bariátrica) y demás Ramos de Seguros autorizados a Positiva, encontrándose excluidos del presente contrato los servicios y todas aquellas actividades, procedimientos e intervenciones que no tengan por objeto contribuir aldiagnóstico, tratamiento o rehabilitación de la patología derivada del siniestro o los servicios considerados como experimentales, cosméticos y suntuarios. Para tal efecto, POSITIVA se compromete a pagarle al CONTRATISTA el valor de los servicios de salud, en caso de la atención de: 1. Consulta Externa 2. Apoyo Diagnostico y Complementación Terapéutica 3. Demás servicios que se habiliten durante la vigencia del contrato previa concertación económica entre las partes.
A133: SECRETARIA GENERAL Y JURIDICA | B133: N/A | C133: 93141808 93141920 | D133: EL CONTRATISTA, se compromete con POSITIVA COMPAÑÍA DE SEGUROS S.A., a Prestar servicios profesionales para la investigación, análisis y diagnóstico de siniestros, así como del material probatorio de las acciones judiciales o prejudiciales adelantadas por la Compañía. | E133: 2024-02-05 | F133: 2 | G133: 2024-12-31 | H133: 11 | I133: DIRECTA | K133: 450000000 | L133: 450000000 | M133: NO | N133: NO APLICA | O133: Gerencia de Abastecimiento Estratégico contratacion@positiva.gov.co PBX: (1)6502200 Ext: 10641 | P133: SI | Q133: SI | R133: NA | S133: SI | T133: Pública clasificada | U133: N/A-Tipo de información Pública clasificada-EL CONTRATISTA, se compromete con POSITIVA COMPAÑÍA DE SEGUROS S.A., a Prestar servicios profesionales para la investigación, análisis y diagnóstico de siniestros, así como del material probatorio de las acciones judiciales o prejudiciales adelantadas por la Compañía.
A134: PROMOCION Y PREVENCION | B134: C76332024 | C134: 93141808 93141921 | D134: El CONTRATISTA se compromete a Prestación de servicios de Promoción y Prevención del Sistema de Gestión de Seguridad y Salud en el Trabajo, para la ejecución de actividades de asesoría y asistencia técnica en el acompañamiento y la implementación de los Programa de Vigilancia Epidemiológica para la Prevención de Desórdenes Musculo Esqueléticos, del PLAN AVANZADO y PLAN ESPECIALIZADO de la Estrategia CREA del Modelo de Gestión de Positiva SUMA para los grupos de exposición similar con riesgo para la salud de los trabajadores de la empresa CARBONES DEL CERREJON LIMITED, en la sucursal La Guajira de la Zona Atlántico. | E134: 2024-02-05 | F134: 2 | G134: 2024-12-31 | H134: 11 | I134: DIRECTA | K134: 444587514 | L134: 420000000 | M134: SI | N134: APROBADAS | O134: Gerencia de Abastecimiento Estratégico contratacion@positiva.gov.co PBX: (1)6502200 Ext: 10641 | P134: SI | Q134: SI | R134: NA | S134: SI | T134: Pública clasificada | U134: C76332024-Tipo de información Pública clasificada-El CONTRATISTA se compromete a Prestación de servicios de Promoción y Prevención del Sistema de Gestión de Seguridad y Salud en el Trabajo, para la ejecución de actividades de asesoría y asistencia técnica en el acompañamiento y la implementación de los Programa de Vigilancia Epidemiológica para la Prevención de Desórdenes Musculo Esqueléticos, del PLAN AVANZADO y PLAN ESPECIALIZADO de la Estrategia CREA del Modelo de Gestión de Positiva SUMA para los grupos de exposición similar con riesgo para la salud de los trabajadores de la empresa CARBONES DEL CERREJON LIMITED, en la sucursal La Guajira de la Zona Atlántico.
A135: TECNICA | B135: N/A | C135: 93141808 93141922 | D135: El CONTRATISTA se obliga con POSITIVA a prestación de los servicios de salud para los asegurados y/o afiliados a POSITIVA, que accedan a los servicios habilitados del CONTRATISTA en calidad de asegurados, a los ramos: Administración de Riesgos Laborales (ARL -por causa exclusiva de un accidente de trabajo, una enfermedad profesional), Accidentes Personales (AP Educativo Generación Positiva, AP Colectivos, AP Corto Plazo, AP Individual), y demás Ramos de Seguros autorizados a Positiva, encontrándose excluidos del presente contrato los servicios y todas aquellas actividades, procedimientos e intervenciones que no tengan por objeto contribuir al diagnóstico, tratamiento o rehabilitación de la patología derivada del siniestro o los servicios considerados como experimentales, cosméticos y suntuarios. Para tal efecto, POSITIVA se compromete a pagarle al CONTRATISTA el valor de los servicios de salud, en caso de la atención de: 1. TERAPIA OCUPACIONAL 2. TERAPIA RESPIRATORIA 3. FISIOTERAPIA 4. FONOAUDIOLOGÍA Y/O TERAPIA DEL LENGUAJE 5. MEDICINA FÍSICA Y REHABILITACIÓN Demás servicios que se habiliten durante la vigencia del contrato previa concertación económica entre las partes. | E135: 2024-02-05 | F135: 2 | G135: 2026-02-05 | H135: 24.36666667 | I135: DIRECTA | K135: 0 | L135: INDETERMINADO | M135: NO | N135: NO APLICA | O135: Gerencia de Abastecimiento Estratégico contratacion@positiva.gov.co PBX: (1)6502200 Ext: 10641 | P135: SI | Q135: SI | R135: NA | S135: SI | T135: Pública clasificada | U135: N/A-Tipo de información Pública clasificada-El CONTRATISTA se obliga con POSITIVA a prestación de los servicios de salud para los asegurados y/o afiliados a POSITIVA, que accedan a los servicios habilitados del CONTRATISTA en calidad de asegurados, a los ramos: Administración de Riesgos Laborales (ARL -por causa exclusiva de un accidente de trabajo, una enfermedad profesional), Accidentes Personales (AP Educativo Generación Positiva, AP Colectivos, AP Corto Plazo, AP Individual), y demás Ramos de Seguros autorizados a Positiva, encontrándose excluidos del presente contrato los servicios y todas aquellas actividades, procedimientos e intervenciones que no tengan por objeto contribuir al diagnóstico, tratamiento o rehabilitación de la patología derivada del siniestro o los servicios considerados como experimentales, cosméticos y suntuarios. Para tal efecto, POSITIVA se compromete a pagarle al CONTRATISTA el valor de los servicios de salud, en caso de la atención de: 1. TERAPIA OCUPACIONAL 2. TERAPIA RESPIRATORIA 3. FISIOTERAPIA 4. FONOAUDIOLOGÍA Y/O TERAPIA DEL LENGUAJE 5. MEDICINA FÍSICA Y REHABILITACIÓN Demás servicios que se habiliten durante la vigencia del contrato previa concertación económica entre las partes.
A136: TECNICA | B136: N/A | C136: 93141808 93141923 | D136: El CONTRATISTA se obliga con POSITIVA a la prestación de los servicios de salud para los asegurados y/o afiliados a POSITIVA, que accedan a los servicios habilitados del CONTRATISTA en calidad de asegurados, a los ramos: Administración de Riesgos Laborales (ARL -por causa exclusiva de un accidente de trabajo, una enfermedad profesional), Accidentes Personales (AP Educativo Generación Positiva, AP Colectivos, AP Corto Plazo, AP Individual), Vida Individual, Vida Grupo, y demás Ramos de Seguros autorizados a Positiva, encontrándose excluidos del presente contrato los servicios y todas aquellas actividades, procedimientos e intervenciones que no tengan por objeto contribuir al diagnóstico, tratamiento o rehabilitación de la patología derivada del siniestro o los servicios considerados como experimentales, cosméticos y suntuarios. Para tal efecto, POSITIVA se compromete a pagarle al CONTRATISTA el valor de los servicios de salud, en caso de la atención de: 1. Audiometría 2. Logoaudiometría 3. Espirometría 4. Acufenometría 5. Nasosinuscopia 6. Terapia Fonoaudiológica de la voz Demás servicios que se habiliten durante la vigencia del contrato previa concertación económica entre las partes | E136: 2024-02-05 | F136: 2 | G136: 2026-02-05 | H136: 24.36666667 | I136: DIRECTA | K136: 0 | L136: INDETERMINADO | M136: NO | N136: NO APLICA | O136: Gerencia de Abastecimiento Estratégico contratacion@positiva.gov.co PBX: (1)6502200 Ext: 10641 | P136: SI | Q136: SI | R136: NA | S136: SI | T136: Pública clasificada | U136: N/A-Tipo de información Pública clasificada-El CONTRATISTA se obliga con POSITIVA a la prestación de los servicios de salud para los asegurados y/o afiliados a POSITIVA, que accedan a los servicios habilitados del CONTRATISTA en calidad de asegurados, a los ramos: Administración de Riesgos Laborales (ARL -por causa exclusiva de un accidente de trabajo, una enfermedad profesional), Accidentes Personales (AP Educativo Generación Positiva, AP Colectivos, AP Corto Plazo, AP Individual), Vida Individual, Vida Grupo, y demás Ramos de Seguros autorizados a Positiva, encontrándose excluidos del presente contrato los servicios y todas aquellas actividades, procedimientos e intervenciones que no tengan por objeto contribuir al diagnóstico, tratamiento o rehabilitación de la patología derivada del siniestro o los servicios considerados como experimentales, cosméticos y suntuarios. Para tal efecto, POSITIVA se compromete a pagarle al CONTRATISTA el valor de los servicios de salud, en caso de la atención de: 1. Audiometría 2. Logoaudiometría 3. Espirometría 4. Acufenometría 5. Nasosinuscopia 6. Terapia Fonoaudiológica de la voz Demás servicios que se habiliten durante la vigencia del contrato previa concertación económica entre las partes
A137: OPERACIONES | B137: N/A | C137: 93141808 93141924 | D137: EL CONTRATISTA, se compromete con POSITIVA., a la prestación del servicio para la publicación de edictos de prensa con ocasión del fallecimiento de los pensionados, dentro del trámite de decisión de las prestaciones económicas de sustitución pensional en los ramos de riesgos laborales, conmutación pensional y rentas vitalicias. Adicionalmente, los edictos para la citación a revisión pensional trienal. | E137: 2024-02-05 | F137: 2 | G137: 2025-12-31 | H137: 23.16666667 | I137: DIRECTA | K137: 70000000 | L137: 70000000 | M137: NO | N137: NO APLICA | O137: Gerencia de Abastecimiento Estratégico contratacion@positiva.gov.co PBX: (1)6502200 Ext: 10641 | P137: SI | Q137: SI | R137: NA | S137: SI | T137: Pública clasificada | U137: N/A-Tipo de información Pública clasificada-EL CONTRATISTA, se compromete con POSITIVA., a la prestación del servicio para la publicación de edictos de prensa con ocasión del fallecimiento de los pensionados, dentro del trámite de decisión de las prestaciones económicas de sustitución pensional en los ramos de riesgos laborales, conmutación pensional y rentas vitalicias. Adicionalmente, los edictos para la citación a revisión pensional trienal.
A138: FINANCIERA Y ADMINISTRATIVA | B138: C56292024 | C138: 93141808 93141925 | D138: La CONTRATISTA se obliga a favor de POSITIVA a PRESTACIÓN DE SERVICIOS PROFESIONALES PARA APOYAR EL MACROPROCESO DE GESTIÓN DE ACTIVOS, ARQUITECTURA, DE LA GERENCIA DE LOGÍSTICA DE LA VICEPRESIDENCIA FINANCIERA Y ADMINISTRATIVA, DE ACUERDO CON LAS NECESIDADES DEL ÁREA Y DE POSITIVA COMPAÑÍA DE SEGUROS S.A. | E138: 2024-02-05 | F138: 2 | G138: 2024-12-31 | H138: 11 | I138: DIRECTA | K138: 60500000 | L138: 60500000 | M138: NO | N138: NO APLICA | O138: Gerencia de Abastecimiento Estratégico contratacion@positiva.gov.co PBX: (1)6502200 Ext: 10641 | P138: SI | Q138: SI | R138: NA | S138: SI | T138: Pública clasificada | U138: C56292024-Tipo de información Pública clasificada-La CONTRATISTA se obliga a favor de POSITIVA a PRESTACIÓN DE SERVICIOS PROFESIONALES PARA APOYAR EL MACROPROCESO DE GESTIÓN DE ACTIVOS, ARQUITECTURA, DE LA GERENCIA DE LOGÍSTICA DE LA VICEPRESIDENCIA FINANCIERA Y ADMINISTRATIVA, DE ACUERDO CON LAS NECESIDADES DEL ÁREA Y DE POSITIVA COMPAÑÍA DE SEGUROS S.A.
A139: TECNICA | B139: N/A | C139: 93141808 93141926 | D139: El CONTRATISTA se obliga con POSITIVA a la prestación de los servicios de salud para los asegurados y/o afiliados a POSITIVA, que accedan a los servicios habilitados del CONTRATISTA en calidad de asegurados, a los ramos: Administración de Riesgos Laborales (ARL -por causa exclusiva de un accidente de trabajo, una enfermedad profesional), Accidentes Personales (AP Educativo Generación Positiva, AP Colectivos, AP Corto Plazo, AP Individual), Vida Individual, Vida Grupo, Planes de Salud (complicaciones quirúrgicas, de cirugía estética y bariátrica) y demás Ramos de Seguros autorizados a Positiva, encontrándose excluidos del presente contrato los servicios y todas aquellas actividades, procedimientos e intervenciones que no tengan por objeto contribuir al diagnóstico, tratamiento o rehabilitación de la patología derivada del siniestro o los servicios considerados como experimentales, cosméticos y suntuarios. Para tal efecto, POSITIVA se compromete a pagarle al CONTRATISTA el valor de los servicios de salud, en caso de la atención de: 1. ANESTESIA 2. CIRUGÍAS QUIRÚRGICAS 3. CUIDADO INTENSIVO ADULTOS 4. DOLOR Y CUIDADOS PALIATIVOS 5. FISIOTERAPIA 6. HOSPITALIZACIÓN ADULTOS 7. IMÁGENES DIAGNOSTICAS 8. LABORATORIO CLÍNICO 9. MEDICINA FÍSICA Y REHABILITACIÓN 10. MEDICINA GENERAL 11. OFTALMOLOGÍA 12. ORTOPEDIA Y/O TRAUMATOLOGIA 13. OTORRINOLARINGOLOGÍA 14. PSICOLOGÍA 15. TERAPIA RESPIRATORIA 16. URGENCIAS Demás servicios que se habiliten durante la vigencia del contrato previa concertación económica entre las partes. | E139: 2024-02-05 | F139: 2 | G139: 2026-03-04 | H139: 25.26666667 | I139: DIRECTA | K139: 0 | L139: INDETERMINADO | M139: NO | N139: NO APLICA | O139: Gerencia de Abastecimiento Estratégico contratacion@positiva.gov.co PBX: (1)6502200 Ext: 10641 | P139: SI | Q139: SI | R139: NA | S139: SI | T139: Pública clasificada | U139: N/A-Tipo de información Pública clasificada-El CONTRATISTA se obliga con POSITIVA a la prestación de los servicios de salud para los asegurados y/o afiliados a POSITIVA, que accedan a los servicios habilitados del CONTRATISTA en calidad de asegurados, a los ramos: Administración de Riesgos Laborales (ARL -por causa exclusiva de un accidente de trabajo, una enfermedad profesional), Accidentes Personales (AP Educativo Generación Positiva, AP Colectivos, AP Corto Plazo, AP Individual), Vida Individual, Vida Grupo, Planes de Salud (complicaciones quirúrgicas, de cirugía estética y bariátrica) y demás Ramos de Seguros autorizados a Positiva, encontrándose excluidos del presente contrato los servicios y todas aquellas actividades, procedimientos e intervenciones que no tengan por objeto contribuir al diagnóstico, tratamiento o rehabilitación de la patología derivada del siniestro o los servicios considerados como experimentales, cosméticos y suntuarios. Para tal efecto, POSITIVA se compromete a pagarle al CONTRATISTA el valor de los servicios de salud, en caso de la atención de: 1. ANESTESIA 2. CIRUGÍAS QUIRÚRGICAS 3. CUIDADO INTENSIVO ADULTOS 4. DOLOR Y CUIDADOS PALIATIVOS 5. FISIOTERAPIA 6. HOSPITALIZACIÓN ADULTOS 7. IMÁGENES DIAGNOSTICAS 8. LABORATORIO CLÍNICO 9. MEDICINA FÍSICA Y REHABILITACIÓN 10. MEDICINA GENERAL 11. OFTALMOLOGÍA 12. ORTOPEDIA Y/O TRAUMATOLOGIA 13. OTORRINOLARINGOLOGÍA 14. PSICOLOGÍA 15. TERAPIA RESPIRATORIA 16. URGENCIAS Demás servicios que se habiliten durante la vigencia del contrato previa concertación económica entre las partes.
A140: PROMOCION Y PREVENCION | B140: C80302024 | C140: 93141808 93141927 | D140: EL CONTRATISTA, se compromete con POSITIVA COMPAÑÍA DE SEGUROS S.A., a la prestación de servicios de Promoción y Prevención para implementar, mejorar y/o mantener actividades de, asesoría, asistencia técnica y de formación en Seguridad y Salud en el Trabajo del PLAN BÁSICO en los Programas, Estructura Empresarial, Preparación y atención ante emergencias, Programa de prevención y protección colectiva e individual, Programa de Promoción y Prevención de la Salud y Programa de investigación de incidentes y accidentes de trabajo, PLAN AVANZADO Programa de Gestión para el Control de Incidentes y Accidentes de Trabajo y Programa de Gestión en la Prevención de la Enfermedad Laboral, PLAN ESPECIALIZADO Programa de Vigilancia Epidemiológica y el PLAN DE GESTION INTEGRAL Sistemas Integrados de Gestión de la Estrategia CREA del Modelo de Gestión Positiva SUMA de acuerdo a los Planes de Trabajo pactados con la empresas y cargados en el aplicativo GESTPOS, para empresas afiliadas a Positiva Compañía de Seguros en la Sucursal Tipo A Coordinadora Valle | E140: 2024-02-05 | F140: 2 | G140: 2024-12-31 | H140: 11 | I140: DIRECTA | K140: 150000000 | L140: 150000000 | M140: NO | N140: NO APLICA | O140: Gerencia de Abastecimiento Estratégico contratacion@positiva.gov.co PBX: (1)6502200 Ext: 10641 | P140: SI | Q140: SI | R140: NA | S140: SI | T140: Pública clasificada | U140: C80302024-Tipo de información Pública clasificada-EL CONTRATISTA, se compromete con POSITIVA COMPAÑÍA DE SEGUROS S.A., a la prestación de servicios de Promoción y Prevención para implementar, mejorar y/o mantener actividades de, asesoría, asistencia técnica y de formación en Seguridad y Salud en el Trabajo del PLAN BÁSICO en los Programas, Estructura Empresarial, Preparación y atención ante emergencias, Programa de prevención y protección colectiva e individual, Programa de Promoción y Prevención de la Salud y Programa de investigación de incidentes y accidentes de trabajo, PLAN AVANZADO Programa de Gestión para el Control de Incidentes y Accidentes de Trabajo y Programa de Gestión en la Prevención de la Enfermedad Laboral, PLAN ESPECIALIZADO Programa de Vigilancia Epidemiológica y el PLAN DE GESTION INTEGRAL Sistemas Integrados de Gestión de la Estrategia CREA del Modelo de Gestión Positiva SUMA de acuerdo a los Planes de Trabajo pactados con la empresas y cargados en el aplicativo GESTPOS, para empresas afiliadas a Positiva Compañía de Seguros en la Sucursal Tipo A Coordinadora Valle
A141: PROMOCION Y PREVENCION | B141: C80162024 | C141: 93141808 93141928 | D141: EL CONTRATISTA, se compromete con POSITIVA COMPAÑÍA DE SEGUROS S.A., a la prestación de servicios de Promoción y Prevención para implementar, mejorar y/o mantener actividades de, asesoría, asistencia técnica y de formación en Seguridad y Salud en el Trabajo del PLAN BÁSICO en los Programas, Estructura Empresarial, Preparación y atención ante emergencias, Programa de prevención y protección colectiva e individual, Programa de Promoción y Prevención de la Salud y Programa de investigación de incidentes y accidentes de trabajo, PLAN AVANZADO Programa de Gestión para el Control de Incidentes y Accidentes de Trabajo y Programa de Gestión en la Prevención de la Enfermedad Laboral, PLAN ESPECIALIZADO Programa de Vigilancia Epidemiológica y el PLAN DE GESTION INTEGRAL Sistemas Integrados de Gestión de la Estrategia CREA del Modelo de Gestión Positiva SUMA de acuerdo a los Planes de Trabajo pactados con la empresas y cargados en el aplicativo GESTPOS, para empresas afiliadas a Positiva Compañía de Seguros en la Sucursal Putumayo. | E141: 2024-02-05 | F141: 2 | G141: 2024-12-31 | H141: 11 | I141: DIRECTA | K141: 145356190 | L141: 96911005 | M141: SI | N141: APROBADAS | O141: Gerencia de Abastecimiento Estratégico contratacion@positiva.gov.co PBX: (1)6502200 Ext: 10641 | P141: SI | Q141: SI | R141: NA | S141: SI | T141: Pública clasificada | U141: C80162024-Tipo de información Pública clasificada-EL CONTRATISTA, se compromete con POSITIVA COMPAÑÍA DE SEGUROS S.A., a la prestación de servicios de Promoción y Prevención para implementar, mejorar y/o mantener actividades de, asesoría, asistencia técnica y de formación en Seguridad y Salud en el Trabajo del PLAN BÁSICO en los Programas, Estructura Empresarial, Preparación y atención ante emergencias, Programa de prevención y protección colectiva e individual, Programa de Promoción y Prevención de la Salud y Programa de investigación de incidentes y accidentes de trabajo, PLAN AVANZADO Programa de Gestión para el Control de Incidentes y Accidentes de Trabajo y Programa de Gestión en la Prevención de la Enfermedad Laboral, PLAN ESPECIALIZADO Programa de Vigilancia Epidemiológica y el PLAN DE GESTION INTEGRAL Sistemas Integrados de Gestión de la Estrategia CREA del Modelo de Gestión Positiva SUMA de acuerdo a los Planes de Trabajo pactados con la empresas y cargados en el aplicativo GESTPOS, para empresas afiliadas a Positiva Compañía de Seguros en la Sucursal Putumayo.
A142: PROMOCION Y PREVENCION | B142: C76132024 | C142: 93141808 93141929 | D142: EL CONTRATISTA, se compromete con POSITIVA COMPAÑÍA DE SEGUROS S.A., a la Prestación de servicios de Promoción y Prevención, para realizar actividades de Seguridad y Salud en el Trabajo, bajo el lineamiento de los Programas del PLAN BASICO: Estructura empresarial, Programa de Preparación y Atención de Emergencias, Programa de Prevención y Protección Colectiva e Individual, Investigación de incidentes y accidentes de trabajo PLAN AVANZADO: Gestión para el Control de Incidentes y Accidentes de Trabajo PLAN ESPECIALIZADO; Programas de Vigilancia Epidemiológica, de la estrategia CREA. del Modelo de Gestión Positiva SUMA de acuerdo con los Planes de Trabajo pactados con la empresas y cargados en el aplicativo GESTPOS y que se desarrollaran en empresas afiliadas a Positiva Compañía de Seguros en la Sucursal Córdoba de la Zona Atlántico. | E142: 2024-02-05 | F142: 2 | G142: 2024-12-31 | H142: 11 | I142: DIRECTA | K142: 150000000 | L142: 150000000 | M142: NO | N142: NO APLICA | O142: Gerencia de Abastecimiento Estratégico contratacion@positiva.gov.co PBX: (1)6502200 Ext: 10641 | P142: SI | Q142: SI | R142: NA | S142: SI | T142: Pública clasificada | U142: C76132024-Tipo de información Pública clasificada-EL CONTRATISTA, se compromete con POSITIVA COMPAÑÍA DE SEGUROS S.A., a la Prestación de servicios de Promoción y Prevención, para realizar actividades de Seguridad y Salud en el Trabajo, bajo el lineamiento de los Programas del PLAN BASICO: Estructura empresarial, Programa de Preparación y Atención de Emergencias, Programa de Prevención y Protección Colectiva e Individual, Investigación de incidentes y accidentes de trabajo PLAN AVANZADO: Gestión para el Control de Incidentes y Accidentes de Trabajo PLAN ESPECIALIZADO; Programas de Vigilancia Epidemiológica, de la estrategia CREA. del Modelo de Gestión Positiva SUMA de acuerdo con los Planes de Trabajo pactados con la empresas y cargados en el aplicativo GESTPOS y que se desarrollaran en empresas afiliadas a Positiva Compañía de Seguros en la Sucursal Córdoba de la Zona Atlántico.
A143: SECRETARIA GENERAL Y JURIDICA | B143: C15302024 | C143: 93141808 93141930 | D143: El CONTRATISTA se obliga a favor de POSITIVA a PRESTAR SERVICIOS PROFESIONALES A LA OFICINA DE ESTRATEGIA Y DESARROLLO, EN EL APOYO A LA ESTRUCTURACIÓN, SEGUIMIENTO Y COORDINACIÓN DEL PROYECTO CORE VIDA, ASÍ COMO EL ACOMPAÑAMIENTO Y SEGUIMIENTO A LA EJECUCIÓN DE LOS DEMÁS PROYECTOS LIDERADOS POR LA OFICINA SEGÚN SEA REQUERIDO, EN EL MARCO DE LA VISIÓN PARA LA TRANSFORMACIÓN DIGITAL DE POSITIVA | E143: 2024-02-05 | F143: 2 | G143: 2024-12-31 | H143: 11 | I143: DIRECTA | K143: 97240000 | L143: 97240000 | M143: NO | N143: NO APLICA | O143: Gerencia de Abastecimiento Estratégico contratacion@positiva.gov.co PBX: (1)6502200 Ext: 10641 | P143: SI | Q143: SI | R143: NA | S143: SI | T143: Pública clasificada | U143: C15302024-Tipo de información Pública clasificada-El CONTRATISTA se obliga a favor de POSITIVA a PRESTAR SERVICIOS PROFESIONALES A LA OFICINA DE ESTRATEGIA Y DESARROLLO, EN EL APOYO A LA ESTRUCTURACIÓN, SEGUIMIENTO Y COORDINACIÓN DEL PROYECTO CORE VIDA, ASÍ COMO EL ACOMPAÑAMIENTO Y SEGUIMIENTO A LA EJECUCIÓN DE LOS DEMÁS PROYECTOS LIDERADOS POR LA OFICINA SEGÚN SEA REQUERIDO, EN EL MARCO DE LA VISIÓN PARA LA TRANSFORMACIÓN DIGITAL DE POSITIVA
A144: FINANCIERA Y ADMINISTRATIVA | B144: C56122024 | C144: 93141808 93141931 | D144: el CONTRATISTA se obliga a favor de POSITIVA a PRESTACION DE SERVICIOS PROFESIONALES PARA BRINDAR ASESORIA JURIDICA EN LAS ACTUACIONES PRECONTRACTUALES, CONTRACTUALES, POSTCONTRACTUALES Y ADMINISTRATIVAS QUE SE ADELANTAN EN LA GERENCIA DE ABASTECIMIENTO ESTRATÉGICO DE LA VICEPRESIDENCIA FINANCIERA Y ADMINISTRATIVA DE POSITIVA - COMPAÑÍA DE SEGUROS. | E144: 2024-02-05 | F144: 2 | G144: 2024-12-31 | H144: 11 | I144: DIRECTA | K144: 110000000 | L144: 110000000 | M144: NO | N144: NO APLICA | O144: Gerencia de Abastecimiento Estratégico contratacion@positiva.gov.co PBX: (1)6502200 Ext: 10641 | P144: SI | Q144: SI | R144: NA | S144: SI | T144: Pública clasificada | U144: C56122024-Tipo de información Pública clasificada-el CONTRATISTA se obliga a favor de POSITIVA a PRESTACION DE SERVICIOS PROFESIONALES PARA BRINDAR ASESORIA JURIDICA EN LAS ACTUACIONES PRECONTRACTUALES, CONTRACTUALES, POSTCONTRACTUALES Y ADMINISTRATIVAS QUE SE ADELANTAN EN LA GERENCIA DE ABASTECIMIENTO ESTRATÉGICO DE LA VICEPRESIDENCIA FINANCIERA Y ADMINISTRATIVA DE POSITIVA - COMPAÑÍA DE SEGUROS.
A145: PROMOCION Y PREVENCION | B145: C80062024 | C145: 93141808 93141932 | D145: EL CONTRATISTA, se compromete con POSITIVA COMPAÑÍA DE SEGUROS S.A., a la prestación de servicios de promoción y prevención para implementar, mejorar y/o mantener las actividades de asesoría, asistencia técnica y de formación en Seguridad y Salud en el Trabajo, bajo el lineamiento de los programas de la Estrategia CREA del Modelo de Gestión Positiva SUMA, en PLAN BASICO: Programa Estructura Empresarial, Preparación y atención de emergencias, Programas Protección Colectiva e Individual, Programa Promoción y prevención en Salud, Programa de Investigación de incidentes y accidentes de trabajo; PLAN AVANZADO: Programa Gestión para el Control de incidentes y accidentes de trabajo, programa de Gestión en la Prevención de la Enfermedad Laboral; PLAN ESPECIALIZADO: Programas de Vigilancia Epidemiológica; PLAN GESTION INTEGRAL: Programas Sistema de Gestión para la atención de las empresas afiliadas a Positiva Compañía de Seguros S. A. en la Sucursal Huila Zona Valle. | E145: 2024-02-05 | F145: 2 | G145: 2024-11-30 | H145: 9.966666667 | I145: DIRECTA | K145: 320666197 | L145: 320666197 | M145: NO | N145: NO APLICA | O145: Gerencia de Abastecimiento Estratégico contratacion@positiva.gov.co PBX: (1)6502200 Ext: 10641 | P145: SI | Q145: SI | R145: NA | S145: SI | T145: Pública clasificada | U145: C80062024-Tipo de información Pública clasificada-EL CONTRATISTA, se compromete con POSITIVA COMPAÑÍA DE SEGUROS S.A., a la prestación de servicios de promoción y prevención para implementar, mejorar y/o mantener las actividades de asesoría, asistencia técnica y de formación en Seguridad y Salud en el Trabajo, bajo el lineamiento de los programas de la Estrategia CREA del Modelo de Gestión Positiva SUMA, en PLAN BASICO: Programa Estructura Empresarial, Preparación y atención de emergencias, Programas Protección Colectiva e Individual, Programa Promoción y prevención en Salud, Programa de Investigación de incidentes y accidentes de trabajo; PLAN AVANZADO: Programa Gestión para el Control de incidentes y accidentes de trabajo, programa de Gestión en la Prevención de la Enfermedad Laboral; PLAN ESPECIALIZADO: Programas de Vigilancia Epidemiológica; PLAN GESTION INTEGRAL: Programas Sistema de Gestión para la atención de las empresas afiliadas a Positiva Compañía de Seguros S. A. en la Sucursal Huila Zona Valle.
A146: SECRETARIA GENERAL Y JURIDICA | B146: C05372024 | C146: 93141808 93141933 | D146: EL CONTRATISTA se compromete con POSITIVA COMPAÑÍA DE SEGUROS S.A. a la Renovación soporte Segundo Nivel y Mantenimiento correctivo sin repuestos de la plataforma Oracle Systems / Linux / IBM Storage de Positiva Compañía de Seguros S.A | E146: 2024-02-05 | F146: 2 | G146: 2024-12-31 | H146: 11 | I146: DIRECTA | K146: 147645000 | L146: 113000000 | M146: SI | N146: APROBADAS | O146: Gerencia de Abastecimiento Estratégico contratacion@positiva.gov.co PBX: (1)6502200 Ext: 10641 | P146: SI | Q146: SI | R146: NA | S146: SI | T146: Pública clasificada | U146: C05372024-Tipo de información Pública clasificada-EL CONTRATISTA se compromete con POSITIVA COMPAÑÍA DE SEGUROS S.A. a la Renovación soporte Segundo Nivel y Mantenimiento correctivo sin repuestos de la plataforma Oracle Systems / Linux / IBM Storage de Positiva Compañía de Seguros S.A
A147: SECRETARIA GENERAL Y JURIDICA | B147: C15312024 | C147: 93141808 93141934 | D147: El CONTRATISTA se obliga a favor de POSITIVA a PRESTAR SERVICIOS PROFESIONALES A LA OFICINA DE ESTRATEGIA Y DESARROLLO, EN EL LIDERAZGO, ESTRUCTURACIÓN, SEGUIMIENTO Y COORDINACIÓN A LA IMPLEMENTACIÓN DEL PROYECTO ECOMMERCE DE LA COMPAÑÍA, EN TODAS SUS FASES, DESDE LA PLANIFICACIÓN HASTA LA EJECUCIÓN Y CIERRE. ASIMISMO, EL ACOMPAÑAMIENTO Y SEGUIMIENTO TÉCNICO A LA EJECUCIÓN DE OTROS PROYECTOS, SEGÚN SEA REQUERIDO, PARA EL CUMPLIMIENTO DE OBJETIVOS ESTRATÉGICOS DE LA OFICINA, EN EL MARCO DE LA VISIÓN PARA LA TRANSFORMACIÓN DIGITAL DE POSITIVA A NIVEL NACIONAL. | E147: 2024-02-06 | F147: 2 | G147: 2024-12-31 | H147: 10.96666667 | I147: DIRECTA | K147: 102960000 | L147: 102960000 | M147: NO | N147: NO APLICA | O147: Gerencia de Abastecimiento Estratégico contratacion@positiva.gov.co PBX: (1)6502200 Ext: 10641 | P147: SI | Q147: SI | R147: NA | S147: SI | T147: Pública clasificada | U147: C15312024-Tipo de información Pública clasificada-El CONTRATISTA se obliga a favor de POSITIVA a PRESTAR SERVICIOS PROFESIONALES A LA OFICINA DE ESTRATEGIA Y DESARROLLO, EN EL LIDERAZGO, ESTRUCTURACIÓN, SEGUIMIENTO Y COORDINACIÓN A LA IMPLEMENTACIÓN DEL PROYECTO ECOMMERCE DE LA COMPAÑÍA, EN TODAS SUS FASES, DESDE LA PLANIFICACIÓN HASTA LA EJECUCIÓN Y CIERRE. ASIMISMO, EL ACOMPAÑAMIENTO Y SEGUIMIENTO TÉCNICO A LA EJECUCIÓN DE OTROS PROYECTOS, SEGÚN SEA REQUERIDO, PARA EL CUMPLIMIENTO DE OBJETIVOS ESTRATÉGICOS DE LA OFICINA, EN EL MARCO DE LA VISIÓN PARA LA TRANSFORMACIÓN DIGITAL DE POSITIVA A NIVEL NACIONAL.
A148: NEGOCIOS | B148: C35182024 C35012025 | C148: 93141808 93141935 | D148: Prestación de servicios de Outsourcing para la gestión comercial, soporte de la misma y una mejor experiencia al cliente. | E148: 2024-02-05 | F148: 2 | G148: 2026-01-15 | H148: 23.66666667 | I148: DIRECTA | K148: 34127137339 | L148: 34127137339 | M148: NO | N148: NO APLICA | O148: Gerencia de Abastecimiento Estratégico contratacion@positiva.gov.co PBX: (1)6502200 Ext: 10641 | P148: SI | Q148: SI | R148: NA | S148: SI | T148: Pública clasificada | U148: C35182024 C35012025-Tipo de información Pública clasificada-Prestación de servicios de Outsourcing para la gestión comercial, soporte de la misma y una mejor experiencia al cliente.
A149: SECRETARIA GENERAL Y JURIDICA | B149: C15332024 | C149: 93141808 93141936 | D149: El CONTRATISTA se obliga a favor de POSITIVA a PRESTACIÓN DE SERVICIOS PROFESIONALES PARA EL CIERRE DE BRECHAS IDENTIFICADAS EN LOS PROCESOS DE PROTECCIÓN DE DATOS PERSONALES Y CONTINUAR CON EL PROCESO DE ALINEACIÓN PARA EL CUMPLIMIENTO DE LAS GUÍAS DE RESPONSABILIDAD DEMOSTRADA, DESARROLLAR CAPACITACIONES FOCALIZADAS CON LOS DIFERENTES GRUPOS DE USUARIOS QUE DESARROLLAN ACTIVIDADES QUE INVOLUCRAN DATOS PERSONALES, PARTICIPAR EN LA ELABORACIÓN DE RESPUESTAS A LOS REQUERIMIENTOS Y ELABORAR CONCEPTOS EN MATERIA DE TRATAMIENTO DE DATOS PERSONALES QUE REQUIERA EL OFICIAL DE PROTECCIÓN DE DATOS PERSONALES DE LA COMPAÑÍA. | E149: 2024-02-06 | F149: 2 | G149: 2024-12-31 | H149: 10.96666667 | I149: DIRECTA | K149: 69520000 | L149: 69520000 | M149: NO | N149: NO APLICA | O149: Gerencia de Abastecimiento Estratégico contratacion@positiva.gov.co PBX: (1)6502200 Ext: 10641 | P149: SI | Q149: SI | R149: NA | S149: SI | T149: Pública clasificada | U149: C15332024-Tipo de información Pública clasificada-El CONTRATISTA se obliga a favor de POSITIVA a PRESTACIÓN DE SERVICIOS PROFESIONALES PARA EL CIERRE DE BRECHAS IDENTIFICADAS EN LOS PROCESOS DE PROTECCIÓN DE DATOS PERSONALES Y CONTINUAR CON EL PROCESO DE ALINEACIÓN PARA EL CUMPLIMIENTO DE LAS GUÍAS DE RESPONSABILIDAD DEMOSTRADA, DESARROLLAR CAPACITACIONES FOCALIZADAS CON LOS DIFERENTES GRUPOS DE USUARIOS QUE DESARROLLAN ACTIVIDADES QUE INVOLUCRAN DATOS PERSONALES, PARTICIPAR EN LA ELABORACIÓN DE RESPUESTAS A LOS REQUERIMIENTOS Y ELABORAR CONCEPTOS EN MATERIA DE TRATAMIENTO DE DATOS PERSONALES QUE REQUIERA EL OFICIAL DE PROTECCIÓN DE DATOS PERSONALES DE LA COMPAÑÍA.
A150: SECRETARIA GENERAL Y JURIDICA | B150: C15362024 | C150: 93141808 93141937 | D150: El CONTRATISTA se obliga a favor de POSITIVA a PRESTACIÓN DE SERVICIOS PROFESIONALES PARA EL DESPLIEGUE DE LA ESTRATEGIA DE INNOVACIÓN INCLUYENDO LA EJECUCIÓN DE ACTIVIDADES PARA EL MANTENIMIENTO DEL SISTEMA DE INNOVACIÓN, LA GESTIÓN DE PROYECTOS DE INNOVACIÓN EN TODAS SUS ETAPAS Y LA ARTICULACIÓN CON LA PLANEACIÓN ESTRATÉGICA Y LA ARQUITECTURA EMPRESARIAL. | E150: 2024-02-06 | F150: 2 | G150: 2024-12-31 | H150: 10.96666667 | I150: DIRECTA | K150: 88000000 | L150: 88000000 | M150: NO | N150: NO APLICA | O150: Gerencia de Abastecimiento Estratégico contratacion@positiva.gov.co PBX: (1)6502200 Ext: 10641 | P150: SI | Q150: SI | R150: NA | S150: SI | T150: Pública clasificada | U150: C15362024-Tipo de información Pública clasificada-El CONTRATISTA se obliga a favor de POSITIVA a PRESTACIÓN DE SERVICIOS PROFESIONALES PARA EL DESPLIEGUE DE LA ESTRATEGIA DE INNOVACIÓN INCLUYENDO LA EJECUCIÓN DE ACTIVIDADES PARA EL MANTENIMIENTO DEL SISTEMA DE INNOVACIÓN, LA GESTIÓN DE PROYECTOS DE INNOVACIÓN EN TODAS SUS ETAPAS Y LA ARTICULACIÓN CON LA PLANEACIÓN ESTRATÉGICA Y LA ARQUITECTURA EMPRESARIAL.
A151: SECRETARIA GENERAL Y JURIDICA | B151: C15322024 | C151: 93141808 93141938 | D151: El CONTRATISTA se obliga a favor de POSITIVA a la PRESTACIÓN DE SERVICIOS PROFESIONALES DE APOYO EN LA IMPLEMENTACIÓN DE MODELOS DE ARQUITECTURA DE NEGOCIO, EN LA IDENTIFICACIÓN DE LOS PROYECTOS ESTRATÉGICOS DE LA COMPAÑÍA Y SU IMPACTO EN EL MODELO DE NEGOCIO. | E151: 2024-02-06 | F151: 2 | G151: 2024-12-31 | H151: 10.96666667 | I151: DIRECTA | K151: 102960000 | L151: 102960000 | M151: NO | N151: NO APLICA | O151: Gerencia de Abastecimiento Estratégico contratacion@positiva.gov.co PBX: (1)6502200 Ext: 10641 | P151: SI | Q151: SI | R151: NA | S151: SI | T151: Pública clasificada | U151: C15322024-Tipo de información Pública clasificada-El CONTRATISTA se obliga a favor de POSITIVA a la PRESTACIÓN DE SERVICIOS PROFESIONALES DE APOYO EN LA IMPLEMENTACIÓN DE MODELOS DE ARQUITECTURA DE NEGOCIO, EN LA IDENTIFICACIÓN DE LOS PROYECTOS ESTRATÉGICOS DE LA COMPAÑÍA Y SU IMPACTO EN EL MODELO DE NEGOCIO.
A152: PROMOCION Y PREVENCION | B152: C77192024 | C152: 93141808 93141939 | D152: EL CONTRATISTA se compromete a realizar la Prestación de servicios de Promoción y Prevención para implementar, mejorar y/o mantener actividades de asesoría técnica del Sistema de Gestión de Seguridad y Salud en Trabajo, con base en los Programas de la Estrategia POSITIVA CREA del Modelo de Gestión POSITIVA SUMA en PLAN BASICO Programa de Estructura Empresarial, Programa Preparación y Atención de Emergencias, Programa de Prevención y Protección Colectiva e Individual y Programa Promoción y Prevención en Salud PLAN AVANZADO – Programa Gestión para el Control de Incidentes y Accidentes de Trabajo PLAN ESPECIALIZADO Programas de Vigilancia Epidemiológica y PLAN GESTION INTEGRAL - Sistemas de Gestión Integral para el acompañamiento de las empresas afiliadas a POSITIVA COMPAÑÍA DE SEGUROS en la Zona Bogotá; Sucursal Coordinadora Bogotá en la modalidad de atención Planes GRAN EMPRESA. | E152: 2024-02-06 | F152: 2 | G152: 2024-12-31 | H152: 10.96666667 | I152: DIRECTA | K152: 519271292 | L152: 420000000 | M152: SI | N152: APROBADAS | O152: Gerencia de Abastecimiento Estratégico contratacion@positiva.gov.co PBX: (1)6502200 Ext: 10641 | P152: SI | Q152: SI | R152: NA | S152: SI | T152: Pública clasificada | U152: C77192024-Tipo de información Pública clasificada-EL CONTRATISTA se compromete a realizar la Prestación de servicios de Promoción y Prevención para implementar, mejorar y/o mantener actividades de asesoría técnica del Sistema de Gestión de Seguridad y Salud en Trabajo, con base en los Programas de la Estrategia POSITIVA CREA del Modelo de Gestión POSITIVA SUMA en PLAN BASICO Programa de Estructura Empresarial, Programa Preparación y Atención de Emergencias, Programa de Prevención y Protección Colectiva e Individual y Programa Promoción y Prevención en Salud PLAN AVANZADO – Programa Gestión para el Control de Incidentes y Accidentes de Trabajo PLAN ESPECIALIZADO Programas de Vigilancia Epidemiológica y PLAN GESTION INTEGRAL - Sistemas de Gestión Integral para el acompañamiento de las empresas afiliadas a POSITIVA COMPAÑÍA DE SEGUROS en la Zona Bogotá; Sucursal Coordinadora Bogotá en la modalidad de atención Planes GRAN EMPRESA.
A153: PROMOCION Y PREVENCION | B153: C82012024 | C153: 93141808 93141940 | D153: EL CONTRATISTA, se compromete con POSITIVA COMPAÑÍA DE SEGUROS S.A., a realizar la Prestación de servicios de Promoción y Prevención para implementar, mejorar y/o mantener actividades de asesoría técnica del Sistema de Gestión de Seguridad y Salud en Trabajo, con base en los Programas de PLAN BASICO: Programa de Preparación y atención de Emergencias bajo el lineamiento de los programas de la Estrategia POSITIVA CREA del Modelo de Gestión POSITIVA SUMA, para la atención de la empresa RAMA JUDICIAL afiliada a POSITIVA COMPANIA DE SEGUROS. | E153: 2024-02-07 | F153: =MONTH(E153) -> 2 | G153: 2024-10-31 | H153: =(G153-E153)/30 -> 8.9 | I153: DIRECTA | K153: 836391000 | L153: 570000000 | M153: =IF(L153<K153,"SI","NO") -> SI | N153: =IF(M153="NO","NO APLICA","APROBADAS") -> APROBADAS | O153: Gerencia de Abastecimiento Estratégico contratacion@positiva.gov.co PBX: (1)6502200 Ext: 10641 | P153: SI | Q153: SI | R153: NA | S153: SI | T153: Pública clasificada | U153: C82012024-Tipo de información Pública clasificada-EL CONTRATISTA, se compromete con POSITIVA COMPAÑÍA DE SEGUROS S.A., a realizar la Prestación de servicios de Promoción y Prevención para implementar, mejorar y/o mantener actividades de asesoría técnica del Sistema de Gestión de Seguridad y Salud en Trabajo, con base en los Programas de PLAN BASICO: Programa de Preparación y atención de Emergencias bajo el lineamiento de los programas de la Estrategia POSITIVA CREA del Modelo de Gestión POSITIVA SUMA, para la atención de la empresa RAMA JUDICIAL afiliada a POSITIVA COMPANIA DE SEGUROS.
A154: PROMOCION Y PREVENCION | B154: C77132024 | C154: 93141808 93141941 | D154: EL CONTRATISTA, se compromete con POSITIVA COMPAÑÍA DE SEGUROS S.A., la prestación de servicios de promoción y prevención para implementar, mejorar y/o mantener actividades de asesoría técnica del sistema de gestión de seguridad y salud en trabajo, con base en los programas de la estrategia positiva crea del modelo de gestión positiva suma entre otros en, PLAN BÁSICO Programa de Prevención y Protección Colectiva e Individual, Programa de Preparación y Atención de emergencias, Programa de investigación de Incidentes y Accidentes de trabajo; PLAN AVANZADO: Gestión para el control de incidentes y accidentes de trabajo; de la Estrategia CREA del Modelo de Gestión POSITIVA SUMA, para la atención de las empresas afiliadas a POSITIVA COMPAÑÍA DE SEGUROS, en la modalidad de atención de GRAN EMPRESA de la Sucursal Coordinadora Bogotá. | E154: 2024-02-07 | F154: 2 | G154: 2024-12-31 | H154: 10.93333333 | I154: DIRECTA | K154: 877500000 | L154: 585000000 | M154: SI | N154: APROBADAS | O154: Gerencia de Abastecimiento Estratégico contratacion@positiva.gov.co PBX: (1)6502200 Ext: 10641 | P154: SI | Q154: SI | R154: NA | S154: SI | T154: Pública clasificada | U154: C77132024-Tipo de información Pública clasificada-EL CONTRATISTA, se compromete con POSITIVA COMPAÑÍA DE SEGUROS S.A., la prestación de servicios de promoción y prevención para implementar, mejorar y/o mantener actividades de asesoría técnica del sistema de gestión de seguridad y salud en trabajo, con base en los programas de la estrategia positiva crea del modelo de gestión positiva suma entre otros en, PLAN BÁSICO Programa de Prevención y Protección Colectiva e Individual, Programa de Preparación y Atención de emergencias, Programa de investigación de Incidentes y Accidentes de trabajo; PLAN AVANZADO: Gestión para el control de incidentes y accidentes de trabajo; de la Estrategia CREA del Modelo de Gestión POSITIVA SUMA, para la atención de las empresas afiliadas a POSITIVA COMPAÑÍA DE SEGUROS, en la modalidad de atención de GRAN EMPRESA de la Sucursal Coordinadora Bogotá.
A155: PROMOCION Y PREVENCION | B155: C77642024 | C155: 93141808 93141942 | D155: EL CONTRATISTA, se compromete con POSITIVA COMPAÑÍA DE SEGUROS S.A., a la prestación de servicios de Promoción y Prevención para implementar, mejorar y/o mantener actividades de asesoría técnica del Sistema de Gestión de Seguridad y Salud en Trabajo, con base en los Programas de la estrategia POSITIVA CREA del Modelo de Gestión POSITIVA SUMA en PLAN BASICO Programa Preparación y Atención de Emergencias de las empresas afiliadas a POSITIVA COMPAÑÍA DE SEGUROS, en la modalidad de atención de Planes GRAN EMPRESA para la Sucursal Coordinadora Bogotá. | E155: 2024-02-07 | F155: 2 | G155: 2024-12-31 | H155: 10.93333333 | I155: DIRECTA | K155: 180000000 | L155: 120000000 | M155: SI | N155: APROBADAS | O155: Gerencia de Abastecimiento Estratégico contratacion@positiva.gov.co PBX: (1)6502200 Ext: 10641 | P155: SI | Q155: SI | R155: NA | S155: SI | T155: Pública clasificada | U155: =CONCATENATE(B155,"-","Tipo de información"," ",T155,"-",D155) -> C77642024-Tipo de información Pública clasificada-EL CONTRATISTA, se compromete con POSITIVA COMPAÑÍA DE SEGUROS S.A., a la prestación de servicios de Promoción y Prevención para implementar, mejorar y/o mantener actividades de asesoría técnica del Sistema de Gestión de Seguridad y Salud en Trabajo, con base en los Programas de la estrategia POSITIVA CREA del Modelo de Gestión POSITIVA SUMA en PLAN BASICO Programa Preparación y Atención de Emergencias de las empresas afiliadas a POSITIVA COMPAÑÍA DE SEGUROS, en la modalidad de atención de Planes GRAN EMPRESA para la Sucursal Coordinadora Bogotá.
A156: PROMOCION Y PREVENCION | B156: C77232024 | C156: 93141808 93141943 | D156: EL CONTRATISTA, se compromete con POSITIVA COMPAÑÍA DE SEGUROS S.A., a la Prestación de servicios de Promoción y Prevención para implementar, mejorar y/o mantener actividades de asesoría, asistencia técnica y de formación en Seguridad y Salud en Trabajo con base en los Programas del PLAN BASICO Programa de Preparación y Atención de Emergencias, Programa de Prevención y Protección Colectiva e Individual, Programa de Investigación de Incidentes y Accidentes de trabajo PLAN AVANZADO Programa de Gestión para el Control de Incidentes y Accidentes de Trabajo, Programa de Gestión en prevención de la Enfermedad Profesional PLAN GESTIÓN INTEGRAL Sistemas Integrados de Gestión de la estrategia CREA del Modelo de Gestión POSITIVA SUMA, para atención de las empresas afiliadas a POSITIVA COMPAÑIA DE SEGUROS, en la modalidad de atención de Planes GRAN EMPRESA de la Sucursal Coordinadora Bogotá | E156: 2024-02-07 | F156: 2 | G156: 2024-12-31 | H156: 10.93333333 | I156: DIRECTA | K156: 120000000 | L156: 120000000 | M156: NO | N156: NO APLICA | O156: Gerencia de Abastecimiento Estratégico contratacion@positiva.gov.co PBX: (1)6502200 Ext: 10641 | P156: SI | Q156: SI | R156: NA | S156: SI | T156: =IF(S156="SI","Pública clasificada","Pública") -> Pública clasificada | U156: C77232024-Tipo de información Pública clasificada-EL CONTRATISTA, se compromete con POSITIVA COMPAÑÍA DE SEGUROS S.A., a la Prestación de servicios de Promoción y Prevención para implementar, mejorar y/o mantener actividades de asesoría, asistencia técnica y de formación en Seguridad y Salud en Trabajo con base en los Programas del PLAN BASICO Programa de Preparación y Atención de Emergencias, Programa de Prevención y Protección Colectiva e Individual, Programa de Investigación de Incidentes y Accidentes de trabajo PLAN AVANZADO Programa de Gestión para el Control de Incidentes y Accidentes de Trabajo, Programa de Gestión en prevención de la Enfermedad Profesional PLAN GESTIÓN INTEGRAL Sistemas Integrados de Gestión de la estrategia CREA del Modelo de Gestión POSITIVA SUMA, para atención de las empresas afiliadas a POSITIVA COMPAÑIA DE SEGUROS, en la modalidad de atención de Planes GRAN EMPRESA de la Sucursal Coordinadora Bogotá
A157: PROMOCION Y PREVENCION | B157: C77452024 | C157: 93141808 93141944 | D157: EL CONTRATISTA, se compromete con POSITIVA COMPAÑÍA DE SEGUROS S.A., a la prestación de servicios de promoción y prevención para implementar, mejorar y/o mantener actividades de asesoría técnica del sistema de gestión de seguridad y salud en trabajo, con base en los programas de la estrategia positiva crea del modelo de gestión positiva suma entre otros en PLAN BÁSICO Programa de Estructura Empresarial, Programa de Preparación y Atención de emergencias, Programa de Prevención y Protección Colectiva e Individual, Programa de Investigación de Incidencia y Accidentes de Trabajo, PLAN AVANZADO- Programa de Gestión para el Control de Incidentes y Accidentes de Trabajo - PLAN GESTION INTEGRAL -Sistemas de Gestión Integral para el acompañamiento de las empresas afiliadas a Positiva Compañía de Seguros a Nivel Nacional en la modalidad de atención planes GRAN EMPRESA | E157: 2024-02-07 | F157: 2 | G157: 2024-12-31 | H157: 10.93333333 | I157: DIRECTA | K157: 736000000 | L157: 586000000 | M157: SI | N157: APROBADAS | O157: Gerencia de Abastecimiento Estratégico contratacion@positiva.gov.co PBX: (1)6502200 Ext: 10641 | P157: SI | Q157: SI | R157: NA | S157: SI | T157: Pública clasificada | U157: C77452024-Tipo de información Pública clasificada-EL CONTRATISTA, se compromete con POSITIVA COMPAÑÍA DE SEGUROS S.A., a la prestación de servicios de promoción y prevención para implementar, mejorar y/o mantener actividades de asesoría técnica del sistema de gestión de seguridad y salud en trabajo, con base en los programas de la estrategia positiva crea del modelo de gestión positiva suma entre otros en PLAN BÁSICO Programa de Estructura Empresarial, Programa de Preparación y Atención de emergencias, Programa de Prevención y Protección Colectiva e Individual, Programa de Investigación de Incidencia y Accidentes de Trabajo, PLAN AVANZADO- Programa de Gestión para el Control de Incidentes y Accidentes de Trabajo - PLAN GESTION INTEGRAL -Sistemas de Gestión Integral para el acompañamiento de las empresas afiliadas a Positiva Compañía de Seguros a Nivel Nacional en la modalidad de atención planes GRAN EMPRESA
A158: TECNICA | B158: N/A | C158: 93141808 93141945 | D158: EL CONTRATISTA se obliga con POSITIVA a la prestación de los servicios de tecnologías de salud para los asegurados y/o afiliados a POSITIVA, que requieran de suministro y distribución del material de osteosíntesis en los diferentes ramos de POSITIVA COMPAÑÍA DE SEGUROS S.A | E158: 2024-02-07 | F158: 2 | G158: 2025-02-07 | H158: 12.2 | I158: DIRECTA | K158: 0 | L158: INDETERMINADO | M158: NO | N158: NO APLICA | O158: Gerencia de Abastecimiento Estratégico contratacion@positiva.gov.co PBX: (1)6502200 Ext: 10641 | P158: SI | Q158: SI | R158: NA | S158: SI | T158: Pública clasificada | U158: N/A-Tipo de información Pública clasificada-EL CONTRATISTA se obliga con POSITIVA a la prestación de los servicios de tecnologías de salud para los asegurados y/o afiliados a POSITIVA, que requieran de suministro y distribución del material de osteosíntesis en los diferentes ramos de POSITIVA COMPAÑÍA DE SEGUROS S.A
A159: TECNICA | B159: C65212024 | C159: 93141808 93141946 | D159: El CONTRATISTA se obliga con POSITIVA a prestar el servicio de estudio de confiabilidad para conocimiento de todas las entidades, cooperativas, financieras y demás que deseen aplicar libranzas o descuentos a la nómina de pensionados, para garantizar la validación y verificación de la información corporativa, y la documentación aportada del entorno de cada operador a fin de que positiva pueda definir la asignación o renovación de código de descuento al operador solicitante. | E159: 2024-02-07 | F159: 2 | G159: 2024-12-31 | H159: 10.93333333 | I159: DIRECTA | K159: 77457100 | L159: 77457100 | M159: NO | N159: NO APLICA | O159: Gerencia de Abastecimiento Estratégico contratacion@positiva.gov.co PBX: (1)6502200 Ext: 10641 | P159: SI | Q159: SI | R159: NA | S159: SI | T159: Pública clasificada | U159: C65212024-Tipo de información Pública clasificada-El CONTRATISTA se obliga con POSITIVA a prestar el servicio de estudio de confiabilidad para conocimiento de todas las entidades, cooperativas, financieras y demás que deseen aplicar libranzas o descuentos a la nómina de pensionados, para garantizar la validación y verificación de la información corporativa, y la documentación aportada del entorno de cada operador a fin de que positiva pueda definir la asignación o renovación de código de descuento al operador solicitante.
A160: NEGOCIOS | B160: C35252024 | C160: 93141808 93141947 | D160: Prestar servicios de apoyo a la gestión de relacionamiento y mantenimiento comercial a través de un operador logístico que apoye las actividades relacionadas con el primer congreso “Riqueza con propósito”, lanzamiento de plan de formación 2024 y premiación del plan de formación 2023. | E160: 2024-02-07 | F160: 2 | G160: 2024-02-29 | H160: 0.7333333333 | I160: DIRECTA | K160: 773682024 | L160: 579800000 | M160: SI | N160: APROBADAS | O160: Gerencia de Abastecimiento Estratégico contratacion@positiva.gov.co PBX: (1)6502200 Ext: 10641 | P160: SI | Q160: SI | R160: NA | S160: SI | T160: Pública clasificada | U160: C35252024-Tipo de información Pública clasificada-Prestar servicios de apoyo a la gestión de relacionamiento y mantenimiento comercial a través de un operador logístico que apoye las actividades relacionadas con el primer congreso “Riqueza con propósito”, lanzamiento de plan de formación 2024 y premiación del plan de formación 2023.
A161: FINANCIERA Y ADMINISTRATIVA | B161: C55472024 | C161: 93141808 93141948 | D161: EL CONTRATISTA se obliga a prestarle a POSITIVA COMPAÑÍA DE SEGUROS S.A. el servicio de acompañamiento tributario integral y permanente (soporte tributario, cumplimiento e información exógena), de conformidad con la normatividad nacional, distrital y municipal para POSITIVA | E161: 2024-02-08 | F161: 2 | G161: 2024-12-31 | H161: 10.9 | I161: DIRECTA | K161: 309142128 | L161: 309142128 | M161: NO | N161: NO APLICA | O161: Gerencia de Abastecimiento Estratégico contratacion@positiva.gov.co PBX: (1)6502200 Ext: 10641 | P161: SI | Q161: SI | R161: NA | S161: SI | T161: Pública clasificada | U161: C55472024-Tipo de información Pública clasificada-EL CONTRATISTA se obliga a prestarle a POSITIVA COMPAÑÍA DE SEGUROS S.A. el servicio de acompañamiento tributario integral y permanente (soporte tributario, cumplimiento e información exógena), de conformidad con la normatividad nacional, distrital y municipal para POSITIVA
A162: PROMOCION Y PREVENCION | B162: C75032024 | C162: 93141808 93141949 | D162: EL CONTRATISTA se compromete a realizar la Prestación de servicios de Promoción y Prevención, para realizar actividades de, asesoría, asistencia técnica y de formación en Seguridad y Salud en el Trabajo, bajo el lineamiento de los Programas del PLAN BASICO, Estructura Empresarial, Preparación y Atención de Emergencias, Investigación de Incidentes y Accidentes de Trabajo, Prevención y Protección Colectiva e Individual, PLAN AVANZADO, Programa de Gestión para el Control de Incidentes y Accidentes de Trabajo, programa para la gestión de enfermedad laboral, PLAN ESPECIALIZADO – Programas de vigilancia epidemiológica PLAN DE GESTION INTEGRAL, Sistemas Integrados de Gestión, de la estrategia CREA, para la atención de empresas en la modalidad de atención de Planes Regulares, afiliadas a la Compañía en la Sucursal Antioquia y Punto de atención Chocó. | E162: 2024-02-08 | F162: 2 | G162: 2024-12-31 | H162: 10.9 | I162: DIRECTA | K162: 219000000 | L162: 150000000 | M162: SI | N162: APROBADAS | O162: Gerencia de Abastecimiento Estratégico contratacion@positiva.gov.co PBX: (1)6502200 Ext: 10641 | P162: SI | Q162: SI | R162: NA | S162: SI | T162: Pública clasificada | U162: C75032024-Tipo de información Pública clasificada-EL CONTRATISTA se compromete a realizar la Prestación de servicios de Promoción y Prevención, para realizar actividades de, asesoría, asistencia técnica y de formación en Seguridad y Salud en el Trabajo, bajo el lineamiento de los Programas del PLAN BASICO, Estructura Empresarial, Preparación y Atención de Emergencias, Investigación de Incidentes y Accidentes de Trabajo, Prevención y Protección Colectiva e Individual, PLAN AVANZADO, Programa de Gestión para el Control de Incidentes y Accidentes de Trabajo, programa para la gestión de enfermedad laboral, PLAN ESPECIALIZADO – Programas de vigilancia epidemiológica PLAN DE GESTION INTEGRAL, Sistemas Integrados de Gestión, de la estrategia CREA, para la atención de empresas en la modalidad de atención de Planes Regulares, afiliadas a la Compañía en la Sucursal Antioquia y Punto de atención Chocó.
A163: PROMOCION Y PREVENCION | B163: C77262024 | C163: 93141808 93141950 | D163: EL CONTRATISTA se compromete a realizar la prestación de servicios de Promoción y Prevención para implementar, mejorar y/o mantener actividades de asesoría técnica del sistema de gestión de seguridad y salud en el trabajo con base en los programas de los planes: PLAN AVANZADO: Gestión en Prevención de la enfermedad profesional (DME) y PLAN ESPECIALIZADO: Programas de vigilancia epidemiológica (DME) de la Estrategia CREA del Modelo de Gestión POSITIVA SUMA, para la atención de las empresas afiliadas a POSITIVA COMPAÑÍA DE SEGUROS, en la modalidad de atención GRAN EMPRESA, en la Sucursal Coordinadora Bogotá | E163: 2024-02-08 | F163: 2 | G163: 2024-12-31 | H163: 10.9 | I163: DIRECTA | K163: 2170000000 | L163: 1500000000 | M163: SI | N163: APROBADAS | O163: Gerencia de Abastecimiento Estratégico contratacion@positiva.gov.co PBX: (1)6502200 Ext: 10641 | P163: SI | Q163: SI | R163: NA | S163: SI | T163: Pública clasificada | U163: C77262024-Tipo de información Pública clasificada-EL CONTRATISTA se compromete a realizar la prestación de servicios de Promoción y Prevención para implementar, mejorar y/o mantener actividades de asesoría técnica del sistema de gestión de seguridad y salud en el trabajo con base en los programas de los planes: PLAN AVANZADO: Gestión en Prevención de la enfermedad profesional (DME) y PLAN ESPECIALIZADO: Programas de vigilancia epidemiológica (DME) de la Estrategia CREA del Modelo de Gestión POSITIVA SUMA, para la atención de las empresas afiliadas a POSITIVA COMPAÑÍA DE SEGUROS, en la modalidad de atención GRAN EMPRESA, en la Sucursal Coordinadora Bogotá
A164: PROMOCION Y PREVENCION | B164: C75292024 | C164: 93141808 93141951 | D164: Prestación de servicios de Promoción y Prevención para implementar, mejorar y/o mantener actividades de asesoría técnica con alcance en los programas: Estructura empresarial, Programa de Preparación y Atención de Emergencias, Programa de Prevención y Protección Colectiva e Individual, Promoción y Prevención en Salud, Programa de Investigación de Incidencia y Accidentes de Trabajo, Gestión para el Control de Incidentes y Accidentes de Trabajo, Gestión en la Prevención de Enfermedades Laborales, Vigilancia Epidemiológica y Gestión Integral, para atención de las empresas afiliadas que correspondan a la modalidad de atención de GRAN EMPRESA para la sucursal Tipo B – Risaralda de la sucursal coordinadora Antioquia. Especialmente para las empresas de los sectores de explotación de minas y canteras y empresas del sector de administración pública y defensa. | E164: 2024-02-08 | F164: 2 | G164: 2024-12-31 | H164: 10.9 | I164: DIRECTA | K164: 75000000 | L164: 50000000 | M164: SI | N164: APROBADAS | O164: Gerencia de Abastecimiento Estratégico contratacion@positiva.gov.co PBX: (1)6502200 Ext: 10641 | P164: SI | Q164: SI | R164: NA | S164: SI | T164: Pública clasificada | U164: C75292024-Tipo de información Pública clasificada-Prestación de servicios de Promoción y Prevención para implementar, mejorar y/o mantener actividades de asesoría técnica con alcance en los programas: Estructura empresarial, Programa de Preparación y Atención de Emergencias, Programa de Prevención y Protección Colectiva e Individual, Promoción y Prevención en Salud, Programa de Investigación de Incidencia y Accidentes de Trabajo, Gestión para el Control de Incidentes y Accidentes de Trabajo, Gestión en la Prevención de Enfermedades Laborales, Vigilancia Epidemiológica y Gestión Integral, para atención de las empresas afiliadas que correspondan a la modalidad de atención de GRAN EMPRESA para la sucursal Tipo B – Risaralda de la sucursal coordinadora Antioquia. Especialmente para las empresas de los sectores de explotación de minas y canteras y empresas del sector de administración pública y defensa.
A165: PROMOCION Y PREVENCION | B165: C82032024 | C165: 93141808 93141952 | D165: EL CONTRATISTA, se compromete con POSITIVA COMPAÑÍA DE SEGUROS S.A., a realizar la Prestación de servicios de Promoción y Prevención para implementar, mejorar y/o mantener actividades de asesoría técnica del Sistema de Gestión de Seguridad y Salud en Trabajo, para la ejecución de actividades de asesoría y asistencia técnica en el acompañamiento y la implementación del Programa de Vigilancia Epidemiológica para la Prevención de Desórdenes Musculo Esqueléticos, del PLAN ESPECIALIZADO de la Estrategia CREA PLAN AVANZADO - Gestión para la prevención de EP (énfasis Desordenes Músculo Esquelético) y AT; PLAN ESPECIALIZADO - Programas de Vigilancia Epidemiológico (énfasis Desordenes Músculo Esquelético) del Modelo de Gestión de Positiva SUMA para los grupos de exposición similar con riesgo para la salud de los trabajadores, para la atención de las empresas afiliadas a POSITIVA COMPAÑÍA DE SEGUROS, en la modalidad de atención Planes GRAN EMPRESA específicamente las empresas GRUPO EMPRESARIAL RAMA JUDICIAL, a nivel nacional. | E165: 2024-02-08 | F165: 2 | G165: 2024-09-30 | H165: 7.833333333 | I165: DIRECTA | K165: 855000000 | L165: 570000000 | M165: SI | N165: APROBADAS | O165: Gerencia de Abastecimiento Estratégico contratacion@positiva.gov.co PBX: (1)6502200 Ext: 10641 | P165: SI | Q165: SI | R165: NA | S165: SI | T165: Pública clasificada | U165: C82032024-Tipo de información Pública clasificada-EL CONTRATISTA, se compromete con POSITIVA COMPAÑÍA DE SEGUROS S.A., a realizar la Prestación de servicios de Promoción y Prevención para implementar, mejorar y/o mantener actividades de asesoría técnica del Sistema de Gestión de Seguridad y Salud en Trabajo, para la ejecución de actividades de asesoría y asistencia técnica en el acompañamiento y la implementación del Programa de Vigilancia Epidemiológica para la Prevención de Desórdenes Musculo Esqueléticos, del PLAN ESPECIALIZADO de la Estrategia CREA PLAN AVANZADO - Gestión para la prevención de EP (énfasis Desordenes Músculo Esquelético) y AT; PLAN ESPECIALIZADO - Programas de Vigilancia Epidemiológico (énfasis Desordenes Músculo Esquelético) del Modelo de Gestión de Positiva SUMA para los grupos de exposición similar con riesgo para la salud de los trabajadores, para la atención de las empresas afiliadas a POSITIVA COMPAÑÍA DE SEGUROS, en la modalidad de atención Planes GRAN EMPRESA específicamente las empresas GRUPO EMPRESARIAL RAMA JUDICIAL, a nivel nacional.
A166: PROMOCION Y PREVENCION | B166: C77412024 | C166: 93141808 93141953 | D166: EL CONTRATISTA, se compromete con POSITIVA COMPAÑÍA DE SEGUROS S.A., a la prestación de servicios de Promoción y Prevención para implementar, mejorar y/o mantener actividades de asesoría técnica del Sistema de Gestión de Seguridad y Salud en Trabajo, con base en los Programas de la Estrategia POSITIVA CREA del Modelo de Gestión POSITIVA SUMA en PLAN BASICO Programa de Prevención y Protección Colectiva e Individual PLAN AVANZADO Programa de Gestión para el Control de Incidentes y Accidentes de Trabajo, para la atención de las empresas afiliadas a POSITIVA COMPAÑÍA DE SEGUROS, en la modalidad de atención GRAN EMPRESA, en la Sucursal Coordinadora Bogotá. | E166: 2024-02-08 | F166: 2 | G166: 2024-12-31 | H166: 10.9 | I166: DIRECTA | K166: 65000000 | L166: 65000000 | M166: NO | N166: NO APLICA | O166: Gerencia de Abastecimiento Estratégico contratacion@positiva.gov.co PBX: (1)6502200 Ext: 10641 | P166: SI | Q166: SI | R166: NA | S166: SI | T166: Pública clasificada | U166: C77412024-Tipo de información Pública clasificada-EL CONTRATISTA, se compromete con POSITIVA COMPAÑÍA DE SEGUROS S.A., a la prestación de servicios de Promoción y Prevención para implementar, mejorar y/o mantener actividades de asesoría técnica del Sistema de Gestión de Seguridad y Salud en Trabajo, con base en los Programas de la Estrategia POSITIVA CREA del Modelo de Gestión POSITIVA SUMA en PLAN BASICO Programa de Prevención y Protección Colectiva e Individual PLAN AVANZADO Programa de Gestión para el Control de Incidentes y Accidentes de Trabajo, para la atención de las empresas afiliadas a POSITIVA COMPAÑÍA DE SEGUROS, en la modalidad de atención GRAN EMPRESA, en la Sucursal Coordinadora Bogotá.
A167: OPERACIONES | B167: C45282024 | C167: 93141808 93141954 | D167: EL CONTRATISTA se compromete con POSITIVA COMPAÑÍA DE SEGUROS S.A. a la Prestación de servicios profesionales a la Gerencias de Afiliaciones y Novedades de la Vicepresidencia de Operaciones de POSITIVA en la revisión, validación y conciliación de la información registrada en los diferentes aplicativos dispuestos por la compañía para la operación de los procesos de ARL y el mantenimiento de pólizas de los ramos de vida. | E167: 2024-02-08 | F167: 2 | G167: 2024-12-31 | H167: 10.9 | I167: DIRECTA | K167: 74659200 | L167: 74659200 | M167: NO | N167: NO APLICA | O167: Gerencia de Abastecimiento Estratégico contratacion@positiva.gov.co PBX: (1)6502200 Ext: 10641 | P167: SI | Q167: SI | R167: NA | S167: SI | T167: Pública clasificada | U167: C45282024-Tipo de información Pública clasificada-EL CONTRATISTA se compromete con POSITIVA COMPAÑÍA DE SEGUROS S.A. a la Prestación de servicios profesionales a la Gerencias de Afiliaciones y Novedades de la Vicepresidencia de Operaciones de POSITIVA en la revisión, validación y conciliación de la información registrada en los diferentes aplicativos dispuestos por la compañía para la operación de los procesos de ARL y el mantenimiento de pólizas de los ramos de vida.
A168: PROMOCION Y PREVENCION | B168: C80092024 | C168: 93141808 93141955 | D168: EL CONTRATISTA, se compromete con POSITIVA COMPAÑÍA DE SEGUROS S.A., a la prestación de servicios de promoción y prevención para implementar, mejorar y/o mantener las actividades de asesoría, asistencia técnica y de formación en Seguridad y Salud en el Trabajo, bajo el lineamiento de los programas de la Estrategia CREA del Modelo de Gestión Positiva SUMA, en PLAN BASICO: Programa Estructura Empresarial, Preparación y atención de emergencias, Programas Protección Colectiva e Individual, Programa Promoción y prevención en Salud, Programa de Investigación de incidentes y accidentes de trabajo; PLAN AVANZADO: Programa Gestión para el Control de incidentes y accidentes de trabajo, programa de Gestión en la Prevención de la Enfermedad Laboral; PLAN ESPECIALIZADO: Programas de Vigilancia Epidemiológica; PLAN GESTION INTEGRAL: Programas Sistema de Gestión para la atención de las empresas afiliadas a Positiva Compañía de Seguros S. A. en la Sucursal Huila Zona Valle | E168: 2024-02-08 | F168: 2 | G168: 2024-11-30 | H168: 9.866666667 | I168: DIRECTA | K168: 100000000 | L168: 100000000 | M168: NO | N168: NO APLICA | O168: Gerencia de Abastecimiento Estratégico contratacion@positiva.gov.co PBX: (1)6502200 Ext: 10641 | P168: SI | Q168: SI | R168: NA | S168: SI | T168: Pública clasificada | U168: C80092024-Tipo de información Pública clasificada-EL CONTRATISTA, se compromete con POSITIVA COMPAÑÍA DE SEGUROS S.A., a la prestación de servicios de promoción y prevención para implementar, mejorar y/o mantener las actividades de asesoría, asistencia técnica y de formación en Seguridad y Salud en el Trabajo, bajo el lineamiento de los programas de la Estrategia CREA del Modelo de Gestión Positiva SUMA, en PLAN BASICO: Programa Estructura Empresarial, Preparación y atención de emergencias, Programas Protección Colectiva e Individual, Programa Promoción y prevención en Salud, Programa de Investigación de incidentes y accidentes de trabajo; PLAN AVANZADO: Programa Gestión para el Control de incidentes y accidentes de trabajo, programa de Gestión en la Prevención de la Enfermedad Laboral; PLAN ESPECIALIZADO: Programas de Vigilancia Epidemiológica; PLAN GESTION INTEGRAL: Programas Sistema de Gestión para la atención de las empresas afiliadas a Positiva Compañía de Seguros S. A. en la Sucursal Huila Zona Valle
A169: PROMOCION Y PREVENCION | B169: C76212024 | C169: 93141808 93141956 | D169: EL CONTRATISTA, se compromete con POSITIVA COMPAÑÍA DE SEGUROS S.A., a la Prestación de Servicios de Promoción y Prevención para implementar, mejorar y/o mantener las actividades de consultoría, asesoría, asistencia técnica y de formación del Sistema de Gestión de Seguridad y Salud en el Trabajo, bajo el lineamiento de los programas de la Estrategia CREA del Modelo de Gestión Positiva SUMA, en los programas de los Planes. PLAN BASICO – Estructura Empresarial, Programa de Preparación y Atención de Emergencias, Programa de Prevención y Protección Colectiva e Individual, Programa de Promoción y Prevención en Salud y Programa de Investigación de Incidentes y Accidentes de Trabajo PLAN AVANZADO – Programa Gestión para el control de Incidentes y Accidentes de Trabajo y Programa Gestión para la Prevención de la Enfermedad Laboral PLAN ESPECIALIZADO – Programas de Vigilancia Epidemiológica y PLAN GESTION INTEGRAL Sistemas Integrados de Gestión, para la atención de las empresas de la modalidad de atención Gran Empresa, afiliadas a POSITIVA COMPAÑÍA DE SEGUROS especialmente para las empresas de la Sucursal Sucre de la Zona Atlántico. | E169: 2024-02-08 | F169: 2 | G169: 2024-12-31 | H169: 10.9 | I169: DIRECTA | K169: 197157850 | L169: 141157850 | M169: SI | N169: APROBADAS | O169: Gerencia de Abastecimiento Estratégico contratacion@positiva.gov.co PBX: (1)6502200 Ext: 10641 | P169: SI | Q169: SI | R169: NA | S169: SI | T169: Pública clasificada | U169: C76212024-Tipo de información Pública clasificada-EL CONTRATISTA, se compromete con POSITIVA COMPAÑÍA DE SEGUROS S.A., a la Prestación de Servicios de Promoción y Prevención para implementar, mejorar y/o mantener las actividades de consultoría, asesoría, asistencia técnica y de formación del Sistema de Gestión de Seguridad y Salud en el Trabajo, bajo el lineamiento de los programas de la Estrategia CREA del Modelo de Gestión Positiva SUMA, en los programas de los Planes. PLAN BASICO – Estructura Empresarial, Programa de Preparación y Atención de Emergencias, Programa de Prevención y Protección Colectiva e Individual, Programa de Promoción y Prevención en Salud y Programa de Investigación de Incidentes y Accidentes de Trabajo PLAN AVANZADO – Programa Gestión para el control de Incidentes y Accidentes de Trabajo y Programa Gestión para la Prevención de la Enfermedad Laboral PLAN ESPECIALIZADO – Programas de Vigilancia Epidemiológica y PLAN GESTION INTEGRAL Sistemas Integrados de Gestión, para la atención de las empresas de la modalidad de atención Gran Empresa, afiliadas a POSITIVA COMPAÑÍA DE SEGUROS especialmente para las empresas de la Sucursal Sucre de la Zona Atlántico.
A170: PROMOCION Y PREVENCION | B170: C80372024 | C170: 93141808 93141957 | D170: EL CONTRATISTA, se compromete con POSITIVA COMPAÑÍA DE SEGUROS S.A., a la prestación de servicios de Promoción y Prevención para implementar, mejorar y/o mantener actividades de, asesoría, asistencia técnica y de formación en Seguridad y Salud en el Trabajo del PLAN BÁSICO en los Programas, Estructura Empresarial, Preparación y atención ante emergencias, Programa de prevención y protección colectiva e individual, Programa de Promoción y Prevención de la Salud y Programa de investigación de incidentes y accidentes de trabajo, PLAN AVANZADO Programa de Gestión para el Control de Incidentes y Accidentes de Trabajo y Programa de Gestión en la Prevención de la Enfermedad Laboral, PLAN ESPECIALIZADO Programa de Vigilancia Epidemiológica y el PLAN DE GESTION INTEGRAL Sistemas Integrados de Gestión de la Estrategia CREA del Modelo de Gestión Positiva SUMA de acuerdo a los Planes de Trabajo pactados con la empresas y cargados en el aplicativo GESTPOS, para empresas afiliadas a Positiva Compañía de Seguros en la Sucursal Tipo A Coordinadora Valle. | E170: 2024-02-08 | F170: 2 | G170: 2024-12-31 | H170: 10.9 | I170: DIRECTA | K170: 100000000 | L170: 100000000 | M170: NO | N170: NO APLICA | O170: Gerencia de Abastecimiento Estratégico contratacion@positiva.gov.co PBX: (1)6502200 Ext: 10641 | P170: SI | Q170: SI | R170: NA | S170: SI | T170: Pública clasificada | U170: C80372024-Tipo de información Pública clasificada-EL CONTRATISTA, se compromete con POSITIVA COMPAÑÍA DE SEGUROS S.A., a la prestación de servicios de Promoción y Prevención para implementar, mejorar y/o mantener actividades de, asesoría, asistencia técnica y de formación en Seguridad y Salud en el Trabajo del PLAN BÁSICO en los Programas, Estructura Empresarial, Preparación y atención ante emergencias, Programa de prevención y protección colectiva e individual, Programa de Promoción y Prevención de la Salud y Programa de investigación de incidentes y accidentes de trabajo, PLAN AVANZADO Programa de Gestión para el Control de Incidentes y Accidentes de Trabajo y Programa de Gestión en la Prevención de la Enfermedad Laboral, PLAN ESPECIALIZADO Programa de Vigilancia Epidemiológica y el PLAN DE GESTION INTEGRAL Sistemas Integrados de Gestión de la Estrategia CREA del Modelo de Gestión Positiva SUMA de acuerdo a los Planes de Trabajo pactados con la empresas y cargados en el aplicativo GESTPOS, para empresas afiliadas a Positiva Compañía de Seguros en la Sucursal Tipo A Coordinadora Valle.
A171: PROMOCION Y PREVENCION | B171: C81012024 | C171: 93141808 93141958 | D171: Prestación de servicios de Promoción y Prevención para implementar, mejorar y mantener actividades de asesoría técnica del Sistema de Gestión de Seguridad y Salud en Trabajo, a través de los servicios de promoción y prevención en seguridad e higiene industrial y medicina preventiva y del trabajo, con base en los Programas de la Estrategia POSITIVA CREA del Modelo de Gestión POSITIVA SUMA, en PLAN BASICO Preparación y Atención de Emergencias, Investigación de Incidentes y Accidentes de Trabajo, Prevención y Protección Colectiva e Individual y Promoción y Prevención en Salud, PLAN AVANZADO - Programa Gestión en la Prevención de Enfermedades Profesionales y Programa de Gestión para el Control de Incidentes y Accidentes de Trabajo PLAN ESPECIALIZADO Programas de Vigilancia Epidemiológica PLAN GESTION INTEGRAL Sistemas de Gestión Integral, para los servidores de la Fiscalía General de la Nación a nivel nacional | E171: 2024-02-08 | F171: 2 | G171: 2024-04-30 | H171: 2.733333333 | I171: DIRECTA | K171: 570000000 | L171: 570000000 | M171: NO | N171: NO APLICA | O171: Gerencia de Abastecimiento Estratégico contratacion@positiva.gov.co PBX: (1)6502200 Ext: 10641 | P171: SI | Q171: SI | R171: NA | S171: SI | T171: Pública clasificada | U171: C81012024-Tipo de información Pública clasificada-Prestación de servicios de Promoción y Prevención para implementar, mejorar y mantener actividades de asesoría técnica del Sistema de Gestión de Seguridad y Salud en Trabajo, a través de los servicios de promoción y prevención en seguridad e higiene industrial y medicina preventiva y del trabajo, con base en los Programas de la Estrategia POSITIVA CREA del Modelo de Gestión POSITIVA SUMA, en PLAN BASICO Preparación y Atención de Emergencias, Investigación de Incidentes y Accidentes de Trabajo, Prevención y Protección Colectiva e Individual y Promoción y Prevención en Salud, PLAN AVANZADO - Programa Gestión en la Prevención de Enfermedades Profesionales y Programa de Gestión para el Control de Incidentes y Accidentes de Trabajo PLAN ESPECIALIZADO Programas de Vigilancia Epidemiológica PLAN GESTION INTEGRAL Sistemas de Gestión Integral, para los servidores de la Fiscalía General de la Nación a nivel nacional
A172: SECRETARIA GENERAL Y JURIDICA | B172: C05892024 | C172: 93141808 93141959 | D172: EL CONTRATISTA se obliga a prestarle a POSITIVA COMPAÑÍA DE SEGUROS S.A. los servicios profesionales para el soporte funcional y técnico de las herramientas tecnológicas de manera autónoma e independiente en el núcleo básico del conocimiento de los sistemas informáticos para adelantar gestiones requeridas por la Oficina de Tecnologías de la Información, en el área de Soluciones. | E172: 2024-02-09 | F172: 2 | G172: 2024-12-31 | H172: 10.86666667 | I172: DIRECTA | K172: 97777768 | L172: 97777768 | M172: NO | N172: NO APLICA | O172: Gerencia de Abastecimiento Estratégico contratacion@positiva.gov.co PBX: (1)6502200 Ext: 10641 | P172: SI | Q172: SI | R172: NA | S172: SI | T172: Pública clasificada | U172: C05892024-Tipo de información Pública clasificada-EL CONTRATISTA se obliga a prestarle a POSITIVA COMPAÑÍA DE SEGUROS S.A. los servicios profesionales para el soporte funcional y técnico de las herramientas tecnológicas de manera autónoma e independiente en el núcleo básico del conocimiento de los sistemas informáticos para adelantar gestiones requeridas por la Oficina de Tecnologías de la Información, en el área de Soluciones.
A173: SECRETARIA GENERAL Y JURIDICA | B173: C05912024 | C173: 93141808 93141960 | D173: EL CONTRATISTA se obliga a prestarle a POSITIVA COMPAÑÍA DE SEGUROS S.A. los servicios apoyo a la gestión para el mantenimiento, administración, actualización, soporte funcional y técnico de las herramientas tecnológicas de manera autónoma e independiente en el núcleo básico del conocimiento de los sistemas informáticos y herramientas de infraestructura, para adelantar gestiones requeridas por la Oficina de Tecnología, en el desarrollo de la gestión contractual y la evaluación de aspectos técnicos cumpliendo con los estándares normativos que la rigen y de acuerdo con plan de contratación y políticas institucionales establecidas por Positiva Compañía de Seguros S.A. | E173: 2024-02-09 | F173: 2 | G173: 2024-12-31 | H173: 10.86666667 | I173: DIRECTA | K173: 55000000 | L173: 55000000 | M173: NO | N173: NO APLICA | O173: Gerencia de Abastecimiento Estratégico contratacion@positiva.gov.co PBX: (1)6502200 Ext: 10641 | P173: SI | Q173: SI | R173: NA | S173: SI | T173: Pública clasificada | U173: C05912024-Tipo de información Pública clasificada-EL CONTRATISTA se obliga a prestarle a POSITIVA COMPAÑÍA DE SEGUROS S.A. los servicios apoyo a la gestión para el mantenimiento, administración, actualización, soporte funcional y técnico de las herramientas tecnológicas de manera autónoma e independiente en el núcleo básico del conocimiento de los sistemas informáticos y herramientas de infraestructura, para adelantar gestiones requeridas por la Oficina de Tecnología, en el desarrollo de la gestión contractual y la evaluación de aspectos técnicos cumpliendo con los estándares normativos que la rigen y de acuerdo con plan de contratación y políticas institucionales establecidas por Positiva Compañía de Seguros S.A.
A174: PROMOCION Y PREVENCION | B174: C75262024 | C174: 93141808 93141961 | D174: Prestación servicios de promoción y prevención para implementar, mejorar y/o mantener actividades de asesoría y asistencia técnica del Sistema de Gestión de Seguridad y Salud en Trabajo, bajo el lineamiento de los Programas del PLAN BASICO, Estructura Empresarial, Preparación y Atención de Emergencias, Promoción y Prevención en Salud, Investigación de Incidentes y Accidentes de Trabajo, Prevención y Protección Colectiva e Individual, PLAN AVANZADO, Gestión en la Prevención de la Enfermedad Laboral, Gestión en la Prevención de la Accidentalidad y PLAN ESPECIALIZADO, Sistemas de Vigilancia Epidemiológica, PLAN DE GESTION INTEGRAL, Sistemas Integrados de Gestión, de la estrategia CREA, para la atención de empresas en la modalidad de atención GRAN EMPRESA, afiliadas a la Compañía en la Sucursal Quindío de la Zona Antioquia, primordialmente empresas del sector de la Administración pública. | E174: 2024-02-09 | F174: 2 | G174: 2024-12-31 | H174: 10.86666667 | I174: DIRECTA | K174: 361256711 | L174: 241256711 | M174: SI | N174: APROBADAS | O174: Gerencia de Abastecimiento Estratégico contratacion@positiva.gov.co PBX: (1)6502200 Ext: 10641 | P174: SI | Q174: SI | R174: NA | S174: SI | T174: Pública clasificada | U174: C75262024-Tipo de información Pública clasificada-Prestación servicios de promoción y prevención para implementar, mejorar y/o mantener actividades de asesoría y asistencia técnica del Sistema de Gestión de Seguridad y Salud en Trabajo, bajo el lineamiento de los Programas del PLAN BASICO, Estructura Empresarial, Preparación y Atención de Emergencias, Promoción y Prevención en Salud, Investigación de Incidentes y Accidentes de Trabajo, Prevención y Protección Colectiva e Individual, PLAN AVANZADO, Gestión en la Prevención de la Enfermedad Laboral, Gestión en la Prevención de la Accidentalidad y PLAN ESPECIALIZADO, Sistemas de Vigilancia Epidemiológica, PLAN DE GESTION INTEGRAL, Sistemas Integrados de Gestión, de la estrategia CREA, para la atención de empresas en la modalidad de atención GRAN EMPRESA, afiliadas a la Compañía en la Sucursal Quindío de la Zona Antioquia, primordialmente empresas del sector de la Administración pública.
A175: OPERACIONES | B175: C45302024 | C175: 93141808 93141962 | D175: El CONTRATISTA se obliga a favor de POSITIVA a PRESTACIÓN DE SERVICIOS PROFESIONALES DE ACOMPAÑAMIENTO AL GRUPO DE ATENCIÓN INTEGRAL Y DE SERVICIO AL CIUDADANO DE LA VICEPRESIDENCIA DE OPERACIONES DE POSITIVA, EN LA REVISIÓN DE LA CALIDAD DE LAS RESPUESTAS A LAS PETICIONES, QUEJAS, RECLAMOS Y DERECHOS DE PETICIÓN (PQRD) GENERADOS POR LAS ÁREAS RESPONSABLES DE LA COMPAÑÍA A TRAVÉS DE LOS DIFERENTES CANALES QUE SE TIENEN DISPUESTOS PARA ELLO, VERIFICANDO QUE SE ORIENTEN A RESOLVER DE FONDO LO SOLICITADO POR LOS USUARIOS Y SUGIRIENDO LAS RECOMENDACIONES QUE RESULTEN PERTINENTES Y CONDUCENTES PARA TAL FIN. | E175: 2024-02-09 | F175: 2 | G175: 2024-12-31 | H175: 10.86666667 | I175: DIRECTA | K175: 68437600 | L175: 68437600 | M175: NO | N175: NO APLICA | O175: Gerencia de Abastecimiento Estratégico contratacion@positiva.gov.co PBX: (1)6502200 Ext: 10641 | P175: SI | Q175: SI | R175: NA | S175: SI | T175: Pública clasificada | U175: C45302024-Tipo de información Pública clasificada-El CONTRATISTA se obliga a favor de POSITIVA a PRESTACIÓN DE SERVICIOS PROFESIONALES DE ACOMPAÑAMIENTO AL GRUPO DE ATENCIÓN INTEGRAL Y DE SERVICIO AL CIUDADANO DE LA VICEPRESIDENCIA DE OPERACIONES DE POSITIVA, EN LA REVISIÓN DE LA CALIDAD DE LAS RESPUESTAS A LAS PETICIONES, QUEJAS, RECLAMOS Y DERECHOS DE PETICIÓN (PQRD) GENERADOS POR LAS ÁREAS RESPONSABLES DE LA COMPAÑÍA A TRAVÉS DE LOS DIFERENTES CANALES QUE SE TIENEN DISPUESTOS PARA ELLO, VERIFICANDO QUE SE ORIENTEN A RESOLVER DE FONDO LO SOLICITADO POR LOS USUARIOS Y SUGIRIENDO LAS RECOMENDACIONES QUE RESULTEN PERTINENTES Y CONDUCENTES PARA TAL FIN.
A176: FINANCIERA Y ADMINISTRATIVA | B176: C56102024 | C176: 93141808 93141963 | D176: EL CONTRATISTA se obliga a favor de POSITIVA a PRESTACIÓN DE SERVICIOS PROFESIONALES JURÍDICOS ESPECIALIZADOS PARA ASESORAR LA GERENCIA DE ABASTECIMIENTO ESTRATÉGICO Y ELABORAR CONCEPTOS RELACIONADOS CON LA GESTION CONTRACTUAL DE POSITIVA COMPAÑÍA DE SEGUROS | E176: 2024-02-09 | F176: 2 | G176: 2024-08-31 | H176: 6.8 | I176: DIRECTA | K176: 118200000 | L176: 118200000 | M176: NO | N176: NO APLICA | O176: Gerencia de Abastecimiento Estratégico contratacion@positiva.gov.co PBX: (1)6502200 Ext: 10641 | P176: SI | Q176: SI | R176: NA | S176: SI | T176: Pública clasificada | U176: C56102024-Tipo de información Pública clasificada-EL CONTRATISTA se obliga a favor de POSITIVA a PRESTACIÓN DE SERVICIOS PROFESIONALES JURÍDICOS ESPECIALIZADOS PARA ASESORAR LA GERENCIA DE ABASTECIMIENTO ESTRATÉGICO Y ELABORAR CONCEPTOS RELACIONADOS CON LA GESTION CONTRACTUAL DE POSITIVA COMPAÑÍA DE SEGUROS
A177: PROMOCION Y PREVENCION | B177: C77472024 | C177: 93141808 93141964 | D177: EL CONTRATISTA, se compromete con POSITIVA COMPAÑÍA DE SEGUROS a la prestación de servicios de Promoción y Prevención para realizar actividades de asesoría, asistencia técnica y de formación en Seguridad y Salud en el Trabajo, con base en los Programas del PLAN BÁSICO Programa de Preparación y Atención de Emergencias, Programa de Prevención y Protección Colectiva e Individual, Programa de investigación de incidentes y accidentes de trabajo, PLAN AVANZADO Programa de Gestión para el Control de Incidentes y Accidentes de Trabajo, Programa de Gestión en la Prevención de Enfermedades Laborales, PLAN ESPECIALIZADO Programas de Vigilancia Epidemiológico, PLAN DE GESTION INTEGRAL Programa de Gestión Integral, de la Estrategia CREA del Modelo de gestión POSITIVA SUMA, para atención de las empresas afiliadas a POSITIVA COMPAÑIA DE SEGUROS, en la modalidad de atención de Planes GRAN EMPRESA de la Sucursal Coordinadora Bogotá. | E177: 2024-02-09 | F177: 2 | G177: 2024-12-31 | H177: 10.86666667 | I177: DIRECTA | K177: 75000000 | L177: 75000000 | M177: NO | N177: NO APLICA | O177: Gerencia de Abastecimiento Estratégico contratacion@positiva.gov.co PBX: (1)6502200 Ext: 10641 | P177: SI | Q177: SI | R177: NA | S177: SI | T177: Pública clasificada | U177: C77472024-Tipo de información Pública clasificada-EL CONTRATISTA, se compromete con POSITIVA COMPAÑÍA DE SEGUROS a la prestación de servicios de Promoción y Prevención para realizar actividades de asesoría, asistencia técnica y de formación en Seguridad y Salud en el Trabajo, con base en los Programas del PLAN BÁSICO Programa de Preparación y Atención de Emergencias, Programa de Prevención y Protección Colectiva e Individual, Programa de investigación de incidentes y accidentes de trabajo, PLAN AVANZADO Programa de Gestión para el Control de Incidentes y Accidentes de Trabajo, Programa de Gestión en la Prevención de Enfermedades Laborales, PLAN ESPECIALIZADO Programas de Vigilancia Epidemiológico, PLAN DE GESTION INTEGRAL Programa de Gestión Integral, de la Estrategia CREA del Modelo de gestión POSITIVA SUMA, para atención de las empresas afiliadas a POSITIVA COMPAÑIA DE SEGUROS, en la modalidad de atención de Planes GRAN EMPRESA de la Sucursal Coordinadora Bogotá.
A178: PROMOCION Y PREVENCION | B178: C76042024 | C178: 93141808 93141965 | D178: EL CONTRATISTA, se compromete con POSITIVA COMPAÑÍA DE SEGUROS S.A., a la Prestación de servicios de Promoción y Prevención para implementar, mejorar y/o mantener las actividades de consultoría, asesoría, asistencia técnica y de formación en Seguridad y Salud en el Trabajo, bajo el lineamiento de los programas de la Estrategia CREA del Modelo de Gestión Positiva SUMA, en el programa de gestión para la prevención del accidente de PLAN AVANZADO, en prevención de riesgo eléctrico, para las empresas de Planes Regulares, especialmente Air-e y Caribemar, afiliadas a POSITIVA COMPAÑÍA DE SEGUROS Sucursal Atlantico Coordinadora. | E178: 2024-02-09 | F178: 2 | G178: 2024-12-31 | H178: 10.86666667 | I178: DIRECTA | K178: 100000000 | L178: 100000000 | M178: NO | N178: NO APLICA | O178: Gerencia de Abastecimiento Estratégico contratacion@positiva.gov.co PBX: (1)6502200 Ext: 10641 | P178: SI | Q178: SI | R178: NA | S178: SI | T178: Pública clasificada | U178: C76042024-Tipo de información Pública clasificada-EL CONTRATISTA, se compromete con POSITIVA COMPAÑÍA DE SEGUROS S.A., a la Prestación de servicios de Promoción y Prevención para implementar, mejorar y/o mantener las actividades de consultoría, asesoría, asistencia técnica y de formación en Seguridad y Salud en el Trabajo, bajo el lineamiento de los programas de la Estrategia CREA del Modelo de Gestión Positiva SUMA, en el programa de gestión para la prevención del accidente de PLAN AVANZADO, en prevención de riesgo eléctrico, para las empresas de Planes Regulares, especialmente Air-e y Caribemar, afiliadas a POSITIVA COMPAÑÍA DE SEGUROS Sucursal Atlantico Coordinadora.
